PublisherLabel,PublisherURI,"Body name","Body","Service area","Service division","Responsible unit","Expenses type","Date","Transaction","Amount","Supplier name"
"Bracknell Forest Council","http://opendatacommunities.org/id/unitary-authority/bracknell-forest","Bracknell Forest Council","00MA","Education Management & Support Service","School Related Expenditure","LMS Contingency","Consultants Fees",26/11/2010 00:00:00,"6432266",3324.24,"EC HARRIS LLP"
"Bracknell Forest Council","http://opendatacommunities.org/id/unitary-authority/bracknell-forest","Bracknell Forest Council","00MA","","","14-19 Diplomas Wick Hill","Consultant Fees",26/11/2010 00:00:00,"6432267",10000,"EC HARRIS LLP"
"Bracknell Forest Council","http://opendatacommunities.org/id/unitary-authority/bracknell-forest","Bracknell Forest Council","00MA","","","Brakenhale Science Block","Consultant Fees",26/11/2010 00:00:00,"6432268",5010.04,"EC HARRIS LLP"
"Bracknell Forest Council","http://opendatacommunities.org/id/unitary-authority/bracknell-forest","Bracknell Forest Council","00MA","","","Edgbarrow Phase 2 Capacity Works","Consultant Fees",26/11/2010 00:00:00,"6432269",5167.83,"EC HARRIS LLP"
"Bracknell Forest Council","http://opendatacommunities.org/id/unitary-authority/bracknell-forest","Bracknell Forest Council","00MA","","","Jennetts Park (Peacock Farm)","Consultant Fees",26/11/2010 00:00:00,"6432270",2917.34,"EC HARRIS LLP"
"Bracknell Forest Council","http://opendatacommunities.org/id/unitary-authority/bracknell-forest","Bracknell Forest Council","00MA","","","Crowthorne Childrens Centre","Consultant Fees",26/11/2010 00:00:00,"6432271",3047.5,"EC HARRIS LLP"
"Bracknell Forest Council","http://opendatacommunities.org/id/unitary-authority/bracknell-forest","Bracknell Forest Council","00MA","","","Kennel Lane Rebuild","Consultant Fees",26/11/2010 00:00:00,"6432272",40491.8,"EC HARRIS LLP"
"Bracknell Forest Council","http://opendatacommunities.org/id/unitary-authority/bracknell-forest","Bracknell Forest Council","00MA","Central Support Services - COF","Personnel","Personnel Services","Long Service Awards",09/11/2010 00:00:00,"6428533",4525.94,"EDENRED (INCENTIVES & MOTIVATION) LTD"
"Bracknell Forest Council","http://opendatacommunities.org/id/unitary-authority/bracknell-forest","Bracknell Forest Council","00MA","Central Support Services - COF","Personnel","Personnel Services","Long Service Awards",09/11/2010 00:00:00,"6428533",5702.02,"EDENRED (INCENTIVES & MOTIVATION) LTD"
"Bracknell Forest Council","http://opendatacommunities.org/id/unitary-authority/bracknell-forest","Bracknell Forest Council","00MA","Other Children's & Family Services","Other Children's and Families Services","Children's Fund","Grants and Donations",13/12/2010 00:00:00,"6432004",3000,"EFFECTIVE STEPS"
"Bracknell Forest Council","http://opendatacommunities.org/id/unitary-authority/bracknell-forest","Bracknell Forest Council","00MA","Support Services & Management Costs","Training","Social Care Training - Children","Training Costs",17/11/2010 00:00:00,"6429908",3600,"EILEEN MURPHY CONSULTANTS"
"Bracknell Forest Council","http://opendatacommunities.org/id/unitary-authority/bracknell-forest","Bracknell Forest Council","00MA","Childrens services-Commissioning & SW","Commissioning & Social Work","Safeguarding Childrens Board","Contracted Services",30/11/2010 00:00:00,"6431822",1168.75,"ELAINE COLERIDGE SMITH"
"Bracknell Forest Council","http://opendatacommunities.org/id/unitary-authority/bracknell-forest","Bracknell Forest Council","00MA","Registration of Electors","Registration of Electors","Electoral Registration","Contracted Services",01/12/2010 00:00:00,"6431812",1024.48,"ELECTORAL REFORM SERVICES"
"Bracknell Forest Council","http://opendatacommunities.org/id/unitary-authority/bracknell-forest","Bracknell Forest Council","00MA","Central Support Services - COF","Personnel","LSC - Train to Gain Grant (T2G)","Training Costs",26/11/2010 00:00:00,"6431032",772.5,"ELIZABETH BARRETT"
"Bracknell Forest Council","http://opendatacommunities.org/id/unitary-authority/bracknell-forest","Bracknell Forest Council","00MA","Holding Accounts in Budget Book COF","Corporate Serv - Reprographics & Printing","Reprographics & Printing","Materials",01/12/2010 00:00:00,"6431717",945,"ELLIOTT BAXTER & CO LTD"
"Bracknell Forest Council","http://opendatacommunities.org/id/unitary-authority/bracknell-forest","Bracknell Forest Council","00MA","Recreation, Sports and Leisure","Retail Services, Catering & Licenced","Easthampstead Park Centre - Bar","Cost of Goods Sold",03/11/2010 00:00:00,"6431511",1246.86,"ENOTRIA WINECELLARS LTD"
"Bracknell Forest Council","http://opendatacommunities.org/id/unitary-authority/bracknell-forest","Bracknell Forest Council","00MA","Recreation, Sports and Leisure","Retail Services, Catering & Licenced","Easthampstead Park Centre - Bar","Cost of Goods Sold",24/11/2010 00:00:00,"6431512",967.5,"ENOTRIA WINECELLARS LTD"
"Bracknell Forest Council","http://opendatacommunities.org/id/unitary-authority/bracknell-forest","Bracknell Forest Council","00MA","Recreation, Sports and Leisure","Retail Services, Catering & Licenced","Easthampstead Park Centre - Bar","Cost of Goods Sold",03/12/2010 00:00:00,"6432506",527.04,"ENOTRIA WINECELLARS LTD"
"Bracknell Forest Council","http://opendatacommunities.org/id/unitary-authority/bracknell-forest","Bracknell Forest Council","00MA","Recreation, Sports and Leisure","Retail Services, Catering & Licenced","Easthampstead Park Centre - Bar","Cost of Goods Sold",08/12/2010 00:00:00,"6432604",625.32,"ENOTRIA WINECELLARS LTD"
"Bracknell Forest Council","http://opendatacommunities.org/id/unitary-authority/bracknell-forest","Bracknell Forest Council","00MA","","","GIS Upgrade","IT Software",09/12/2010 00:00:00,"6431711",15000,"ESRI (UK) LTD"
"Bracknell Forest Council","http://opendatacommunities.org/id/unitary-authority/bracknell-forest","Bracknell Forest Council","00MA","","","Test System for Corporate GIS","IT Software",30/11/2010 00:00:00,"6431759",2495,"ESRI (UK) LTD"
"Bracknell Forest Council","http://opendatacommunities.org/id/unitary-authority/bracknell-forest","Bracknell Forest Council","00MA","Central Support Services - COF","Personnel","LSC - Train to Gain Grant (T2G)","Training Costs",24/11/2010 00:00:00,"6429978",860.04,"ESTHER WATUNGWA"
"Bracknell Forest Council","http://opendatacommunities.org/id/unitary-authority/bracknell-forest","Bracknell Forest Council","00MA","","","Delegated Capital Edgbarrow","Construction - Contract Payments",25/11/2010 00:00:00,"6431164",680,"EUROPEAN ASBESTOS SERVICES"
"Bracknell Forest Council","http://opendatacommunities.org/id/unitary-authority/bracknell-forest","Bracknell Forest Council","00MA","","","Balance Sheet","Flexible Benefits Control Account",17/12/2010 00:00:00,"6432514",9141,"EVANS HALSHAW"
"Bracknell Forest Council","http://opendatacommunities.org/id/unitary-authority/bracknell-forest","Bracknell Forest Council","00MA","Learning Disability (under 65)","Day Care","Day Centre Placements-Lrng Disab","Contracted Services",21/12/2010 00:00:00,"30165585",580,"EXCEL SUPPORT SERVICES"
"Bracknell Forest Council","http://opendatacommunities.org/id/unitary-authority/bracknell-forest","Bracknell Forest Council","00MA","Learning Disability (under 65)","Homecare","S28a Supported Living (Homecare) LD","Contracted Services",21/12/2010 00:00:00,"30165585",3981.3,"EXCEL SUPPORT SERVICES"
"Bracknell Forest Council","http://opendatacommunities.org/id/unitary-authority/bracknell-forest","Bracknell Forest Council","00MA","Learning Disability (under 65)","Homecare","S28a Supported Living (Homecare) LD","Contracted Services",21/12/2010 00:00:00,"30165585",3981.3,"EXCEL SUPPORT SERVICES"
"Bracknell Forest Council","http://opendatacommunities.org/id/unitary-authority/bracknell-forest","Bracknell Forest Council","00MA","Learning Disability (under 65)","Homecare","S28a Supported Living (Homecare) LD","Contracted Services",21/12/2010 00:00:00,"30165585",4908.4,"EXCEL SUPPORT SERVICES"
"Bracknell Forest Council","http://opendatacommunities.org/id/unitary-authority/bracknell-forest","Bracknell Forest Council","00MA","Learning Disability (under 65)","Day Care","Supported Living (Day Care) LD","Contracted Services",21/12/2010 00:00:00,"30165585",3666.3,"EXCEL SUPPORT SERVICES"
"Bracknell Forest Council","http://opendatacommunities.org/id/unitary-authority/bracknell-forest","Bracknell Forest Council","00MA","Learning Disability (under 65)","Homecare","Supported Living (Homecare) LD","Contracted Services",21/12/2010 00:00:00,"30165585",7770,"EXCEL SUPPORT SERVICES"
"Bracknell Forest Council","http://opendatacommunities.org/id/unitary-authority/bracknell-forest","Bracknell Forest Council","00MA","Learning Disability (under 65)","Homecare","Supported Living (Homecare) LD","Contracted Services",21/12/2010 00:00:00,"30165585",4620,"EXCEL SUPPORT SERVICES"
"Bracknell Forest Council","http://opendatacommunities.org/id/unitary-authority/bracknell-forest","Bracknell Forest Council","00MA","Learning Disability (under 65)","Homecare","Supported Living (Homecare) LD","Contracted Services",21/12/2010 00:00:00,"30165585",5297.68,"EXCEL SUPPORT SERVICES"
"Bracknell Forest Council","http://opendatacommunities.org/id/unitary-authority/bracknell-forest","Bracknell Forest Council","00MA","Learning Disability (under 65)","Homecare","Supported Living (Homecare) LD","Contracted Services",21/12/2010 00:00:00,"30165585",315,"EXCEL SUPPORT SERVICES"
"Bracknell Forest Council","http://opendatacommunities.org/id/unitary-authority/bracknell-forest","Bracknell Forest Council","00MA","Learning Disability (under 65)","Day Care","Supported Living (Day Care) LD","Contracted Services",21/12/2010 00:00:00,"30165585",3666.3,"EXCEL SUPPORT SERVICES"
"Bracknell Forest Council","http://opendatacommunities.org/id/unitary-authority/bracknell-forest","Bracknell Forest Council","00MA","Learning Disability (under 65)","Homecare","Supported Living (Homecare) LD","Contracted Services",21/12/2010 00:00:00,"30165585",960,"EXCEL SUPPORT SERVICES"
"Bracknell Forest Council","http://opendatacommunities.org/id/unitary-authority/bracknell-forest","Bracknell Forest Council","00MA","Learning Disability (under 65)","Homecare","Supported Living (Homecare) LD","Contracted Services",21/12/2010 00:00:00,"30165585",315,"EXCEL SUPPORT SERVICES"
"Bracknell Forest Council","http://opendatacommunities.org/id/unitary-authority/bracknell-forest","Bracknell Forest Council","00MA","Learning Disability (under 65)","Homecare","Supported Living (Homecare) LD","Contracted Services",21/12/2010 00:00:00,"30165585",6930,"EXCEL SUPPORT SERVICES"
"Bracknell Forest Council","http://opendatacommunities.org/id/unitary-authority/bracknell-forest","Bracknell Forest Council","00MA","Learning Disability (under 65)","Homecare","Supported Living (Homecare) LD","Contracted Services",21/12/2010 00:00:00,"30165585",1860,"EXCEL SUPPORT SERVICES"
"Bracknell Forest Council","http://opendatacommunities.org/id/unitary-authority/bracknell-forest","Bracknell Forest Council","00MA","Learning Disability (under 65)","Homecare","Supported Living (Homecare) LD","Contracted Services",21/12/2010 00:00:00,"30165585",3819,"EXCEL SUPPORT SERVICES"
"Bracknell Forest Council","http://opendatacommunities.org/id/unitary-authority/bracknell-forest","Bracknell Forest Council","00MA","Learning Disability (under 65)","Homecare","Supported Living (Homecare) LD","Contracted Services",21/12/2010 00:00:00,"30165585",5670,"EXCEL SUPPORT SERVICES"
"Bracknell Forest Council","http://opendatacommunities.org/id/unitary-authority/bracknell-forest","Bracknell Forest Council","00MA","Learning Disability (under 65)","Homecare","Supported Living (Homecare) LD","Contracted Services",21/12/2010 00:00:00,"30165585",2310,"EXCEL SUPPORT SERVICES"
"Bracknell Forest Council","http://opendatacommunities.org/id/unitary-authority/bracknell-forest","Bracknell Forest Council","00MA","Older People (Aged 65 or Over)","Home Care","Supported Living (Homecare) LD over 65","Contracted Services",21/12/2010 00:00:00,"30165585",5796.72,"EXCEL SUPPORT SERVICES"
"Bracknell Forest Council","http://opendatacommunities.org/id/unitary-authority/bracknell-forest","Bracknell Forest Council","00MA","Learning Disability (under 65)","Homecare","Supported Living (Homecare) LD","Contracted Services",21/12/2010 00:00:00,"30165585",4894,"EXCEL SUPPORT SERVICES"
"Bracknell Forest Council","http://opendatacommunities.org/id/unitary-authority/bracknell-forest","Bracknell Forest Council","00MA","Learning Disability (under 65)","Homecare","Supported Living (Homecare) LD","Contracted Services",21/12/2010 00:00:00,"30165585",2098.32,"EXCEL SUPPORT SERVICES"
"Bracknell Forest Council","http://opendatacommunities.org/id/unitary-authority/bracknell-forest","Bracknell Forest Council","00MA","Learning Disability (under 65)","Homecare","Supported Living (Homecare) LD","Contracted Services",21/12/2010 00:00:00,"30165585",1373.08,"EXCEL SUPPORT SERVICES"
"Bracknell Forest Council","http://opendatacommunities.org/id/unitary-authority/bracknell-forest","Bracknell Forest Council","00MA","Learning Disability (under 65)","Homecare","Supported Living (Homecare) LD","Contracted Services",21/12/2010 00:00:00,"30165585",1800,"EXCEL SUPPORT SERVICES"
"Bracknell Forest Council","http://opendatacommunities.org/id/unitary-authority/bracknell-forest","Bracknell Forest Council","00MA","Learning Disability (under 65)","Homecare","S28a Supported Living (Homecare) LD","Contracted Services",21/12/2010 00:00:00,"30165585",5369.28,"EXCEL SUPPORT SERVICES"
"Bracknell Forest Council","http://opendatacommunities.org/id/unitary-authority/bracknell-forest","Bracknell Forest Council","00MA","Older People (Aged 65 or Over)","Residential Care Home Placements","Residential Placements-Elderly","Contracted Services",21/12/2010 00:00:00,"30165583",1923.68,"FAR END"
"Bracknell Forest Council","http://opendatacommunities.org/id/unitary-authority/bracknell-forest","Bracknell Forest Council","00MA","Special Schools","Other Special Related Expenditure","Supporting Special Educational Needs","Voluntary Sector Service Providers",07/12/2010 00:00:00,"6432740",18621,"FARNEY CLOSE SCHOOL"
"Bracknell Forest Council","http://opendatacommunities.org/id/unitary-authority/bracknell-forest","Bracknell Forest Council","00MA","Other Adult Services","Substance Abuse (Addictions)","Farnham Road Prescribing","Contracted Services",01/12/2010 00:00:00,"6430938",20270,"FARNHAM ROAD PRACTICE"
"Bracknell Forest Council","http://opendatacommunities.org/id/unitary-authority/bracknell-forest","Bracknell Forest Council","00MA","Children Looked After (CLA)","Children's Homes","Children's Home Placements","Contracted Services",28/11/2010 00:00:00,"6431961",9384,"FERNDEARLE CHILD CARE SERVICES"
"Bracknell Forest Council","http://opendatacommunities.org/id/unitary-authority/bracknell-forest","Bracknell Forest Council","00MA","Special Schools","Other Special Related Expenditure","Supporting Special Educational Needs","Voluntary Sector Service Providers",28/11/2010 00:00:00,"6431961",2600,"FERNDEARLE CHILD CARE SERVICES"
"Bracknell Forest Council","http://opendatacommunities.org/id/unitary-authority/bracknell-forest","Bracknell Forest Council","00MA","Recreation, Sports and Leisure","Indoor Sports & Recreation Facilities","Coral Reef - Catering & Bar","Cost of Goods Sold",30/11/2010 00:00:00,"6431569",557.04,"FESTIVAL DRINKS LTD"
"Bracknell Forest Council","http://opendatacommunities.org/id/unitary-authority/bracknell-forest","Bracknell Forest Council","00MA","Public Transport","Concessionary Fares","Concessionary Fares","Contracted Services",14/10/2010 00:00:00,"6430705",33156.34,"FIRST BEELINE"
"Bracknell Forest Council","http://opendatacommunities.org/id/unitary-authority/bracknell-forest","Bracknell Forest Council","00MA","Public Transport","Concessionary Fares","Concessionary Fares","Contracted Services",03/12/2010 00:00:00,"6430763",44790.92,"FIRST BEELINE"
"Bracknell Forest Council","http://opendatacommunities.org/id/unitary-authority/bracknell-forest","Bracknell Forest Council","00MA","Education Management & Support Service","School Related Expenditure","Home to School Transport","Coach Fares - Home/School Transport",17/11/2010 00:00:00,"6432931",1216.65,"FIRST BEELINE"
"Bracknell Forest Council","http://opendatacommunities.org/id/unitary-authority/bracknell-forest","Bracknell Forest Council","00MA","Education Management & Support Service","School Related Expenditure","Home to School Transport","Coach Fares - Home/School Transport",17/11/2010 00:00:00,"6432931",973.32,"FIRST BEELINE"
"Bracknell Forest Council","http://opendatacommunities.org/id/unitary-authority/bracknell-forest","Bracknell Forest Council","00MA","Education Management & Support Service","School Related Expenditure","Extended Travel","Coach Fares - Home/School Transport",17/11/2010 00:00:00,"6432931",973.32,"FIRST BEELINE"
"Bracknell Forest Council","http://opendatacommunities.org/id/unitary-authority/bracknell-forest","Bracknell Forest Council","00MA","Non-School Funding","Pre-School Education","Early Years and Childcare","Grants and Donations",21/12/2010 00:00:00,"30165681",12626.96,"FOOTSTEPS NURSERY"
"Bracknell Forest Council","http://opendatacommunities.org/id/unitary-authority/bracknell-forest","Bracknell Forest Council","00MA","Holding Accounts in Budget Book COF","Trolley Service","Trolley Service","Cost of Goods Sold",01/12/2010 00:00:00,"6431444",553.58,"3663"
"Bracknell Forest Council","http://opendatacommunities.org/id/unitary-authority/bracknell-forest","Bracknell Forest Council","00MA","Recreation, Sports and Leisure","Retail Services, Catering & Licenced","Easthampstead Park Centre - Catering","Cost of Goods Sold",01/11/2010 00:00:00,"6431600",684,"3663"
"Bracknell Forest Council","http://opendatacommunities.org/id/unitary-authority/bracknell-forest","Bracknell Forest Council","00MA","Recreation, Sports and Leisure","Retail Services, Catering & Licenced","Easthampstead Park Centre - Catering","Cost of Goods Sold",01/11/2010 00:00:00,"6431600",4839.76,"3663"
"Bracknell Forest Council","http://opendatacommunities.org/id/unitary-authority/bracknell-forest","Bracknell Forest Council","00MA","Recreation, Sports and Leisure","Golf Courses","Leisure DSO - Downshire Catering","Cost of Goods Sold",01/12/2010 00:00:00,"6431895",3027.34,"3663"
"Bracknell Forest Council","http://opendatacommunities.org/id/unitary-authority/bracknell-forest","Bracknell Forest Council","00MA","Recreation, Sports and Leisure","Indoor Sports & Recreation Facilities","Leisure Centre - Catering General","Cost of Goods Sold",01/11/2010 00:00:00,"6432191",2548.14,"3663"
"Bracknell Forest Council","http://opendatacommunities.org/id/unitary-authority/bracknell-forest","Bracknell Forest Council","00MA","Mental Health Needs (Under 65)","Residential Care Home Placements","Residential Placements-Mental Illness","Contracted Services",21/12/2010 00:00:00,"30165584",4692.08,"2 CARE"
"Bracknell Forest Council","http://opendatacommunities.org/id/unitary-authority/bracknell-forest","Bracknell Forest Council","00MA","Non-School Funding","Pre-School Education","SSEYCG Outcomes, Quality & Inclusion","Externally Purchased Professional Services-Non Cur",06/12/2010 00:00:00,"6431830",980,"ABC MEDICAL SERVICES (READING) LTD"
"Bracknell Forest Council","http://opendatacommunities.org/id/unitary-authority/bracknell-forest","Bracknell Forest Council","00MA","Supporting People","Supporting People","Supporting People Payments","Transfer Payments - Supporting People",15/12/2010 00:00:00,"6431974",12468.99,"ABILITY HOUSING ASSOCIATION"
"Bracknell Forest Council","http://opendatacommunities.org/id/unitary-authority/bracknell-forest","Bracknell Forest Council","00MA","Service Management & Support Services","Service Management & Support Services","Departmental IT","Computer Software Maintenance",17/12/2010 00:00:00,"6432942",2090,"ABRITAS LTD"
"Bracknell Forest Council","http://opendatacommunities.org/id/unitary-authority/bracknell-forest","Bracknell Forest Council","00MA","","","Balance Sheet","Flexible Benefits Control Account",07/12/2010 00:00:00,"6431284",8000,"ACCESS VEHICLE SOLUTIONS LTD"
"Bracknell Forest Council","http://opendatacommunities.org/id/unitary-authority/bracknell-forest","Bracknell Forest Council","00MA","Older People (Aged 65 or Over)","Nursing Home Placements","Nursing Home Placements-Elderly","Contracted Services",21/12/2010 00:00:00,"30165583",2203.88,"ACORN HEALTHCARE LTD T/A ACORN LODGE NURSING CARE"
"Bracknell Forest Council","http://opendatacommunities.org/id/unitary-authority/bracknell-forest","Bracknell Forest Council","00MA","Children Looked After (CLA)","Children's Homes","Children's Home Placements","Contracted Services",01/12/2010 00:00:00,"6431179",11957.01,"ACTIVE8 CARE LTD"
"Bracknell Forest Council","http://opendatacommunities.org/id/unitary-authority/bracknell-forest","Bracknell Forest Council","00MA","","","Disabled Facilities Grant","Grants Paid",29/11/2010 00:00:00,"6430365",12192.87,"ADAPTABLE BUILDING SERVICES"
"Bracknell Forest Council","http://opendatacommunities.org/id/unitary-authority/bracknell-forest","Bracknell Forest Council","00MA","Learning Disability (under 65)","Direct Payments - LD","Direct Payments - LD","Direct Payments to Clients",07/12/2010 00:00:00,"30164962",1001.2,"REDACTED PERSONAL DATA"
"Bracknell Forest Council","http://opendatacommunities.org/id/unitary-authority/bracknell-forest","Bracknell Forest Council","00MA","Secondary Schools","Other Secondary Related Expenditure","School Sport Co-ordinator Programme","Externally Purchased Professional Services-Non Cur",30/11/2010 00:00:00,"6431679",1100,"FOREMAN & HILL CHARTERED ACCOUNTANTS"
"Bracknell Forest Council","http://opendatacommunities.org/id/unitary-authority/bracknell-forest","Bracknell Forest Council","00MA","Older People (Aged 65 or Over)","Nursing Home Placements","Nursing Home Placements-Elderly","Contracted Services",21/12/2010 00:00:00,"30165583",1923.68,"FOREST CARE CEDAR LODGE"
"Bracknell Forest Council","http://opendatacommunities.org/id/unitary-authority/bracknell-forest","Bracknell Forest Council","00MA","Vehicles &  Plant","Vehicles and Plant Summary Account","Vehicles and Plant","Vehicle Repairs",16/11/2010 00:00:00,"6430474",634.19,"FOREST MOT & SERVICE CENTRE"
"Bracknell Forest Council","http://opendatacommunities.org/id/unitary-authority/bracknell-forest","Bracknell Forest Council","00MA","Vehicles &  Plant","Vehicles and Plant Summary Account","Vehicles and Plant","Vehicle Repairs",08/12/2010 00:00:00,"6431729",923.46,"FOREST MOT & SERVICE CENTRE"
"Bracknell Forest Council","http://opendatacommunities.org/id/unitary-authority/bracknell-forest","Bracknell Forest Council","00MA","Education Management & Support Service","Children, Young People & Families","SP3 Vulnerable Groups - Child Poverty","Other Fees for Bought-in Services",15/11/2010 00:00:00,"6429849",740,"FOREST SCHOOL"
"Bracknell Forest Council","http://opendatacommunities.org/id/unitary-authority/bracknell-forest","Bracknell Forest Council","00MA","Childrens services-Commissioning & SW","Commissioning & Social Work","Safeguarding Childrens Board","Training Costs",02/08/2010 00:00:00,"6432219",500,"FORWARD"
"Bracknell Forest Council","http://opendatacommunities.org/id/unitary-authority/bracknell-forest","Bracknell Forest Council","00MA","Children Looked After (CLA)","Children's Homes","Children's Home Placements","Contracted Services",30/11/2010 00:00:00,"6431958",3554.46,"FOSTERING SOLUTIONS LTD"
"Bracknell Forest Council","http://opendatacommunities.org/id/unitary-authority/bracknell-forest","Bracknell Forest Council","00MA","Older People (Aged 65 or Over)","Nursing Home Placements","Nursing Home Placements-Elderly","Contracted Services",21/12/2010 00:00:00,"30165583",3958.88,"FOUR SEASONS HEALTH CARE"
"Bracknell Forest Council","http://opendatacommunities.org/id/unitary-authority/bracknell-forest","Bracknell Forest Council","00MA","Older People (Aged 65 or Over)","Nursing Home Placements","Nursing Home Placements-Elderly","Contracted Services",21/12/2010 00:00:00,"30165583",2358.48,"FOUR SEASONS HEALTH CARE"
"Bracknell Forest Council","http://opendatacommunities.org/id/unitary-authority/bracknell-forest","Bracknell Forest Council","00MA","Older People (Aged 65 or Over)","Nursing Home Placements","Nursing Home Placements-Elderly","Contracted Services",21/12/2010 00:00:00,"30165583",2358.48,"FOUR SEASONS HEALTH CARE"
"Bracknell Forest Council","http://opendatacommunities.org/id/unitary-authority/bracknell-forest","Bracknell Forest Council","00MA","Physical Disability/Sensory Impairment","Nursing Home Placements","Nursing Home Placements-Physical Disabty","Contracted Services",21/12/2010 00:00:00,"30165583",2358.48,"FOUR SEASONS HEALTH CARE"
"Bracknell Forest Council","http://opendatacommunities.org/id/unitary-authority/bracknell-forest","Bracknell Forest Council","00MA","Physical Disability/Sensory Impairment","Nursing Home Placements","Nursing Home Placements-Physical Disabty","Contracted Services",21/12/2010 00:00:00,"30165583",4716.96,"FOUR SEASONS HEALTH CARE"
"Bracknell Forest Council","http://opendatacommunities.org/id/unitary-authority/bracknell-forest","Bracknell Forest Council","00MA","Libraries","Branch Libraries","Libraries General Running Expenses","Computer Software Maintenance",03/12/2010 00:00:00,"6431719",579,"FOURSYS LTD"
"Bracknell Forest Council","http://opendatacommunities.org/id/unitary-authority/bracknell-forest","Bracknell Forest Council","00MA","Learning Disability (under 65)","Direct Payments - LD","Direct Payments - LD","Direct Payments to Clients",22/12/2010 00:00:00,"30165698",1001.2,"REDACTED PERSONAL DATA"
"Bracknell Forest Council","http://opendatacommunities.org/id/unitary-authority/bracknell-forest","Bracknell Forest Council","00MA","Central Support Services - COF","Construction and Property","Depot Facilities","Equipment - R&M",22/11/2010 00:00:00,"6430317",560.43,"ADSM PLC"
"Bracknell Forest Council","http://opendatacommunities.org/id/unitary-authority/bracknell-forest","Bracknell Forest Council","00MA","Central Support Services - COF","Construction and Property","Depot Facilities","Security Systems",01/12/2010 00:00:00,"6431407",626.26,"ADT FIRE AND SECURITY"
"Bracknell Forest Council","http://opendatacommunities.org/id/unitary-authority/bracknell-forest","Bracknell Forest Council","00MA","Recreation, Sports and Leisure","Indoor Sports & Recreation Facilities","Leisure DSO - Coral Reef","Equipment - R&M",26/11/2010 00:00:00,"6431570",1550,"ADVANCE MOULDINGS LTD"
"Bracknell Forest Council","http://opendatacommunities.org/id/unitary-authority/bracknell-forest","Bracknell Forest Council","00MA","","","Garth Hill - Client Fees","Consultant Fees",17/11/2010 00:00:00,"6430152",6000,"AECOM"
"Bracknell Forest Council","http://opendatacommunities.org/id/unitary-authority/bracknell-forest","Bracknell Forest Council","00MA","Learning Disability (under 65)","Residential Care Home Placements","Residential Placements-Lrng Disab","Contracted Services",21/12/2010 00:00:00,"30165583",4760,"AFFINITY TRUST"
"Bracknell Forest Council","http://opendatacommunities.org/id/unitary-authority/bracknell-forest","Bracknell Forest Council","00MA","Older People (Aged 65 or Over)","Nursing Home Placements","Nursing Home Placements-Elderly","Voluntary Sector Service Providers",10/12/2010 00:00:00,"6432250",1044,"AGE CONCERN BERKSHIRE"
"Bracknell Forest Council","http://opendatacommunities.org/id/unitary-authority/bracknell-forest","Bracknell Forest Council","00MA","Learning Disability (under 65)","Residential Care Home Placements","Residential Placements-Lrng Disab","Contracted Services",21/12/2010 00:00:00,"30165583",8380,"AITCH CARE HOMES (LONDON) LTD"
"Bracknell Forest Council","http://opendatacommunities.org/id/unitary-authority/bracknell-forest","Bracknell Forest Council","00MA","Mental Health Needs (Under 65)","Residential Care Home Placements","Residential Placements-Mental Illness","Contracted Services",21/12/2010 00:00:00,"30165583",1253.56,"ALDWICK RESIDENTIAL CARE HOME"
"Bracknell Forest Council","http://opendatacommunities.org/id/unitary-authority/bracknell-forest","Bracknell Forest Council","00MA","Older People (Aged 65 or Over)","Residential Care Home Placements","Bridgewell Unit","Agency",10/10/2010 00:00:00,"6426390",1023.1,"ALEXANDER LEIGH CONSULTING"
"Bracknell Forest Council","http://opendatacommunities.org/id/unitary-authority/bracknell-forest","Bracknell Forest Council","00MA","Older People (Aged 65 or Over)","Residential Care Home Placements","Bridgewell Unit","Agency",17/10/2010 00:00:00,"6426469",1260,"ALEXANDER LEIGH CONSULTING"
"Bracknell Forest Council","http://opendatacommunities.org/id/unitary-authority/bracknell-forest","Bracknell Forest Council","00MA","Older People (Aged 65 or Over)","Residential Care Home Placements","Bridgewell Unit","Agency",24/10/2010 00:00:00,"6427055",1312,"ALEXANDER LEIGH CONSULTING"
"Bracknell Forest Council","http://opendatacommunities.org/id/unitary-authority/bracknell-forest","Bracknell Forest Council","00MA","Older People (Aged 65 or Over)","Residential Care Home Placements","Bridgewell Unit","Agency",07/11/2010 00:00:00,"6428641",824,"ALEXANDER LEIGH CONSULTING"
"Bracknell Forest Council","http://opendatacommunities.org/id/unitary-authority/bracknell-forest","Bracknell Forest Council","00MA","Older People (Aged 65 or Over)","Residential Care Home Placements","Bridgewell Unit","Agency",14/11/2010 00:00:00,"6429500",1184,"ALEXANDER LEIGH CONSULTING"
"Bracknell Forest Council","http://opendatacommunities.org/id/unitary-authority/bracknell-forest","Bracknell Forest Council","00MA","Older People (Aged 65 or Over)","Residential Care Home Placements","Residential Placements-Elderly","Contracted Services",21/12/2010 00:00:00,"30165583",1819.12,"FOURWAYS RESIDENTIAL HOME"
"Bracknell Forest Council","http://opendatacommunities.org/id/unitary-authority/bracknell-forest","Bracknell Forest Council","00MA","Older People (Aged 65 or Over)","Residential Care Home Placements","Residential Placements-Elderly","Contracted Services",21/12/2010 00:00:00,"30165583",1819.12,"FOURWAYS RESIDENTIAL HOME"
"Bracknell Forest Council","http://opendatacommunities.org/id/unitary-authority/bracknell-forest","Bracknell Forest Council","00MA","Older People (Aged 65 or Over)","Residential Care Home Placements","Residential Placements-Elderly","Contracted Services",21/12/2010 00:00:00,"30165583",1819.12,"FOURWAYS RESIDENTIAL HOME"
"Bracknell Forest Council","http://opendatacommunities.org/id/unitary-authority/bracknell-forest","Bracknell Forest Council","00MA","Older People (Aged 65 or Over)","Residential Care Home Placements","Residential Placements-Elderly","Contracted Services",21/12/2010 00:00:00,"30165583",1818.8,"FOURWAYS RESIDENTIAL HOME"
"Bracknell Forest Council","http://opendatacommunities.org/id/unitary-authority/bracknell-forest","Bracknell Forest Council","00MA","Older People (Aged 65 or Over)","Residential Care Home Placements","Residential Placements-Elderly","Contracted Services",21/12/2010 00:00:00,"30165583",1817.04,"FOURWAYS RESIDENTIAL HOME"
"Bracknell Forest Council","http://opendatacommunities.org/id/unitary-authority/bracknell-forest","Bracknell Forest Council","00MA","Older People (Aged 65 or Over)","Residential Care Home Placements","Residential Placements-Elderly","Contracted Services",21/12/2010 00:00:00,"30165583",1819.12,"FOURWAYS RESIDENTIAL HOME"
"Bracknell Forest Council","http://opendatacommunities.org/id/unitary-authority/bracknell-forest","Bracknell Forest Council","00MA","","","14-19 Diplomas Wick Hill","Construction - Contract Payments",22/11/2010 00:00:00,"6430142",291628.42,"FRANCIS CONSTRUCTION LTD"
"Bracknell Forest Council","http://opendatacommunities.org/id/unitary-authority/bracknell-forest","Bracknell Forest Council","00MA","","","14-19 Diplomas Wick Hill","Construction - Contract Payments",07/12/2010 00:00:00,"6431643",146759.37,"FRANCIS CONSTRUCTION LTD"
"Bracknell Forest Council","http://opendatacommunities.org/id/unitary-authority/bracknell-forest","Bracknell Forest Council","00MA","Libraries","Branch Libraries","Libraries General Running Expenses","Computer Consumables",30/11/2010 00:00:00,"6430721",729.87,"FRASERS OFFICE SUPPLIES"
"Bracknell Forest Council","http://opendatacommunities.org/id/unitary-authority/bracknell-forest","Bracknell Forest Council","00MA","Recreation, Sports and Leisure","Indoor Sports & Recreation Facilities","Coral Reef - Catering & Bar","Cost of Goods Sold",30/11/2010 00:00:00,"6431567",575,"FRUTINA"
"Bracknell Forest Council","http://opendatacommunities.org/id/unitary-authority/bracknell-forest","Bracknell Forest Council","00MA","","","Bracknell Railway Station Forecourt Improvements","Construction - Contract Payments",15/12/2010 00:00:00,"6432971",700,"FURNITUBES INTERNATIONAL LTD"
"Bracknell Forest Council","http://opendatacommunities.org/id/unitary-authority/bracknell-forest","Bracknell Forest Council","00MA","Children Looked After (CLA)","Fostering Services","Independent Fostering (Non BFBC)","Contracted Services",01/01/2011 00:00:00,"6431180",3229.89,"FUTURES FOR CHILDREN LTD"
"Bracknell Forest Council","http://opendatacommunities.org/id/unitary-authority/bracknell-forest","Bracknell Forest Council","00MA","Children Looked After (CLA)","Fostering Services","Independent Fostering (Non BFBC)","Contracted Services",01/01/2011 00:00:00,"6431181",3229.89,"FUTURES FOR CHILDREN LTD"
"Bracknell Forest Council","http://opendatacommunities.org/id/unitary-authority/bracknell-forest","Bracknell Forest Council","00MA","Central Support Services - COF","Fleet & Workshops","Green Travel Issues","Equipment - Purchase",01/12/2010 00:00:00,"6431391",1208,"G&E AUTOMATIC EQUIPMENT LTD"
"Bracknell Forest Council","http://opendatacommunities.org/id/unitary-authority/bracknell-forest","Bracknell Forest Council","00MA","Older People (Aged 65 or Over)","Residential Care Home Placements","Bridgewell Unit","Agency",21/11/2010 00:00:00,"6429910",1295.3,"ALEXANDER LEIGH CONSULTING"
"Bracknell Forest Council","http://opendatacommunities.org/id/unitary-authority/bracknell-forest","Bracknell Forest Council","00MA","Older People (Aged 65 or Over)","Residential Care Home Placements","Bridgewell Unit","Agency",28/11/2010 00:00:00,"6430782",920,"ALEXANDER LEIGH CONSULTING"
"Bracknell Forest Council","http://opendatacommunities.org/id/unitary-authority/bracknell-forest","Bracknell Forest Council","00MA","Older People (Aged 65 or Over)","Residential Care Home Placements","Bridgewell Unit","Agency",12/12/2010 00:00:00,"6431999",1264,"ALEXANDER LEIGH CONSULTING"
"Bracknell Forest Council","http://opendatacommunities.org/id/unitary-authority/bracknell-forest","Bracknell Forest Council","00MA","Recreation, Sports and Leisure","Retail Services, Catering & Licenced","Easthampstead Park Centre - Catering","Cleaning materials",02/12/2010 00:00:00,"6432489",686.58,"ALLIANCE DISPOSABLES LTD"
"Bracknell Forest Council","http://opendatacommunities.org/id/unitary-authority/bracknell-forest","Bracknell Forest Council","00MA","Physical Disability/Sensory Impairment","Assessment & Care Management","Older People & Long Term Conditions Team","Agency",01/12/2010 00:00:00,"6430629",1611.6,"ALLIED GLOBAL LTD"
"Bracknell Forest Council","http://opendatacommunities.org/id/unitary-authority/bracknell-forest","Bracknell Forest Council","00MA","Asylum Seekers","Unaccompanied Children","Asylum Seekers (UASC)","Contracted Services",01/12/2010 00:00:00,"6432339",1740,"ALMA SUPPORTED LODGINGS"
"Bracknell Forest Council","http://opendatacommunities.org/id/unitary-authority/bracknell-forest","Bracknell Forest Council","00MA","Asylum Seekers","Unaccompanied Children","Asylum Seekers (UASC)","Contracted Services",01/12/2010 00:00:00,"6432340",1740,"ALMA SUPPORTED LODGINGS"
"Bracknell Forest Council","http://opendatacommunities.org/id/unitary-authority/bracknell-forest","Bracknell Forest Council","00MA","Asylum Seekers","Unaccompanied Children","Asylum Seekers (UASC)","Contracted Services",01/12/2010 00:00:00,"6432341",1740,"ALMA SUPPORTED LODGINGS"
"Bracknell Forest Council","http://opendatacommunities.org/id/unitary-authority/bracknell-forest","Bracknell Forest Council","00MA","Asylum Seekers","Unaccompanied Children","Asylum Seekers (UASC)","Contracted Services",01/12/2010 00:00:00,"6432348",630,"ALMA SUPPORTED LODGINGS"
"Bracknell Forest Council","http://opendatacommunities.org/id/unitary-authority/bracknell-forest","Bracknell Forest Council","00MA","Vehicles &  Plant","Vehicles and Plant Summary Account","Vehicles and Plant","Operating Lease Charge",01/12/2010 00:00:00,"6432301",534.99,"ALPHABET (GB) LTD"
"Bracknell Forest Council","http://opendatacommunities.org/id/unitary-authority/bracknell-forest","Bracknell Forest Council","00MA","Older People (Aged 65 or Over)","Nursing Home Placements","Nursing Home Placements-Elderly","Contracted Services",21/12/2010 00:00:00,"30165583",11539.71,"AMBERBROOK MANAGEMENT LTD"
"Bracknell Forest Council","http://opendatacommunities.org/id/unitary-authority/bracknell-forest","Bracknell Forest Council","00MA","Older People (Aged 65 or Over)","Nursing Home Placements","Nursing Home Placements-Elderly","Contracted Services",21/12/2010 00:00:00,"30165583",2358.48,"AMBERBROOK MANAGEMENT LTD"
"Bracknell Forest Council","http://opendatacommunities.org/id/unitary-authority/bracknell-forest","Bracknell Forest Council","00MA","Older People (Aged 65 or Over)","Nursing Home Placements","Nursing Home Placements-Elderly","Contracted Services",21/12/2010 00:00:00,"30165583",5277.36,"AMBERBROOK MANAGEMENT LTD"
"Bracknell Forest Council","http://opendatacommunities.org/id/unitary-authority/bracknell-forest","Bracknell Forest Council","00MA","Older People (Aged 65 or Over)","Nursing Home Placements","Nursing Home Placements-Elderly","Contracted Services",21/12/2010 00:00:00,"30165583",4997.16,"AMBERBROOK MANAGEMENT LTD"
"Bracknell Forest Council","http://opendatacommunities.org/id/unitary-authority/bracknell-forest","Bracknell Forest Council","00MA","Older People (Aged 65 or Over)","Nursing Home Placements","Nursing Home Placements-Elderly","Contracted Services",21/12/2010 00:00:00,"30165583",2564.8,"AMBERBROOK MANAGEMENT LTD"
"Bracknell Forest Council","http://opendatacommunities.org/id/unitary-authority/bracknell-forest","Bracknell Forest Council","00MA","Older People (Aged 65 or Over)","Nursing Home Placements","Nursing Home Placements-Elderly","Contracted Services",21/12/2010 00:00:00,"30165583",2402.32,"AMBERBROOK MANAGEMENT LTD"
"Bracknell Forest Council","http://opendatacommunities.org/id/unitary-authority/bracknell-forest","Bracknell Forest Council","00MA","Older People (Aged 65 or Over)","Nursing Home Placements","Nursing Home Placements-Elderly","Contracted Services",21/12/2010 00:00:00,"30165583",5160.24,"AMBERBROOK MANAGEMENT LTD"
"Bracknell Forest Council","http://opendatacommunities.org/id/unitary-authority/bracknell-forest","Bracknell Forest Council","00MA","Older People (Aged 65 or Over)","Nursing Home Placements","Nursing Home Placements-Elderly","Contracted Services",21/12/2010 00:00:00,"30165583",2348.88,"AMBERBROOK MANAGEMENT LTD"
"Bracknell Forest Council","http://opendatacommunities.org/id/unitary-authority/bracknell-forest","Bracknell Forest Council","00MA","Older People (Aged 65 or Over)","Nursing Home Placements","Nursing Home Placements-Elderly","Contracted Services",21/12/2010 00:00:00,"30165583",2358.48,"AMBERBROOK MANAGEMENT LTD"
"Bracknell Forest Council","http://opendatacommunities.org/id/unitary-authority/bracknell-forest","Bracknell Forest Council","00MA","Older People (Aged 65 or Over)","Residential Care Home Placements","Residential Placements-Elderly","Contracted Services",21/12/2010 00:00:00,"30165583",1923.68,"AMBERBROOK MANAGEMENT LTD"
"Bracknell Forest Council","http://opendatacommunities.org/id/unitary-authority/bracknell-forest","Bracknell Forest Council","00MA","Older People (Aged 65 or Over)","Residential Care Home Placements","Residential Placements-Elderly","Contracted Services",21/12/2010 00:00:00,"30165583",-7488.61,"AMBERBROOK MANAGEMENT LTD"
"Bracknell Forest Council","http://opendatacommunities.org/id/unitary-authority/bracknell-forest","Bracknell Forest Council","00MA","Older People (Aged 65 or Over)","Residential Care Home Placements","Residential Placements-Elderly","Contracted Services",21/12/2010 00:00:00,"30165583",1923.68,"AMBERBROOK MANAGEMENT LTD"
"Bracknell Forest Council","http://opendatacommunities.org/id/unitary-authority/bracknell-forest","Bracknell Forest Council","00MA","Older People (Aged 65 or Over)","Residential Care Home Placements","Residential Placements-Elderly","Contracted Services",21/12/2010 00:00:00,"30165583",1923.68,"AMBERBROOK MANAGEMENT LTD"
"Bracknell Forest Council","http://opendatacommunities.org/id/unitary-authority/bracknell-forest","Bracknell Forest Council","00MA","Older People (Aged 65 or Over)","Residential Care Home Placements","Residential Placements-Elderly","Contracted Services",21/12/2010 00:00:00,"30165583",1923.68,"AMBERBROOK MANAGEMENT LTD"
"Bracknell Forest Council","http://opendatacommunities.org/id/unitary-authority/bracknell-forest","Bracknell Forest Council","00MA","Older People (Aged 65 or Over)","Residential Care Home Placements","Residential Placements-Elderly","Contracted Services",21/12/2010 00:00:00,"30165583",1923.68,"AMBERBROOK MANAGEMENT LTD"
"Bracknell Forest Council","http://opendatacommunities.org/id/unitary-authority/bracknell-forest","Bracknell Forest Council","00MA","Older People (Aged 65 or Over)","Residential Care Home Placements","Residential Placements-Elderly","Contracted Services",21/12/2010 00:00:00,"30165583",1699.12,"AMBERBROOK MANAGEMENT LTD"
"Bracknell Forest Council","http://opendatacommunities.org/id/unitary-authority/bracknell-forest","Bracknell Forest Council","00MA","Older People (Aged 65 or Over)","Residential Care Home Placements","Residential Placements-Elderly","Contracted Services",21/12/2010 00:00:00,"30165583",1819.12,"AMBERBROOK MANAGEMENT LTD"
"Bracknell Forest Council","http://opendatacommunities.org/id/unitary-authority/bracknell-forest","Bracknell Forest Council","00MA","Older People (Aged 65 or Over)","Residential Care Home Placements","Residential Placements-Elderly","Contracted Services",21/12/2010 00:00:00,"30165583",1923.68,"AMBERBROOK MANAGEMENT LTD"
"Bracknell Forest Council","http://opendatacommunities.org/id/unitary-authority/bracknell-forest","Bracknell Forest Council","00MA","Recreation, Sports and Leisure","Retail Services, Catering & Licenced","Easthampstead Park Conference Centre","Grounds Maintenance Costs",19/11/2010 00:00:00,"6431595",1480.83,"AMBIUS"
"Bracknell Forest Council","http://opendatacommunities.org/id/unitary-authority/bracknell-forest","Bracknell Forest Council","00MA","Education Management & Support Service","School Related Expenditure","HTS Interim","Taxi Fares - Home/School Transport",30/11/2010 00:00:00,"6432541",2235.2,"AMK CHAUFFEUR DRIVE LIMITED"
"Bracknell Forest Council","http://opendatacommunities.org/id/unitary-authority/bracknell-forest","Bracknell Forest Council","00MA","Education Management & Support Service","School Related Expenditure","HTS Interim","Taxi Fares - Home/School Transport",30/11/2010 00:00:00,"6432542",2235.2,"AMK CHAUFFEUR DRIVE LIMITED"
"Bracknell Forest Council","http://opendatacommunities.org/id/unitary-authority/bracknell-forest","Bracknell Forest Council","00MA","Education Management & Support Service","School Related Expenditure","HTS Interim","Taxi Fares - Home/School Transport",30/11/2010 00:00:00,"6432543",2235.2,"AMK CHAUFFEUR DRIVE LIMITED"
"Bracknell Forest Council","http://opendatacommunities.org/id/unitary-authority/bracknell-forest","Bracknell Forest Council","00MA","Education Management & Support Service","School Related Expenditure","HTS Interim","Taxi Fares - Home/School Transport",30/11/2010 00:00:00,"6432544",3399.44,"AMK CHAUFFEUR DRIVE LIMITED"
"Bracknell Forest Council","http://opendatacommunities.org/id/unitary-authority/bracknell-forest","Bracknell Forest Council","00MA","Education Management & Support Service","School Related Expenditure","HTS Interim","Taxi Fares - Home/School Transport",30/11/2010 00:00:00,"6432545",3399.44,"AMK CHAUFFEUR DRIVE LIMITED"
"Bracknell Forest Council","http://opendatacommunities.org/id/unitary-authority/bracknell-forest","Bracknell Forest Council","00MA","Recreation, Sports and Leisure","Retail Services, Catering & Licenced","Easthampstead Park Centre - Catering","Cost of Goods Sold",26/11/2010 00:00:00,"6430513",1233.36,"AMS WHOLESALE"
"Bracknell Forest Council","http://opendatacommunities.org/id/unitary-authority/bracknell-forest","Bracknell Forest Council","00MA","Recreation, Sports and Leisure","Retail Services, Catering & Licenced","Easthampstead Park Centre - Catering","Cost of Goods Sold",13/11/2010 00:00:00,"6430514",1078.24,"AMS WHOLESALE"
"Bracknell Forest Council","http://opendatacommunities.org/id/unitary-authority/bracknell-forest","Bracknell Forest Council","00MA","Recreation, Sports and Leisure","Retail Services, Catering & Licenced","Easthampstead Park Centre - Catering","Cost of Goods Sold",04/12/2010 00:00:00,"6431237",822.81,"AMS WHOLESALE"
"Bracknell Forest Council","http://opendatacommunities.org/id/unitary-authority/bracknell-forest","Bracknell Forest Council","00MA","Recreation, Sports and Leisure","Retail Services, Catering & Licenced","Easthampstead Park Centre - Catering","Cost of Goods Sold",11/12/2010 00:00:00,"6432486",1470.24,"AMS WHOLESALE"
"Bracknell Forest Council","http://opendatacommunities.org/id/unitary-authority/bracknell-forest","Bracknell Forest Council","00MA","Recreation, Sports and Leisure","Golf Courses","Leisure DSO - Downshire Catering","Cost of Goods Sold",18/12/2010 00:00:00,"6432756",553.44,"AMS WHOLESALE"
"Bracknell Forest Council","http://opendatacommunities.org/id/unitary-authority/bracknell-forest","Bracknell Forest Council","00MA","","","Disabled Facilities Grant","Grants Paid",29/11/2010 00:00:00,"6430364",2523.88,"ANCHOR TRUST"
"Bracknell Forest Council","http://opendatacommunities.org/id/unitary-authority/bracknell-forest","Bracknell Forest Council","00MA","","","Disabled Facilities Grant","Grants Paid",29/11/2010 00:00:00,"6430366",673.5,"ANCHOR TRUST"
"Bracknell Forest Council","http://opendatacommunities.org/id/unitary-authority/bracknell-forest","Bracknell Forest Council","00MA","","","Disabled Facilities Grant","Grants Paid",29/11/2010 00:00:00,"6430368",673.5,"ANCHOR TRUST"
"Bracknell Forest Council","http://opendatacommunities.org/id/unitary-authority/bracknell-forest","Bracknell Forest Council","00MA","","","Disabled Facilities Grant","Grants Paid",29/11/2010 00:00:00,"6430374",1448.7,"ANCHOR TRUST"
"Bracknell Forest Council","http://opendatacommunities.org/id/unitary-authority/bracknell-forest","Bracknell Forest Council","00MA","","","Disabled Facilities Grant","Grants Paid",07/12/2010 00:00:00,"6431013",1196.25,"ANCHOR TRUST"
"Bracknell Forest Council","http://opendatacommunities.org/id/unitary-authority/bracknell-forest","Bracknell Forest Council","00MA","","","Disabled Facilities Grant","Grants Paid",08/12/2010 00:00:00,"6431360",954.75,"ANCHOR TRUST"
"Bracknell Forest Council","http://opendatacommunities.org/id/unitary-authority/bracknell-forest","Bracknell Forest Council","00MA","","","Disabled Facilities Grant","Grants Paid",17/12/2010 00:00:00,"6432194",1773.45,"ANCHOR TRUST"
"Bracknell Forest Council","http://opendatacommunities.org/id/unitary-authority/bracknell-forest","Bracknell Forest Council","00MA","Older People (Aged 65 or Over)","Residential Care Home Placements","Residential Placements-Elderly","Contracted Services",21/12/2010 00:00:00,"30165583",1587.12,"ANCHOR TRUST"
"Bracknell Forest Council","http://opendatacommunities.org/id/unitary-authority/bracknell-forest","Bracknell Forest Council","00MA","Central Support Services - COF","Personnel","Training Courses","Training Costs",15/12/2010 00:00:00,"6432435",750,"ANDERSON STOCKLEY ACCREDITED TRAINING LIMITED"
"Bracknell Forest Council","http://opendatacommunities.org/id/unitary-authority/bracknell-forest","Bracknell Forest Council","00MA","Learning Disability (under 65)","Direct Payments - LD","Direct Payments - LD","Direct Payments to Clients",07/12/2010 00:00:00,"30164962",835.32,"REDACTED PERSONAL DATA"
"Bracknell Forest Council","http://opendatacommunities.org/id/unitary-authority/bracknell-forest","Bracknell Forest Council","00MA","Learning Disability (under 65)","Direct Payments - LD","Direct Payments - LD","Direct Payments to Clients",22/12/2010 00:00:00,"30165698",835.32,"REDACTED PERSONAL DATA"
"Bracknell Forest Council","http://opendatacommunities.org/id/unitary-authority/bracknell-forest","Bracknell Forest Council","00MA","Older People (Aged 65 or Over)","Home Care","Home Care-Elderly","Contracted Services",08/12/2010 00:00:00,"30165047",561.6,"ANGELCARE NURSING AGENCY"
"Bracknell Forest Council","http://opendatacommunities.org/id/unitary-authority/bracknell-forest","Bracknell Forest Council","00MA","Older People (Aged 65 or Over)","Home Care","Home Care-Elderly","Contracted Services",08/12/2010 00:00:00,"30165047",28.8,"ANGELCARE NURSING AGENCY"
"Bracknell Forest Council","http://opendatacommunities.org/id/unitary-authority/bracknell-forest","Bracknell Forest Council","00MA","Older People (Aged 65 or Over)","Home Care","Home Care-Elderly","Contracted Services",08/12/2010 00:00:00,"30165047",1612.8,"ANGELCARE NURSING AGENCY"
"Bracknell Forest Council","http://opendatacommunities.org/id/unitary-authority/bracknell-forest","Bracknell Forest Council","00MA","Older People (Aged 65 or Over)","Home Care","Home Care-Elderly","Contracted Services",08/12/2010 00:00:00,"30165047",792,"ANGELCARE NURSING AGENCY"
"Bracknell Forest Council","http://opendatacommunities.org/id/unitary-authority/bracknell-forest","Bracknell Forest Council","00MA","Older People (Aged 65 or Over)","Home Care","Home Care-Elderly","Contracted Services",08/12/2010 00:00:00,"30165047",201.6,"ANGELCARE NURSING AGENCY"
"Bracknell Forest Council","http://opendatacommunities.org/id/unitary-authority/bracknell-forest","Bracknell Forest Council","00MA","Older People (Aged 65 or Over)","Home Care","Home Care-Elderly","Contracted Services",08/12/2010 00:00:00,"30165047",1814.4,"ANGELCARE NURSING AGENCY"
"Bracknell Forest Council","http://opendatacommunities.org/id/unitary-authority/bracknell-forest","Bracknell Forest Council","00MA","Older People (Aged 65 or Over)","Home Care","Home Care-Elderly","Contracted Services",08/12/2010 00:00:00,"30165047",1612.8,"ANGELCARE NURSING AGENCY"
"Bracknell Forest Council","http://opendatacommunities.org/id/unitary-authority/bracknell-forest","Bracknell Forest Council","00MA","Learning Disability (under 65)","Homecare","Supported Living (Homecare) LD","Contracted Services",08/12/2010 00:00:00,"30165047",201.6,"ANGELCARE NURSING AGENCY"
"Bracknell Forest Council","http://opendatacommunities.org/id/unitary-authority/bracknell-forest","Bracknell Forest Council","00MA","Mental Health Needs (Under 65)","Homecare","Home Care Mental Illness","Contracted Services",08/12/2010 00:00:00,"30165047",172.8,"ANGELCARE NURSING AGENCY"
"Bracknell Forest Council","http://opendatacommunities.org/id/unitary-authority/bracknell-forest","Bracknell Forest Council","00MA","Older People (Aged 65 or Over)","Home Care","Supported Living (Homecare) LD over 65","Contracted Services",08/12/2010 00:00:00,"30165047",230.4,"ANGELCARE NURSING AGENCY"
"Bracknell Forest Council","http://opendatacommunities.org/id/unitary-authority/bracknell-forest","Bracknell Forest Council","00MA","Holding Accounts in Budget Book COF","Corporate Serv - Reprographics & Printing","Reprographics & Printing","Equipment - R&M",04/01/2011 00:00:00,"6431799",2747,"APEX DIGITAL GRAPHICS LTD"
"Bracknell Forest Council","http://opendatacommunities.org/id/unitary-authority/bracknell-forest","Bracknell Forest Council","00MA","Recreation, Sports and Leisure","Indoor Sports & Recreation Facilities","Leisure DSO - Leisure Centre","Training Costs",06/12/2010 00:00:00,"6432575",746.55,"ARCO  LIMITED"
"Bracknell Forest Council","http://opendatacommunities.org/id/unitary-authority/bracknell-forest","Bracknell Forest Council","00MA","","","Housing Tfer - New South Bracknell Youth Centre","Other Equipment",10/10/2010 00:00:00,"6431754",567.96,"ARGOS BUSINESS SOLUTIONS"
"Bracknell Forest Council","http://opendatacommunities.org/id/unitary-authority/bracknell-forest","Bracknell Forest Council","00MA","Older People (Aged 65 or Over)","Residential Care Home Placements","Ladybank EPH","Equipment - R&M",14/07/2010 00:00:00,"6430605",530.54,"ARJO LTD"
"Bracknell Forest Council","http://opendatacommunities.org/id/unitary-authority/bracknell-forest","Bracknell Forest Council","00MA","Vehicles &  Plant","Vehicles and Plant Summary Account","Fuel Card Holding Account","Petrol",01/12/2010 00:00:00,"6431365",7107.92,"ARVAL UK LTD"
"Bracknell Forest Council","http://opendatacommunities.org/id/unitary-authority/bracknell-forest","Bracknell Forest Council","00MA","Non-School Funding","Pre-School Education","Early Years and Childcare","Grants and Donations",21/12/2010 00:00:00,"30165681",7996.34,"ASCOT & CRANBOURNE PRE-SCHOOL"
"Bracknell Forest Council","http://opendatacommunities.org/id/unitary-authority/bracknell-forest","Bracknell Forest Council","00MA","Non-School Funding","Pre-School Education","Early Years and Childcare","Grants and Donations",21/12/2010 00:00:00,"30165681",3176.25,"ASCOT BAPTIST CHURCH/PRE SCH."
"Bracknell Forest Council","http://opendatacommunities.org/id/unitary-authority/bracknell-forest","Bracknell Forest Council","00MA","Mental Health Needs (Under 65)","Nursing Home Placements","Nursing Home Placements-Mental Illness","Contracted Services",21/12/2010 00:00:00,"30165583",2500,"ASCOT NURSING HOME LTD"
"Bracknell Forest Council","http://opendatacommunities.org/id/unitary-authority/bracknell-forest","Bracknell Forest Council","00MA","Physical Disability/Sensory Impairment","Nursing Home Placements","Nursing Home Placements-Physical Disabty","Contracted Services",21/12/2010 00:00:00,"30165583",4246.48,"ASCOT NURSING HOME LTD"
"Bracknell Forest Council","http://opendatacommunities.org/id/unitary-authority/bracknell-forest","Bracknell Forest Council","00MA","Older People (Aged 65 or Over)","Nursing Home Placements","Nursing Home Placements MH 65 and Over","Contracted Services",21/12/2010 00:00:00,"30165583",4067.68,"ASCOT NURSING HOME LTD"
"Bracknell Forest Council","http://opendatacommunities.org/id/unitary-authority/bracknell-forest","Bracknell Forest Council","00MA","Older People (Aged 65 or Over)","Nursing Home Placements","Nursing Home Placements MH 65 and Over","Contracted Services",21/12/2010 00:00:00,"30165583",3619.64,"ASCOT NURSING HOME LTD"
"Bracknell Forest Council","http://opendatacommunities.org/id/unitary-authority/bracknell-forest","Bracknell Forest Council","00MA","Older People (Aged 65 or Over)","Nursing Home Placements","Nursing Home Placements-Elderly","Contracted Services",21/12/2010 00:00:00,"30165583",4926.08,"ASCOT RESIDENTIAL HOMES LTD"
"Bracknell Forest Council","http://opendatacommunities.org/id/unitary-authority/bracknell-forest","Bracknell Forest Council","00MA","Older People (Aged 65 or Over)","Nursing Home Placements","Nursing Home Placements-Elderly","Contracted Services",21/12/2010 00:00:00,"30165583",2358.48,"ASCOT RESIDENTIAL HOMES LTD"
"Bracknell Forest Council","http://opendatacommunities.org/id/unitary-authority/bracknell-forest","Bracknell Forest Council","00MA","Older People (Aged 65 or Over)","Nursing Home Placements","Nursing Home Placements-Elderly","Contracted Services",21/12/2010 00:00:00,"30165583",2567.6,"ASCOT RESIDENTIAL HOMES LTD"
"Bracknell Forest Council","http://opendatacommunities.org/id/unitary-authority/bracknell-forest","Bracknell Forest Council","00MA","Older People (Aged 65 or Over)","Nursing Home Placements","Nursing Home Placements-Elderly","Contracted Services",21/12/2010 00:00:00,"30165583",2358.48,"ASCOT RESIDENTIAL HOMES LTD"
"Bracknell Forest Council","http://opendatacommunities.org/id/unitary-authority/bracknell-forest","Bracknell Forest Council","00MA","Older People (Aged 65 or Over)","Nursing Home Placements","Nursing Home Placements-Elderly","Contracted Services",21/12/2010 00:00:00,"30165583",2358.48,"ASCOT RESIDENTIAL HOMES LTD"
"Bracknell Forest Council","http://opendatacommunities.org/id/unitary-authority/bracknell-forest","Bracknell Forest Council","00MA","Older People (Aged 65 or Over)","Nursing Home Placements","Nursing Home Placements-Elderly","Contracted Services",21/12/2010 00:00:00,"30165583",2306.12,"ASCOT RESIDENTIAL HOMES LTD"
"Bracknell Forest Council","http://opendatacommunities.org/id/unitary-authority/bracknell-forest","Bracknell Forest Council","00MA","Older People (Aged 65 or Over)","Residential Care Home Placements","Residential Placements-Elderly","Contracted Services",21/12/2010 00:00:00,"30165583",1923.68,"ASCOT RESIDENTIAL HOMES LTD"
"Bracknell Forest Council","http://opendatacommunities.org/id/unitary-authority/bracknell-forest","Bracknell Forest Council","00MA","Older People (Aged 65 or Over)","Residential Care Home Placements","Residential Placements-Elderly","Contracted Services",21/12/2010 00:00:00,"30165583",1819.12,"ASCOT RESIDENTIAL HOMES LTD"
"Bracknell Forest Council","http://opendatacommunities.org/id/unitary-authority/bracknell-forest","Bracknell Forest Council","00MA","Older People (Aged 65 or Over)","Residential Care Home Placements","Residential Placements MH 65 and Over","Contracted Services",21/12/2010 00:00:00,"30165583",2800,"ASCOT RESIDENTIAL HOMES LTD"
"Bracknell Forest Council","http://opendatacommunities.org/id/unitary-authority/bracknell-forest","Bracknell Forest Council","00MA","Recreation, Sports and Leisure","Golf Courses","Leisure DSO - Downshire Catering","Catering Consumables",26/11/2010 00:00:00,"6431269",591,"ASCOT WHOLESALE"
"Bracknell Forest Council","http://opendatacommunities.org/id/unitary-authority/bracknell-forest","Bracknell Forest Council","00MA","Older People (Aged 65 or Over)","Nursing Home Placements","Nursing Home Placements-Elderly","Contracted Services",21/12/2010 00:00:00,"30165583",2358.48,"ASHBOURNE HOMES"
"Bracknell Forest Council","http://opendatacommunities.org/id/unitary-authority/bracknell-forest","Bracknell Forest Council","00MA","Older People (Aged 65 or Over)","Nursing Home Placements","Nursing Home Placements-Elderly","Contracted Services",21/12/2010 00:00:00,"30165583",1431.93,"ASHBOURNE HOMES"
"Bracknell Forest Council","http://opendatacommunities.org/id/unitary-authority/bracknell-forest","Bracknell Forest Council","00MA","Older People (Aged 65 or Over)","Nursing Home Placements","Nursing Home Placements-Elderly","Contracted Services",21/12/2010 00:00:00,"30165583",2358.48,"ASHBOURNE HOMES"
"Bracknell Forest Council","http://opendatacommunities.org/id/unitary-authority/bracknell-forest","Bracknell Forest Council","00MA","Older People (Aged 65 or Over)","Nursing Home Placements","Nursing Home Placements-Elderly","Contracted Services",21/12/2010 00:00:00,"30165583",2336.84,"ASHBOURNE HOMES"
"Bracknell Forest Council","http://opendatacommunities.org/id/unitary-authority/bracknell-forest","Bracknell Forest Council","00MA","Older People (Aged 65 or Over)","Nursing Home Placements","Nursing Home Placements-Elderly","Contracted Services",21/12/2010 00:00:00,"30165583",2360.04,"ASHBOURNE HOMES"
"Bracknell Forest Council","http://opendatacommunities.org/id/unitary-authority/bracknell-forest","Bracknell Forest Council","00MA","Older People (Aged 65 or Over)","Nursing Home Placements","Nursing Home Placements-Elderly","Contracted Services",21/12/2010 00:00:00,"30165583",-90.32,"ASHBOURNE HOMES"
"Bracknell Forest Council","http://opendatacommunities.org/id/unitary-authority/bracknell-forest","Bracknell Forest Council","00MA","Older People (Aged 65 or Over)","Nursing Home Placements","Nursing Home Placements-Elderly","Contracted Services",21/12/2010 00:00:00,"30165583",2358.48,"ASHBOURNE HOMES"
"Bracknell Forest Council","http://opendatacommunities.org/id/unitary-authority/bracknell-forest","Bracknell Forest Council","00MA","","","Help to Buy a Home (Cash Incentive Scheme)","Grants Paid",25/11/2010 00:00:00,"6430419",36800,"ASHFORDS"
"Bracknell Forest Council","http://opendatacommunities.org/id/unitary-authority/bracknell-forest","Bracknell Forest Council","00MA","Libraries","Stock Ordering, Cataloguing & Distribution","Library Book Fund","Audio/Visual materials",22/11/2010 00:00:00,"6430167",1479.44,"ASKEWS"
"Bracknell Forest Council","http://opendatacommunities.org/id/unitary-authority/bracknell-forest","Bracknell Forest Council","00MA","Economic Development","Economic Development","Town Centre Management","Grants and Donations",19/11/2010 00:00:00,"6430351",570,"ASSOCIATION OF TOWN CENTRE MANAGEMENT"
"Bracknell Forest Council","http://opendatacommunities.org/id/unitary-authority/bracknell-forest","Bracknell Forest Council","00MA","Structural Maintenance","Bridges","Bridges","Consultants Fees",07/12/2010 00:00:00,"6432396",10508.84,"ATKINS LTD"
"Bracknell Forest Council","http://opendatacommunities.org/id/unitary-authority/bracknell-forest","Bracknell Forest Council","00MA","Older People (Aged 65 or Over)","Nursing Home Placements","Nursing Home Placements-Elderly","Contracted Services",21/12/2010 00:00:00,"30165583",2638.68,"ATKINSONS PRIVATE HOMES"
"Bracknell Forest Council","http://opendatacommunities.org/id/unitary-authority/bracknell-forest","Bracknell Forest Council","00MA","Older People (Aged 65 or Over)","Nursing Home Placements","Nursing Home Placements-Elderly","Contracted Services",21/12/2010 00:00:00,"30165583",2638.68,"ATKINSONS PRIVATE HOMES"
"Bracknell Forest Council","http://opendatacommunities.org/id/unitary-authority/bracknell-forest","Bracknell Forest Council","00MA","Older People (Aged 65 or Over)","Nursing Home Placements","Nursing Home Placements-Elderly","Contracted Services",21/12/2010 00:00:00,"30165583",3019.84,"ATKINSONS PRIVATE HOMES"
"Bracknell Forest Council","http://opendatacommunities.org/id/unitary-authority/bracknell-forest","Bracknell Forest Council","00MA","Learning Disability (under 65)","Residential Care Home Placements","Sec 28A - Rsdntl Plcmnts - Learning Disa","Contracted Services",21/12/2010 00:00:00,"30165583",7825.72,"ATLAS PROJECT TEAM LTD"
"Bracknell Forest Council","http://opendatacommunities.org/id/unitary-authority/bracknell-forest","Bracknell Forest Council","00MA","Learning Disability (under 65)","Residential Care Home Placements","Sec 28A - Rsdntl Plcmnts - Learning Disa","Contracted Services",21/12/2010 00:00:00,"30165583",8326.84,"ATLAS PROJECT TEAM LTD"
"Bracknell Forest Council","http://opendatacommunities.org/id/unitary-authority/bracknell-forest","Bracknell Forest Council","00MA","Central Support Services - COF","Fleet & Workshops","Green Travel Issues","Equipment - Purchase",01/12/2010 00:00:00,"6431391",-604,"G&E AUTOMATIC EQUIPMENT LTD"
"Bracknell Forest Council","http://opendatacommunities.org/id/unitary-authority/bracknell-forest","Bracknell Forest Council","00MA","Support Services & Management Costs","Management and Administration","Social Services Finance","Cash Collection Charges",02/11/2010 00:00:00,"6430845",603.42,"G4S CASH SOLUTIONS (UK) LIMITED"
"Bracknell Forest Council","http://opendatacommunities.org/id/unitary-authority/bracknell-forest","Bracknell Forest Council","00MA","Support Services & Management Costs","Management and Administration","Social Services Finance","Cash Collection Charges",02/12/2010 00:00:00,"6432292",627.6,"G4S CASH SOLUTIONS (UK) LIMITED"
"Bracknell Forest Council","http://opendatacommunities.org/id/unitary-authority/bracknell-forest","Bracknell Forest Council","00MA","Central Support Services - COF","Customer Service Centre","Cashiers Services","Cash Collection Charges",02/12/2010 00:00:00,"6432292",762.73,"G4S CASH SOLUTIONS (UK) LIMITED"
"Bracknell Forest Council","http://opendatacommunities.org/id/unitary-authority/bracknell-forest","Bracknell Forest Council","00MA","Central Support Services - COF","Customer Service Centre","Cashiers Services","Cash Collection Charges",02/12/2010 00:00:00,"6432397",1376.71,"G4S CASH SOLUTIONS (UK) LIMITED"
"Bracknell Forest Council","http://opendatacommunities.org/id/unitary-authority/bracknell-forest","Bracknell Forest Council","00MA","","","Garth Hill - ICT Works","IT Hardware",04/11/2010 00:00:00,"6432692",205760,"GAIA TECHNOLOGIES"
"Bracknell Forest Council","http://opendatacommunities.org/id/unitary-authority/bracknell-forest","Bracknell Forest Council","00MA","Non-School Funding","Pre-School Education","The Chestnuts Children's Centre","Learning Resources - Purchase",23/11/2010 00:00:00,"6430398",683.2,"GALT EDUCATIONAL & PRE-SCHOOL"
"Bracknell Forest Council","http://opendatacommunities.org/id/unitary-authority/bracknell-forest","Bracknell Forest Council","00MA","","","Water Hygiene","Construction - Contract Payments",25/11/2010 00:00:00,"6430789",4538.99,"GARDNER MECHANICAL SERV. LTD"
"Bracknell Forest Council","http://opendatacommunities.org/id/unitary-authority/bracknell-forest","Bracknell Forest Council","00MA","","","Improvements & Capitalised Repairs (Council Wide)","Construction - Contract Payments",30/10/2010 00:00:00,"6430791",17540,"GARDNER MECHANICAL SERV. LTD"
"Bracknell Forest Council","http://opendatacommunities.org/id/unitary-authority/bracknell-forest","Bracknell Forest Council","00MA","","","Planned Maintenance (Leisure)","Construction - Contract Payments",30/10/2010 00:00:00,"6431637",807.52,"GARDNER MECHANICAL SERV. LTD"
"Bracknell Forest Council","http://opendatacommunities.org/id/unitary-authority/bracknell-forest","Bracknell Forest Council","00MA","","","Improvements & Capitalised Repairs (Council Wide)","Construction - Contract Payments",10/12/2010 00:00:00,"6431932",2530.25,"GARDNER MECHANICAL SERV. LTD"
"Bracknell Forest Council","http://opendatacommunities.org/id/unitary-authority/bracknell-forest","Bracknell Forest Council","00MA","Education Management & Support Service","Education Department - Other","Education Library Service","Learning Resources - Purchase",03/12/2010 00:00:00,"6431325",1058.73,"GARDNERS BOOKS LTD"
"Bracknell Forest Council","http://opendatacommunities.org/id/unitary-authority/bracknell-forest","Bracknell Forest Council","00MA","Education Management & Support Service","Education Department - Other","Education Library Service","Learning Resources - Purchase",07/12/2010 00:00:00,"6432142",1473.81,"GARDNERS BOOKS LTD"
"Bracknell Forest Council","http://opendatacommunities.org/id/unitary-authority/bracknell-forest","Bracknell Forest Council","00MA","Non-School Funding","Pre-School Education","Early Years and Childcare","Grants and Donations",21/12/2010 00:00:00,"30165681",5935.38,"GARTH UNDER FIVES NURSERY"
"Bracknell Forest Council","http://opendatacommunities.org/id/unitary-authority/bracknell-forest","Bracknell Forest Council","00MA","Corporate Management COF","Corporate Management COF","Cserv. - Tax Making & Statutory Account","Statutory Auditors Fees",03/12/2010 00:00:00,"6431359",39025.95,"AUDIT COMMISSION"
"Bracknell Forest Council","http://opendatacommunities.org/id/unitary-authority/bracknell-forest","Bracknell Forest Council","00MA","Learning Disability (under 65)","Residential Care Home Placements","Residential Placements-Lrng Disab","Contracted Services",21/12/2010 00:00:00,"30165583",5260.52,"AUTISM SPECIALISED CARE HOMES LTD"
"Bracknell Forest Council","http://opendatacommunities.org/id/unitary-authority/bracknell-forest","Bracknell Forest Council","00MA","Local Tax Collection","Council Tax Collection","Council Tax","Office Stationery",10/12/2010 00:00:00,"6433020",527.4,"AUTOMAIL ENVELOPES LTD"
"Bracknell Forest Council","http://opendatacommunities.org/id/unitary-authority/bracknell-forest","Bracknell Forest Council","00MA","Learning Disability (under 65)","Residential Care Home Placements","Residential Placements-Lrng Disab","Contracted Services",21/12/2010 00:00:00,"30165583",6025.84,"AVON AUTISTIC FOUNDATION"
"Bracknell Forest Council","http://opendatacommunities.org/id/unitary-authority/bracknell-forest","Bracknell Forest Council","00MA","Cemeteries, Crematoria & Mortuary Services","Cemeteries & Crematorium","Easthampstead Park Cemetery &Crematorium","Contract Cleaning",22/11/2010 00:00:00,"6430403",900,"BAC CLEANING SERVICES"
"Bracknell Forest Council","http://opendatacommunities.org/id/unitary-authority/bracknell-forest","Bracknell Forest Council","00MA","Recreation, Sports and Leisure","Indoor Sports & Recreation Facilities","Leisure DSO - Leisure Centre","Materials",07/12/2010 00:00:00,"6431201",3421,"BADGER BADGES"
"Bracknell Forest Council","http://opendatacommunities.org/id/unitary-authority/bracknell-forest","Bracknell Forest Council","00MA","Street Lighting (including Energy Costs)","Street Lighting","Lighting","Contracted Services",30/11/2010 00:00:00,"6431788",59265.23,"BALFOUR BEATTY INFRASTRUCTURE SERVICES"
"Bracknell Forest Council","http://opendatacommunities.org/id/unitary-authority/bracknell-forest","Bracknell Forest Council","00MA","Recreation, Sports and Leisure","Golf Courses","Leisure DSO - Downshire Golf Course","Materials",09/12/2010 00:00:00,"6432749",741.96,"BANKS AMENITY PRODUCTS LTD"
"Bracknell Forest Council","http://opendatacommunities.org/id/unitary-authority/bracknell-forest","Bracknell Forest Council","00MA","Special Schools","Other Special Related Expenditure","Supporting Special Educational Needs","Voluntary Sector Service Providers",11/11/2010 00:00:00,"6428967",2244,"BARNARDO SERVICES LTD"
"Bracknell Forest Council","http://opendatacommunities.org/id/unitary-authority/bracknell-forest","Bracknell Forest Council","00MA","Special Schools","Other Special Related Expenditure","Supporting Special Educational Needs","Voluntary Sector Service Providers",13/12/2010 00:00:00,"6432673",-10322.8,"BARNARDO SERVICES LTD"
"Bracknell Forest Council","http://opendatacommunities.org/id/unitary-authority/bracknell-forest","Bracknell Forest Council","00MA","Education Management & Support Service","Learning, Achievement & Libraries","Education Health Partnerships","Externally Purchased Professional Services-curric",15/12/2010 00:00:00,"6432466",1500,"BEATBULLYING SERVICES LTD"
"Bracknell Forest Council","http://opendatacommunities.org/id/unitary-authority/bracknell-forest","Bracknell Forest Council","00MA","Older People (Aged 65 or Over)","Nursing Home Placements","Nursing Home Placements-Elderly","Contracted Services",21/12/2010 00:00:00,"30165583",1919.52,"BEAUMONT LODGE"
"Bracknell Forest Council","http://opendatacommunities.org/id/unitary-authority/bracknell-forest","Bracknell Forest Council","00MA","Physical Disability/Sensory Impairment","Nursing Home Placements","Nursing Home Placements-Physical Disabty","Contracted Services",21/12/2010 00:00:00,"30165583",2165.2,"BEAUMONT LODGE"
"Bracknell Forest Council","http://opendatacommunities.org/id/unitary-authority/bracknell-forest","Bracknell Forest Council","00MA","Physical Disability/Sensory Impairment","Direct Payments","Direct Payments - PD","Direct Payments to Clients",07/12/2010 00:00:00,"30164962",1828.6,"REDACTED PERSONAL DATA"
"Bracknell Forest Council","http://opendatacommunities.org/id/unitary-authority/bracknell-forest","Bracknell Forest Council","00MA","Physical Disability/Sensory Impairment","Direct Payments","Direct Payments - PD","Direct Payments to Clients",22/12/2010 00:00:00,"30165698",1828.6,"REDACTED PERSONAL DATA"
"Bracknell Forest Council","http://opendatacommunities.org/id/unitary-authority/bracknell-forest","Bracknell Forest Council","00MA","","","South Hill Park Ground Improvements","Construction - Contract Payments",02/12/2010 00:00:00,"6431195",106000,"GAVIN JONES LTD"
"Bracknell Forest Council","http://opendatacommunities.org/id/unitary-authority/bracknell-forest","Bracknell Forest Council","00MA","Other Adult Services","Substance Abuse (Addictions)","PT Residential Rehab","Contracted Services",01/12/2010 00:00:00,"6430561",600,"GILEAD FOUNDATIONS"
"Bracknell Forest Council","http://opendatacommunities.org/id/unitary-authority/bracknell-forest","Bracknell Forest Council","00MA","Special Schools","Other Special Related Expenditure","SEN Staff","Agency",03/11/2010 00:00:00,"6431149",7700,"REDACTED PERSONAL DATA"
"Bracknell Forest Council","http://opendatacommunities.org/id/unitary-authority/bracknell-forest","Bracknell Forest Council","00MA","Unapportionable Central Overheads","Unapportionable Central Overheads","Smartcard Networking Forum","Consultants Fees",13/12/2010 00:00:00,"6432006",650,"GINGER NUT"
"Bracknell Forest Council","http://opendatacommunities.org/id/unitary-authority/bracknell-forest","Bracknell Forest Council","00MA","","","Replacement Revenue & Benefits System","IT Consultants",13/12/2010 00:00:00,"6432694",1718,"GLOBAL KNOWLEDGE NETWORK TRAINING LIMITED"
"Bracknell Forest Council","http://opendatacommunities.org/id/unitary-authority/bracknell-forest","Bracknell Forest Council","00MA","","","Extended School Budget Only","Consultant Fees",09/11/2010 00:00:00,"6431390",890,"GOOD DESIGN PRACTICE UK"
"Bracknell Forest Council","http://opendatacommunities.org/id/unitary-authority/bracknell-forest","Bracknell Forest Council","00MA","Non-School Funding","Pre-School Education","SSEYCG Outcomes, Quality & Inclusion","Approved Conference Fees & Expenses",08/12/2010 00:00:00,"6432450",610,"GOVNET COMMUNICATIONS"
"Bracknell Forest Council","http://opendatacommunities.org/id/unitary-authority/bracknell-forest","Bracknell Forest Council","00MA","Older People (Aged 65 or Over)","Residential Care Home Placements","Residential Placements-Elderly","Contracted Services",21/12/2010 00:00:00,"30165583",1923.68,"GRACELAND CARE HOME"
"Bracknell Forest Council","http://opendatacommunities.org/id/unitary-authority/bracknell-forest","Bracknell Forest Council","00MA","Special Schools","Other Special Related Expenditure","Supporting Special Educational Needs","Voluntary Sector Service Providers",19/11/2010 00:00:00,"6432661",21787,"GRAFHAM GRANGE SPECIAL EDUCATIONAL TRUST LTD"
"Bracknell Forest Council","http://opendatacommunities.org/id/unitary-authority/bracknell-forest","Bracknell Forest Council","00MA","Special Schools","Other Special Related Expenditure","Supporting Special Educational Needs","Voluntary Sector Service Providers",19/11/2010 00:00:00,"6432711",18683,"GRAFHAM GRANGE SPECIAL EDUCATIONAL TRUST LTD"
"Bracknell Forest Council","http://opendatacommunities.org/id/unitary-authority/bracknell-forest","Bracknell Forest Council","00MA","","","Garth Hill - Furniture, Fittings, Equipment","Furniture & Fittings",30/09/2010 00:00:00,"6424492",5720.4,"GRESHAM OFFICE FURNITURE LTD"
"Bracknell Forest Council","http://opendatacommunities.org/id/unitary-authority/bracknell-forest","Bracknell Forest Council","00MA","Recreation, Sports and Leisure","Indoor Sports & Recreation Facilities","Leisure DSO - Coral Reef","Refuse Collection",30/11/2010 00:00:00,"6432477",522,"GRUNDON WASTE MANAGEMENT SERV"
"Bracknell Forest Council","http://opendatacommunities.org/id/unitary-authority/bracknell-forest","Bracknell Forest Council","00MA","Older People (Aged 65 or Over)","Nursing Home Placements","Nursing Home Placements PD 65 & Over","Contracted Services",21/12/2010 00:00:00,"30165583",2362.64,"BEAUMONT LODGE"
"Bracknell Forest Council","http://opendatacommunities.org/id/unitary-authority/bracknell-forest","Bracknell Forest Council","00MA","Older People (Aged 65 or Over)","Residential Care Home Placements","Residential Placements-Elderly","Contracted Services",21/12/2010 00:00:00,"30165583",1800,"BEECHVILLE CARE HOME"
"Bracknell Forest Council","http://opendatacommunities.org/id/unitary-authority/bracknell-forest","Bracknell Forest Council","00MA","Recreation, Sports and Leisure","Indoor Sports & Recreation Facilities","Leisure DSO - Coral Reef Maintenance","R&M - Service Contracts",23/11/2010 00:00:00,"6430539",3545.1,"BELLS ENGINEERING PRODUCTS LTD"
"Bracknell Forest Council","http://opendatacommunities.org/id/unitary-authority/bracknell-forest","Bracknell Forest Council","00MA","Recreation, Sports and Leisure","Indoor Sports & Recreation Facilities","Leisure DSO - Leisure Centre Maintenance","R&M - Service Contracts",30/11/2010 00:00:00,"6430711",510,"BELLS ENGINEERING PRODUCTS LTD"
"Bracknell Forest Council","http://opendatacommunities.org/id/unitary-authority/bracknell-forest","Bracknell Forest Council","00MA","Parking Services","Off Street Parking","Off Street Parking","Printing and Design",30/11/2010 00:00:00,"6431533",-780,"BEMROSEBOOTH LIMITED"
"Bracknell Forest Council","http://opendatacommunities.org/id/unitary-authority/bracknell-forest","Bracknell Forest Council","00MA","Parking Services","Off Street Parking","Off Street Parking","Printing and Design",30/11/2010 00:00:00,"6431535",1330,"BEMROSEBOOTH LIMITED"
"Bracknell Forest Council","http://opendatacommunities.org/id/unitary-authority/bracknell-forest","Bracknell Forest Council","00MA","Learning Disability (under 65)","Direct Payments - LD","Direct Payments - LD","Client Contributions Other",07/12/2010 00:00:00,"30164962",-68.2,"REDACTED PERSONAL DATA"
"Bracknell Forest Council","http://opendatacommunities.org/id/unitary-authority/bracknell-forest","Bracknell Forest Council","00MA","Learning Disability (under 65)","Direct Payments - LD","Direct Payments - LD","Direct Payments to Clients",07/12/2010 00:00:00,"30164962",1785.44,"REDACTED PERSONAL DATA"
"Bracknell Forest Council","http://opendatacommunities.org/id/unitary-authority/bracknell-forest","Bracknell Forest Council","00MA","Learning Disability (under 65)","Direct Payments - LD","Direct Payments - LD","Direct Payments to Clients",22/12/2010 00:00:00,"30165698",1785.44,"REDACTED PERSONAL DATA"
"Bracknell Forest Council","http://opendatacommunities.org/id/unitary-authority/bracknell-forest","Bracknell Forest Council","00MA","Learning Disability (under 65)","Direct Payments - LD","Direct Payments - LD","Client Contributions Other",22/12/2010 00:00:00,"30165698",-68.2,"REDACTED PERSONAL DATA"
"Bracknell Forest Council","http://opendatacommunities.org/id/unitary-authority/bracknell-forest","Bracknell Forest Council","00MA","Older People (Aged 65 or Over)","Nursing Home Placements","Nursing Home Placements-Elderly","Contracted Services",21/12/2010 00:00:00,"30165583",1850.24,"BENEDICT HOUSE NURSING HOME"
"Bracknell Forest Council","http://opendatacommunities.org/id/unitary-authority/bracknell-forest","Bracknell Forest Council","00MA","Children Looked After (CLA)","Children's Homes","Children's Home Placements","Contracted Services",08/10/2010 00:00:00,"6430585",12320,"BENJAMIN UK LTD"
"Bracknell Forest Council","http://opendatacommunities.org/id/unitary-authority/bracknell-forest","Bracknell Forest Council","00MA","Children Looked After (CLA)","Children's Homes","Children's Home Placements","Contracted Services",08/10/2010 00:00:00,"6430586",5600,"BENJAMIN UK LTD"
"Bracknell Forest Council","http://opendatacommunities.org/id/unitary-authority/bracknell-forest","Bracknell Forest Council","00MA","Central Support Services - COF","Construction and Property","Schools Service Contracts","R&M - Reactive",26/11/2010 00:00:00,"6431789",785,"BENVILLE AND MARSH LTD"
"Bracknell Forest Council","http://opendatacommunities.org/id/unitary-authority/bracknell-forest","Bracknell Forest Council","00MA","Central Support Services - COF","Construction and Property","Schools Service Contracts","R&M - Reactive",26/11/2010 00:00:00,"6431790",695,"BENVILLE AND MARSH LTD"
"Bracknell Forest Council","http://opendatacommunities.org/id/unitary-authority/bracknell-forest","Bracknell Forest Council","00MA","","","Improvements & Capitalised Repairs (Council Wide)","Construction - Contract Payments",30/11/2010 00:00:00,"6432644",4160,"BENVILLE AND MARSH LTD"
"Bracknell Forest Council","http://opendatacommunities.org/id/unitary-authority/bracknell-forest","Bracknell Forest Council","00MA","Older People (Aged 65 or Over)","Assessment & Care Management","Short Term Services (S75 Funded)","Contracted Services",13/09/2010 00:00:00,"6433033",53958.64,"BERKS EAST PCT COMMUNITY HEALTH SERVICES"
"Bracknell Forest Council","http://opendatacommunities.org/id/unitary-authority/bracknell-forest","Bracknell Forest Council","00MA","Older People (Aged 65 or Over)","Residential Care Home Placements","Bridgwell Centre (S75 Funded)","Contracted Services",13/09/2010 00:00:00,"6433033",88229.76,"BERKS EAST PCT COMMUNITY HEALTH SERVICES"
"Bracknell Forest Council","http://opendatacommunities.org/id/unitary-authority/bracknell-forest","Bracknell Forest Council","00MA","Mental Health Needs (Under 65)","Assessment & Care Management","(CMHT) Mental Illness Team","Rent of Property",25/11/2010 00:00:00,"6430578",2488,"BERKS HEALTHCARE NHS FOUNDATION TRUST"
"Bracknell Forest Council","http://opendatacommunities.org/id/unitary-authority/bracknell-forest","Bracknell Forest Council","00MA","Other Adult Services","Substance Abuse (Addictions)","CMHT Joint Post","Contracted Services",25/11/2010 00:00:00,"6430579",511.25,"BERKS HEALTHCARE NHS FOUNDATION TRUST"
"Bracknell Forest Council","http://opendatacommunities.org/id/unitary-authority/bracknell-forest","Bracknell Forest Council","00MA","Mental Health Needs (Under 65)","Assessment & Care Management","(CMHT) Mental Illness Team","Contracted Services",25/11/2010 00:00:00,"6430598",2322.74,"BERKS HEALTHCARE NHS FOUNDATION TRUST"
"Bracknell Forest Council","http://opendatacommunities.org/id/unitary-authority/bracknell-forest","Bracknell Forest Council","00MA","Other Children's & Family Services","Other Children's and Families Services","Teenage Pregnancy","Primary Care Trust",25/11/2010 00:00:00,"6431749",1088.48,"BERKSHIRE EAST PCT"
"Bracknell Forest Council","http://opendatacommunities.org/id/unitary-authority/bracknell-forest","Bracknell Forest Council","00MA","Education Management & Support Service","School Related Expenditure","HTS Interim","Taxi Fares - Home/School Transport",10/12/2010 00:00:00,"6431896",12045.38,"BERKSHIRE EDUCATION TRAVEL"
"Bracknell Forest Council","http://opendatacommunities.org/id/unitary-authority/bracknell-forest","Bracknell Forest Council","00MA","Education Management & Support Service","School Related Expenditure","HTS Interim","Taxi Fares - Home/School Transport",10/12/2010 00:00:00,"6431897",8402.28,"BERKSHIRE EDUCATION TRAVEL"
"Bracknell Forest Council","http://opendatacommunities.org/id/unitary-authority/bracknell-forest","Bracknell Forest Council","00MA","Education Management & Support Service","School Related Expenditure","HTS Interim","Taxi Fares - Home/School Transport",10/12/2010 00:00:00,"6431898",14017.72,"BERKSHIRE EDUCATION TRAVEL"
"Bracknell Forest Council","http://opendatacommunities.org/id/unitary-authority/bracknell-forest","Bracknell Forest Council","00MA","Education Management & Support Service","School Related Expenditure","HTS Interim","Taxi Fares - Home/School Transport",10/12/2010 00:00:00,"6431899",5265.52,"BERKSHIRE EDUCATION TRAVEL"
"Bracknell Forest Council","http://opendatacommunities.org/id/unitary-authority/bracknell-forest","Bracknell Forest Council","00MA","Education Management & Support Service","School Related Expenditure","HTS Interim","Taxi Fares - Home/School Transport",10/12/2010 00:00:00,"6431900",7912.45,"BERKSHIRE EDUCATION TRAVEL"
"Bracknell Forest Council","http://opendatacommunities.org/id/unitary-authority/bracknell-forest","Bracknell Forest Council","00MA","Education Management & Support Service","School Related Expenditure","HTS Interim","Taxi Fares - Home/School Transport",10/12/2010 00:00:00,"6431900",3504.7,"BERKSHIRE EDUCATION TRAVEL"
"Bracknell Forest Council","http://opendatacommunities.org/id/unitary-authority/bracknell-forest","Bracknell Forest Council","00MA","Education Management & Support Service","School Related Expenditure","HTS Interim","Taxi Fares - Home/School Transport",10/12/2010 00:00:00,"6431936",11359.09,"BERKSHIRE EDUCATION TRAVEL"
"Bracknell Forest Council","http://opendatacommunities.org/id/unitary-authority/bracknell-forest","Bracknell Forest Council","00MA","Education Management & Support Service","School Related Expenditure","HTS Interim","Taxi Fares - Home/School Transport",10/12/2010 00:00:00,"6431936",1680,"BERKSHIRE EDUCATION TRAVEL"
"Bracknell Forest Council","http://opendatacommunities.org/id/unitary-authority/bracknell-forest","Bracknell Forest Council","00MA","Education Management & Support Service","School Related Expenditure","HTS Interim","Taxi Fares - Home/School Transport",10/12/2010 00:00:00,"6431937",19990.15,"BERKSHIRE EDUCATION TRAVEL"
"Bracknell Forest Council","http://opendatacommunities.org/id/unitary-authority/bracknell-forest","Bracknell Forest Council","00MA","Education Management & Support Service","School Related Expenditure","HTS Interim","Taxi Fares - Home/School Transport",17/12/2010 00:00:00,"6432775",7410.68,"BERKSHIRE EDUCATION TRAVEL"
"Bracknell Forest Council","http://opendatacommunities.org/id/unitary-authority/bracknell-forest","Bracknell Forest Council","00MA","Education Management & Support Service","School Related Expenditure","HTS Interim","Taxi Fares - Home/School Transport",17/12/2010 00:00:00,"6432776",10513.73,"BERKSHIRE EDUCATION TRAVEL"
"Bracknell Forest Council","http://opendatacommunities.org/id/unitary-authority/bracknell-forest","Bracknell Forest Council","00MA","Education Management & Support Service","School Related Expenditure","HTS Interim","Taxi Fares - Home/School Transport",17/12/2010 00:00:00,"6432776",501.5,"BERKSHIRE EDUCATION TRAVEL"
"Bracknell Forest Council","http://opendatacommunities.org/id/unitary-authority/bracknell-forest","Bracknell Forest Council","00MA","Education Management & Support Service","School Related Expenditure","HTS Interim","Taxi Fares - Home/School Transport",17/12/2010 00:00:00,"6432777",960,"BERKSHIRE EDUCATION TRAVEL"
"Bracknell Forest Council","http://opendatacommunities.org/id/unitary-authority/bracknell-forest","Bracknell Forest Council","00MA","Education Management & Support Service","School Related Expenditure","HTS Interim","Taxi Fares - Home/School Transport",17/12/2010 00:00:00,"6432777",6001.82,"BERKSHIRE EDUCATION TRAVEL"
"Bracknell Forest Council","http://opendatacommunities.org/id/unitary-authority/bracknell-forest","Bracknell Forest Council","00MA","Education Management & Support Service","School Related Expenditure","HTS Interim","Taxi Fares - Home/School Transport",17/12/2010 00:00:00,"6432778",3920.55,"BERKSHIRE EDUCATION TRAVEL"
"Bracknell Forest Council","http://opendatacommunities.org/id/unitary-authority/bracknell-forest","Bracknell Forest Council","00MA","Education Management & Support Service","School Related Expenditure","HTS Interim","Taxi Fares - Home/School Transport",17/12/2010 00:00:00,"6432778",1868.5,"BERKSHIRE EDUCATION TRAVEL"
"Bracknell Forest Council","http://opendatacommunities.org/id/unitary-authority/bracknell-forest","Bracknell Forest Council","00MA","Education Management & Support Service","School Related Expenditure","HTS Interim","Taxi Fares - Home/School Transport",17/12/2010 00:00:00,"6432814",4915.56,"BERKSHIRE EDUCATION TRAVEL"
"Bracknell Forest Council","http://opendatacommunities.org/id/unitary-authority/bracknell-forest","Bracknell Forest Council","00MA","Education Management & Support Service","School Related Expenditure","HTS Interim","Taxi Fares - Home/School Transport",17/12/2010 00:00:00,"6432815",8539.42,"BERKSHIRE EDUCATION TRAVEL"
"Bracknell Forest Council","http://opendatacommunities.org/id/unitary-authority/bracknell-forest","Bracknell Forest Council","00MA","Education Management & Support Service","School Related Expenditure","HTS Interim","Taxi Fares - Home/School Transport",17/12/2010 00:00:00,"6432816",3172.56,"BERKSHIRE EDUCATION TRAVEL"
"Bracknell Forest Council","http://opendatacommunities.org/id/unitary-authority/bracknell-forest","Bracknell Forest Council","00MA","Supporting People","Supporting People","Supporting People Payments","Transfer Payments - Supporting People",15/12/2010 00:00:00,"6431979",33897.12,"BERKSHIRE WOMEN'S AID"
"Bracknell Forest Council","http://opendatacommunities.org/id/unitary-authority/bracknell-forest","Bracknell Forest Council","00MA","Economic Development","Economic Development","Town Centre Redev Legal Costs","Consultants Fees",15/09/2010 00:00:00,"6430423",42015.6,"BERWIN LEIGHTON PAISNER"
"Bracknell Forest Council","http://opendatacommunities.org/id/unitary-authority/bracknell-forest","Bracknell Forest Council","00MA","Economic Development","Economic Development","Town Centre Redev Legal Costs","Consultants Fees",15/09/2010 00:00:00,"6430423",-42015.6,"BERWIN LEIGHTON PAISNER"
"Bracknell Forest Council","http://opendatacommunities.org/id/unitary-authority/bracknell-forest","Bracknell Forest Council","00MA","Economic Development","Economic Development","Town Centre Redev Legal Costs","Consultants Fees",30/04/2010 00:00:00,"6430482",21351.03,"BERWIN LEIGHTON PAISNER"
"Bracknell Forest Council","http://opendatacommunities.org/id/unitary-authority/bracknell-forest","Bracknell Forest Council","00MA","Economic Development","Economic Development","Town Centre Redev Legal Costs","Consultants Fees",29/07/2010 00:00:00,"6431104",19725.79,"BERWIN LEIGHTON PAISNER"
"Bracknell Forest Council","http://opendatacommunities.org/id/unitary-authority/bracknell-forest","Bracknell Forest Council","00MA","Emergency Planning","Emergency Planning","Emergency Planning","Training Costs",25/11/2010 00:00:00,"6430475",2362.1,"BGG ASSOCIATES LTD"
"Bracknell Forest Council","http://opendatacommunities.org/id/unitary-authority/bracknell-forest","Bracknell Forest Council","00MA","Emergency Planning","Emergency Planning","Emergency Planning","Training Costs",09/12/2010 00:00:00,"6431728",1414.1,"BGG ASSOCIATES LTD"
"Bracknell Forest Council","http://opendatacommunities.org/id/unitary-authority/bracknell-forest","Bracknell Forest Council","00MA","Non-School Funding","Pre-School Education","SSEYCG Graduate leader Fund","Grants and Donations",06/12/2010 00:00:00,"6431784",5000,"BINFIELD PRE-SCHOOL"
"Bracknell Forest Council","http://opendatacommunities.org/id/unitary-authority/bracknell-forest","Bracknell Forest Council","00MA","Non-School Funding","Pre-School Education","Early Years and Childcare","Grants and Donations",21/12/2010 00:00:00,"30165681",6774.08,"BINFIELD PRE-SCHOOL"
"Bracknell Forest Council","http://opendatacommunities.org/id/unitary-authority/bracknell-forest","Bracknell Forest Council","00MA","Non-School Funding","Pre-School Education","Early Years and Childcare","Grants and Donations",21/12/2010 00:00:00,"30165681",6013.44,"BIRCH HILL PRE-SCHOOL"
"Bracknell Forest Council","http://opendatacommunities.org/id/unitary-authority/bracknell-forest","Bracknell Forest Council","00MA","Holding Accounts","Landscape Services","Landscape Services Operational","Equipment - Purchase",26/11/2010 00:00:00,"6431096",819.6,"BISHOP SPORTS & LEISURE LTD"
"Bracknell Forest Council","http://opendatacommunities.org/id/unitary-authority/bracknell-forest","Bracknell Forest Council","00MA","Building Control","Building Regulations","Building Regulations","Other Local Authorities",24/11/2010 00:00:00,"6432329",620.26,"BLACKPOOL BOROUGH COUNCIL"
"Bracknell Forest Council","http://opendatacommunities.org/id/unitary-authority/bracknell-forest","Bracknell Forest Council","00MA","Children Looked After (CLA)","Children's Homes","Children's Home Placements","Contracted Services",01/12/2010 00:00:00,"6431185",880,"BOW GUEST HOUSE"
"Bracknell Forest Council","http://opendatacommunities.org/id/unitary-authority/bracknell-forest","Bracknell Forest Council","00MA","Children Looked After (CLA)","Children's Homes","Children's Home Placements","Contracted Services",01/12/2010 00:00:00,"6431186",825,"BOW GUEST HOUSE"
"Bracknell Forest Council","http://opendatacommunities.org/id/unitary-authority/bracknell-forest","Bracknell Forest Council","00MA","General Grants, Bequests & Donations","General Grants, Bequests & Donations","Other Grants","Grants and Donations",17/12/2010 00:00:00,"6432299",40445,"BRACKNELL & DISTRICT CAB"
"Bracknell Forest Council","http://opendatacommunities.org/id/unitary-authority/bracknell-forest","Bracknell Forest Council","00MA","Education Management & Support Service","Children, Young People & Families","ABG-Extended Schools-Start Up","Other Fees for Bought-in Services",25/11/2010 00:00:00,"6430384",600,"BRACKNELL & WOKINGHAM COLLEGE"
"Bracknell Forest Council","http://opendatacommunities.org/id/unitary-authority/bracknell-forest","Bracknell Forest Council","00MA","Public Transport","Support To Operators","Student Bus Travel","Contracted Services",08/12/2010 00:00:00,"6431883",5333.33,"BRACKNELL & WOKINGHAM COLLEGE"
"Bracknell Forest Council","http://opendatacommunities.org/id/unitary-authority/bracknell-forest","Bracknell Forest Council","00MA","Non-School Funding","Adult & Community Learning","Adult and Community Learning Plan","Other Fees for Bought-in Services",09/12/2010 00:00:00,"6432252",2905.5,"BRACKNELL & WOKINGHAM COLLEGE"
"Bracknell Forest Council","http://opendatacommunities.org/id/unitary-authority/bracknell-forest","Bracknell Forest Council","00MA","Non-School Funding","Pre-School Education","SSEYCG Outcomes, Quality & Inclusion","Training Costs",09/12/2010 00:00:00,"6432474",595,"BRACKNELL & WOKINGHAM COLLEGE"
"Bracknell Forest Council","http://opendatacommunities.org/id/unitary-authority/bracknell-forest","Bracknell Forest Council","00MA","Non-School Funding","Pre-School Education","Early Years and Childcare","Grants and Donations",21/12/2010 00:00:00,"30165681",8134.75,"BRACKNELL & WOKINGHAM COLLEGE"
"Bracknell Forest Council","http://opendatacommunities.org/id/unitary-authority/bracknell-forest","Bracknell Forest Council","00MA","Other Adult Services","Substance Abuse (Addictions)","Area Based Grant","Equipment - Purchase",30/11/2010 00:00:00,"6430838",1634,"BRACKNELL FOREST HOMES"
"Bracknell Forest Council","http://opendatacommunities.org/id/unitary-authority/bracknell-forest","Bracknell Forest Council","00MA","Education Management & Support Service","Children, Young People & Families","Local Workforce Strategy Fund","Grants and Donations",01/11/2010 00:00:00,"6431230",10000,"BRACKNELL FOREST VOLUNTARY ACTION"
"Bracknell Forest Council","http://opendatacommunities.org/id/unitary-authority/bracknell-forest","Bracknell Forest Council","00MA","General Grants, Bequests & Donations","General Grants, Bequests & Donations","Other Grants","Grants and Donations",17/12/2010 00:00:00,"6432297",35250,"BRACKNELL FOREST VOLUNTARY ACTION"
"Bracknell Forest Council","http://opendatacommunities.org/id/unitary-authority/bracknell-forest","Bracknell Forest Council","00MA","Other Adult Services","Other Adult Services","Grants and Donations -Adult","Grants and Donations",20/12/2010 00:00:00,"6432735",6830,"BRACKNELL FOREST VOLUNTARY ACTION"
"Bracknell Forest Council","http://opendatacommunities.org/id/unitary-authority/bracknell-forest","Bracknell Forest Council","00MA","Economic Development","Premises Development","Tennis Centre","Licences",01/12/2010 00:00:00,"6430649",23349.34,"BRACKNELL ONE LTD & BRACKNELL TWO LTD"
"Bracknell Forest Council","http://opendatacommunities.org/id/unitary-authority/bracknell-forest","Bracknell Forest Council","00MA","General Grants, Bequests & Donations","General Grants, Bequests & Donations","Other Grants","Grants and Donations",17/12/2010 00:00:00,"6432294",8200,"BRACKNELL SHOPMOBILITY"
"Bracknell Forest Council","http://opendatacommunities.org/id/unitary-authority/bracknell-forest","Bracknell Forest Council","00MA","Recreation, Sports and Leisure","Retail Services, Catering & Licenced","Easthampstead Park Centre - Catering","Cost of Goods Sold",30/11/2010 00:00:00,"6430891",1516.97,"BRAKE BROS FOODSERVICE LTD"
"Bracknell Forest Council","http://opendatacommunities.org/id/unitary-authority/bracknell-forest","Bracknell Forest Council","00MA","Non-School Funding","Pre-School Education","Early Years and Childcare","Grants and Donations",21/12/2010 00:00:00,"30165681",5529,"BRAKEN BEARS DAY NURSERY"
"Bracknell Forest Council","http://opendatacommunities.org/id/unitary-authority/bracknell-forest","Bracknell Forest Council","00MA","Education Management & Support Service","Learning, Achievement & Libraries","School Improvement","Consultants Fees",03/12/2010 00:00:00,"6432276",875,"BRAYCLOSE LIMITED"
"Bracknell Forest Council","http://opendatacommunities.org/id/unitary-authority/bracknell-forest","Bracknell Forest Council","00MA","Education Management & Support Service","Standards Fund","SF1.15 - National Challenge","Consultants Fees",03/12/2010 00:00:00,"6431306",1490,"BRENTSIDE HIGH SCHOOL"
"Bracknell Forest Council","http://opendatacommunities.org/id/unitary-authority/bracknell-forest","Bracknell Forest Council","00MA","Non-School Funding","Pre-School Education","Early Years and Childcare","Grants and Donations",21/12/2010 00:00:00,"30165681",6704.64,"BRIGHT HORIZONS"
"Bracknell Forest Council","http://opendatacommunities.org/id/unitary-authority/bracknell-forest","Bracknell Forest Council","00MA","Older People (Aged 65 or Over)","Home Care","Home Care-Elderly","Contracted Services",08/12/2010 00:00:00,"30165047",-61.4,"BRIGHT YELLOW SOLUTIONS LTD"
"Bracknell Forest Council","http://opendatacommunities.org/id/unitary-authority/bracknell-forest","Bracknell Forest Council","00MA","Older People (Aged 65 or Over)","Home Care","Home Care-Elderly","Contracted Services",10/12/2010 00:00:00,"30165171",50.4,"BRIGHT YELLOW SOLUTIONS LTD"
"Bracknell Forest Council","http://opendatacommunities.org/id/unitary-authority/bracknell-forest","Bracknell Forest Council","00MA","Older People (Aged 65 or Over)","Home Care","Home Care-Elderly","Contracted Services",10/12/2010 00:00:00,"30165171",79.2,"BRIGHT YELLOW SOLUTIONS LTD"
"Bracknell Forest Council","http://opendatacommunities.org/id/unitary-authority/bracknell-forest","Bracknell Forest Council","00MA","Older People (Aged 65 or Over)","Home Care","Home Care-Elderly","Contracted Services",10/12/2010 00:00:00,"30165171",50.4,"BRIGHT YELLOW SOLUTIONS LTD"
"Bracknell Forest Council","http://opendatacommunities.org/id/unitary-authority/bracknell-forest","Bracknell Forest Council","00MA","Older People (Aged 65 or Over)","Home Care","Home Care-Elderly","Contracted Services",10/12/2010 00:00:00,"30165171",4062.4,"BRIGHT YELLOW SOLUTIONS LTD"
"Bracknell Forest Council","http://opendatacommunities.org/id/unitary-authority/bracknell-forest","Bracknell Forest Council","00MA","Older People (Aged 65 or Over)","Home Care","Home Care-Elderly","Contracted Services",10/12/2010 00:00:00,"30165171",748.8,"BRIGHT YELLOW SOLUTIONS LTD"
"Bracknell Forest Council","http://opendatacommunities.org/id/unitary-authority/bracknell-forest","Bracknell Forest Council","00MA","Older People (Aged 65 or Over)","Home Care","Home Care-Elderly","Contracted Services",10/12/2010 00:00:00,"30165171",662.4,"BRIGHT YELLOW SOLUTIONS LTD"
"Bracknell Forest Council","http://opendatacommunities.org/id/unitary-authority/bracknell-forest","Bracknell Forest Council","00MA","Older People (Aged 65 or Over)","Home Care","Home Care-Elderly","Contracted Services",10/12/2010 00:00:00,"30165171",302.4,"BRIGHT YELLOW SOLUTIONS LTD"
"Bracknell Forest Council","http://opendatacommunities.org/id/unitary-authority/bracknell-forest","Bracknell Forest Council","00MA","Older People (Aged 65 or Over)","Home Care","Home Care-Elderly","Contracted Services",10/12/2010 00:00:00,"30165171",1584,"BRIGHT YELLOW SOLUTIONS LTD"
"Bracknell Forest Council","http://opendatacommunities.org/id/unitary-authority/bracknell-forest","Bracknell Forest Council","00MA","Older People (Aged 65 or Over)","Home Care","Home Care-Elderly","Contracted Services",10/12/2010 00:00:00,"30165171",1620,"BRIGHT YELLOW SOLUTIONS LTD"
"Bracknell Forest Council","http://opendatacommunities.org/id/unitary-authority/bracknell-forest","Bracknell Forest Council","00MA","Older People (Aged 65 or Over)","Home Care","Home Care-Elderly","Contracted Services",10/12/2010 00:00:00,"30165171",972,"BRIGHT YELLOW SOLUTIONS LTD"
"Bracknell Forest Council","http://opendatacommunities.org/id/unitary-authority/bracknell-forest","Bracknell Forest Council","00MA","Older People (Aged 65 or Over)","Home Care","Home Care-Elderly","Contracted Services",10/12/2010 00:00:00,"30165171",654.2,"BRIGHT YELLOW SOLUTIONS LTD"
"Bracknell Forest Council","http://opendatacommunities.org/id/unitary-authority/bracknell-forest","Bracknell Forest Council","00MA","Older People (Aged 65 or Over)","Home Care","Home Care-Elderly","Contracted Services",10/12/2010 00:00:00,"30165171",1231.2,"BRIGHT YELLOW SOLUTIONS LTD"
"Bracknell Forest Council","http://opendatacommunities.org/id/unitary-authority/bracknell-forest","Bracknell Forest Council","00MA","Older People (Aged 65 or Over)","Home Care","Home Care-Elderly","Contracted Services",10/12/2010 00:00:00,"30165171",28.8,"BRIGHT YELLOW SOLUTIONS LTD"
"Bracknell Forest Council","http://opendatacommunities.org/id/unitary-authority/bracknell-forest","Bracknell Forest Council","00MA","Older People (Aged 65 or Over)","Home Care","Home Care-Elderly","Contracted Services",10/12/2010 00:00:00,"30165171",-10.8,"BRIGHT YELLOW SOLUTIONS LTD"
"Bracknell Forest Council","http://opendatacommunities.org/id/unitary-authority/bracknell-forest","Bracknell Forest Council","00MA","Older People (Aged 65 or Over)","Home Care","Home Care-Elderly","Contracted Services",10/12/2010 00:00:00,"30165171",32.4,"BRIGHT YELLOW SOLUTIONS LTD"
"Bracknell Forest Council","http://opendatacommunities.org/id/unitary-authority/bracknell-forest","Bracknell Forest Council","00MA","Older People (Aged 65 or Over)","Home Care","Home Care-Elderly","Contracted Services",10/12/2010 00:00:00,"30165171",993.2,"BRIGHT YELLOW SOLUTIONS LTD"
"Bracknell Forest Council","http://opendatacommunities.org/id/unitary-authority/bracknell-forest","Bracknell Forest Council","00MA","Older People (Aged 65 or Over)","Home Care","Home Care-Elderly","Contracted Services",10/12/2010 00:00:00,"30165171",2685.2,"BRIGHT YELLOW SOLUTIONS LTD"
"Bracknell Forest Council","http://opendatacommunities.org/id/unitary-authority/bracknell-forest","Bracknell Forest Council","00MA","Older People (Aged 65 or Over)","Home Care","Home Care-Elderly","Contracted Services",10/12/2010 00:00:00,"30165171",586.8,"BRIGHT YELLOW SOLUTIONS LTD"
"Bracknell Forest Council","http://opendatacommunities.org/id/unitary-authority/bracknell-forest","Bracknell Forest Council","00MA","Older People (Aged 65 or Over)","Home Care","Home Care-Elderly","Contracted Services",10/12/2010 00:00:00,"30165171",727,"BRIGHT YELLOW SOLUTIONS LTD"
"Bracknell Forest Council","http://opendatacommunities.org/id/unitary-authority/bracknell-forest","Bracknell Forest Council","00MA","Mental Health Needs (Under 65)","Homecare","Home Care Mental Illness","Contracted Services",10/12/2010 00:00:00,"30165171",720,"BRIGHT YELLOW SOLUTIONS LTD"
"Bracknell Forest Council","http://opendatacommunities.org/id/unitary-authority/bracknell-forest","Bracknell Forest Council","00MA","Physical Disability/Sensory Impairment","Homecare","Home Care-Phys Disab","Contracted Services",10/12/2010 00:00:00,"30165171",2156.4,"BRIGHT YELLOW SOLUTIONS LTD"
"Bracknell Forest Council","http://opendatacommunities.org/id/unitary-authority/bracknell-forest","Bracknell Forest Council","00MA","Physical Disability/Sensory Impairment","Homecare","Home Care-Phys Disab","Contracted Services",10/12/2010 00:00:00,"30165171",417.6,"BRIGHT YELLOW SOLUTIONS LTD"
"Bracknell Forest Council","http://opendatacommunities.org/id/unitary-authority/bracknell-forest","Bracknell Forest Council","00MA","Physical Disability/Sensory Impairment","Homecare","Home Care-Phys Disab","Contracted Services",10/12/2010 00:00:00,"30165171",57.6,"BRIGHT YELLOW SOLUTIONS LTD"
"Bracknell Forest Council","http://opendatacommunities.org/id/unitary-authority/bracknell-forest","Bracknell Forest Council","00MA","Physical Disability/Sensory Impairment","Homecare","Home Care-Phys Disab","Contracted Services",10/12/2010 00:00:00,"30165171",158.4,"BRIGHT YELLOW SOLUTIONS LTD"
"Bracknell Forest Council","http://opendatacommunities.org/id/unitary-authority/bracknell-forest","Bracknell Forest Council","00MA","Physical Disability/Sensory Impairment","Homecare","Home Care-Phys Disab","Contracted Services",10/12/2010 00:00:00,"30165171",849.6,"BRIGHT YELLOW SOLUTIONS LTD"
"Bracknell Forest Council","http://opendatacommunities.org/id/unitary-authority/bracknell-forest","Bracknell Forest Council","00MA","Central Support Services - COF","Construction and Property","Time Square Office","Equipment - Rental",26/11/2010 00:00:00,"6432226",728,"HALLMARK VENDING LTD"
"Bracknell Forest Council","http://opendatacommunities.org/id/unitary-authority/bracknell-forest","Bracknell Forest Council","00MA","Regulatory Services","Product Safety","Product Safety","Other Fees for Bought-in Services",02/12/2010 00:00:00,"6431112",1150,"HAMPSHIRE COUNTY COUNCIL"
"Bracknell Forest Council","http://opendatacommunities.org/id/unitary-authority/bracknell-forest","Bracknell Forest Council","00MA","Supporting People","Supporting People","Supporting People Payments","Transfer Payments - Supporting People",15/12/2010 00:00:00,"6431971",1125.04,"HANOVER HOUSING ASSOCIATION"
"Bracknell Forest Council","http://opendatacommunities.org/id/unitary-authority/bracknell-forest","Bracknell Forest Council","00MA","Non-School Funding","Pre-School Education","Early Years and Childcare","Grants and Donations",21/12/2010 00:00:00,"30165681",9398.04,"HARMANSWATER PRE-SCHOOL"
"Bracknell Forest Council","http://opendatacommunities.org/id/unitary-authority/bracknell-forest","Bracknell Forest Council","00MA","Older People (Aged 65 or Over)","Assessment & Care Management","Short Term Services - Social Work","Agency",28/10/2010 00:00:00,"6430385",1742.7,"HAYS SPECIALIST RECRUITMENT"
"Bracknell Forest Council","http://opendatacommunities.org/id/unitary-authority/bracknell-forest","Bracknell Forest Council","00MA","Older People (Aged 65 or Over)","Assessment & Care Management","Short Term Services - Social Work","Agency",25/11/2010 00:00:00,"6430778",2119.5,"HAYS SPECIALIST RECRUITMENT"
"Bracknell Forest Council","http://opendatacommunities.org/id/unitary-authority/bracknell-forest","Bracknell Forest Council","00MA","Older People (Aged 65 or Over)","Assessment & Care Management","Short Term Services - Social Work","Agency",02/12/2010 00:00:00,"6431984",1942.88,"HAYS SPECIALIST RECRUITMENT"
"Bracknell Forest Council","http://opendatacommunities.org/id/unitary-authority/bracknell-forest","Bracknell Forest Council","00MA","Physical Disability/Sensory Impairment","Day Care","Day Centre Placements-Phys Disab","Contracted Services",15/12/2010 00:00:00,"30165407",1952,"HEADWAY THAMES VALLEY"
"Bracknell Forest Council","http://opendatacommunities.org/id/unitary-authority/bracknell-forest","Bracknell Forest Council","00MA","Central Support Services - COF","Personnel","Personnel Services - Occupational Health","Other Fees for Bought-in Services",30/11/2010 00:00:00,"6431412",3946.98,"HEALES MEDICAL LTD"
"Bracknell Forest Council","http://opendatacommunities.org/id/unitary-authority/bracknell-forest","Bracknell Forest Council","00MA","Central Support Services - COF","Personnel","Personnel Services - Occupational Health","Other Fees for Bought-in Services",10/12/2010 00:00:00,"6432247",3946.98,"HEALES MEDICAL LTD"
"Bracknell Forest Council","http://opendatacommunities.org/id/unitary-authority/bracknell-forest","Bracknell Forest Council","00MA","Older People (Aged 65 or Over)","Nursing Home Placements","Nursing Home Placements-Elderly","Contracted Services",21/12/2010 00:00:00,"30165583",2203.88,"HEATHERWOOD NURSING HOME"
"Bracknell Forest Council","http://opendatacommunities.org/id/unitary-authority/bracknell-forest","Bracknell Forest Council","00MA","Recreation, Sports and Leisure","Retail Services, Catering & Licenced","Easthampstead Park Centre - Bar","Cost of Goods Sold",02/12/2010 00:00:00,"6431316",2097.03,"HEINEKEN UK LTD"
"Bracknell Forest Council","http://opendatacommunities.org/id/unitary-authority/bracknell-forest","Bracknell Forest Council","00MA","Recreation, Sports and Leisure","Golf Courses","Leisure DSO - Downshire Catering","Cost of Goods Sold",02/12/2010 00:00:00,"6431395",2943.45,"HEINEKEN UK LTD"
"Bracknell Forest Council","http://opendatacommunities.org/id/unitary-authority/bracknell-forest","Bracknell Forest Council","00MA","Older People (Aged 65 or Over)","Home Care","Home Care-Elderly","Contracted Services",10/12/2010 00:00:00,"30165171",518.4,"BRIGHT YELLOW SOLUTIONS LTD"
"Bracknell Forest Council","http://opendatacommunities.org/id/unitary-authority/bracknell-forest","Bracknell Forest Council","00MA","Older People (Aged 65 or Over)","Home Care","Home Care-Elderly","Contracted Services",10/12/2010 00:00:00,"30165171",448.8,"BRIGHT YELLOW SOLUTIONS LTD"
"Bracknell Forest Council","http://opendatacommunities.org/id/unitary-authority/bracknell-forest","Bracknell Forest Council","00MA","Older People (Aged 65 or Over)","Home Care","Home Care-Elderly","Contracted Services",10/12/2010 00:00:00,"30165171",590.4,"BRIGHT YELLOW SOLUTIONS LTD"
"Bracknell Forest Council","http://opendatacommunities.org/id/unitary-authority/bracknell-forest","Bracknell Forest Council","00MA","Older People (Aged 65 or Over)","Home Care","Home Care-Elderly","Contracted Services",10/12/2010 00:00:00,"30165171",842.4,"BRIGHT YELLOW SOLUTIONS LTD"
"Bracknell Forest Council","http://opendatacommunities.org/id/unitary-authority/bracknell-forest","Bracknell Forest Council","00MA","Older People (Aged 65 or Over)","Home Care","Home Care-Elderly","Contracted Services",10/12/2010 00:00:00,"30165171",2653,"BRIGHT YELLOW SOLUTIONS LTD"
"Bracknell Forest Council","http://opendatacommunities.org/id/unitary-authority/bracknell-forest","Bracknell Forest Council","00MA","Older People (Aged 65 or Over)","Home Care","Home Care-Elderly","Contracted Services",10/12/2010 00:00:00,"30165171",2898,"BRIGHT YELLOW SOLUTIONS LTD"
"Bracknell Forest Council","http://opendatacommunities.org/id/unitary-authority/bracknell-forest","Bracknell Forest Council","00MA","Older People (Aged 65 or Over)","Home Care","Home Care-Elderly","Contracted Services",10/12/2010 00:00:00,"30165171",302.4,"BRIGHT YELLOW SOLUTIONS LTD"
"Bracknell Forest Council","http://opendatacommunities.org/id/unitary-authority/bracknell-forest","Bracknell Forest Council","00MA","Older People (Aged 65 or Over)","Home Care","Home Care-Elderly","Contracted Services",10/12/2010 00:00:00,"30165171",1684.8,"BRIGHT YELLOW SOLUTIONS LTD"
"Bracknell Forest Council","http://opendatacommunities.org/id/unitary-authority/bracknell-forest","Bracknell Forest Council","00MA","Older People (Aged 65 or Over)","Home Care","Home Care-Elderly","Contracted Services",10/12/2010 00:00:00,"30165171",380.8,"BRIGHT YELLOW SOLUTIONS LTD"
"Bracknell Forest Council","http://opendatacommunities.org/id/unitary-authority/bracknell-forest","Bracknell Forest Council","00MA","Older People (Aged 65 or Over)","Home Care","Home Care-Elderly","Contracted Services",10/12/2010 00:00:00,"30165171",1764,"BRIGHT YELLOW SOLUTIONS LTD"
"Bracknell Forest Council","http://opendatacommunities.org/id/unitary-authority/bracknell-forest","Bracknell Forest Council","00MA","Older People (Aged 65 or Over)","Home Care","Home Care-Elderly","Contracted Services",10/12/2010 00:00:00,"30165171",689.2,"BRIGHT YELLOW SOLUTIONS LTD"
"Bracknell Forest Council","http://opendatacommunities.org/id/unitary-authority/bracknell-forest","Bracknell Forest Council","00MA","Service Management & Support Services","Service Management & Support Services","Training - Leisure & Culture","Training Costs",13/12/2010 00:00:00,"6432683",780,"BRITISH STANDARDS INSTITUTION"
"Bracknell Forest Council","http://opendatacommunities.org/id/unitary-authority/bracknell-forest","Bracknell Forest Council","00MA","Education Management & Support Service","Performance & Resources","Education Telecoms","Telephones - Rental & Call Charges",18/11/2010 00:00:00,"6430564",1103.31,"BRITISH TELECOM"
"Bracknell Forest Council","http://opendatacommunities.org/id/unitary-authority/bracknell-forest","Bracknell Forest Council","00MA","Democratic Representation & Management COF","Democratic Representation & Management - COF","Members Services","Equipment - Rental",28/11/2010 00:00:00,"6432081",1426.43,"BRITISH TELECOM"
"Bracknell Forest Council","http://opendatacommunities.org/id/unitary-authority/bracknell-forest","Bracknell Forest Council","00MA","Recreation, Sports and Leisure","Indoor Sports & Recreation Facilities","Edgbarrow/Sandhurst  - Bar General","Cost of Goods Sold",02/12/2010 00:00:00,"6431707",562.8,"HEINEKEN UK LTD"
"Bracknell Forest Council","http://opendatacommunities.org/id/unitary-authority/bracknell-forest","Bracknell Forest Council","00MA","Recreation, Sports and Leisure","Indoor Sports & Recreation Facilities","Leisure Centre - Bar  General","Cost of Goods Sold",02/12/2010 00:00:00,"6431709",1306.19,"HEINEKEN UK LTD"
"Bracknell Forest Council","http://opendatacommunities.org/id/unitary-authority/bracknell-forest","Bracknell Forest Council","00MA","Older People (Aged 65 or Over)","Home Care","Home Care-Elderly","Contracted Services",15/12/2010 00:00:00,"30165407",144,"HELEN COX"
"Bracknell Forest Council","http://opendatacommunities.org/id/unitary-authority/bracknell-forest","Bracknell Forest Council","00MA","Children Looked After (CLA)","Children's Homes","Children's Home Placements","Contracted Services",15/11/2010 00:00:00,"6429984",15291.99,"HILLCREST CARE LTD"
"Bracknell Forest Council","http://opendatacommunities.org/id/unitary-authority/bracknell-forest","Bracknell Forest Council","00MA","Economic Development","Economic Development","Planning Transport Backfill","Consultants Fees",31/10/2010 00:00:00,"6432684",4800,"HIVES PLANNING LTD"
"Bracknell Forest Council","http://opendatacommunities.org/id/unitary-authority/bracknell-forest","Bracknell Forest Council","00MA","Older People (Aged 65 or Over)","Residential Care Home Placements","Residential Placements-Elderly","Contracted Services",21/12/2010 00:00:00,"30165583",1819.12,"HOLLY LODGE"
"Bracknell Forest Council","http://opendatacommunities.org/id/unitary-authority/bracknell-forest","Bracknell Forest Council","00MA","Non-School Funding","Pre-School Education","Early Years and Childcare","Grants and Donations",03/12/2010 00:00:00,"6431222",1105,"HOLLY SPRING OOSC"
"Bracknell Forest Council","http://opendatacommunities.org/id/unitary-authority/bracknell-forest","Bracknell Forest Council","00MA","Non-School Funding","Pre-School Education","Early Years and Childcare","Grants and Donations",21/12/2010 00:00:00,"30165681",12334.95,"HOLLY SPRING PRE SCHOOL"
"Bracknell Forest Council","http://opendatacommunities.org/id/unitary-authority/bracknell-forest","Bracknell Forest Council","00MA","Learning Disability (under 65)","Residential Care Home Placements","Residential Placements-Lrng Disab","Contracted Services",21/12/2010 00:00:00,"30165583",3185.08,"HOUSEMARTINS"
"Bracknell Forest Council","http://opendatacommunities.org/id/unitary-authority/bracknell-forest","Bracknell Forest Council","00MA","Supporting People","Supporting People","Supporting People Payments","Transfer Payments - Supporting People",15/12/2010 00:00:00,"6431977",1189.44,"HOUSING 21"
"Bracknell Forest Council","http://opendatacommunities.org/id/unitary-authority/bracknell-forest","Bracknell Forest Council","00MA","","","Social Care","Other Equipment",30/11/2010 00:00:00,"6430853",6559.77,"HUNTLEIGH HEALTHCARE LTD"
"Bracknell Forest Council","http://opendatacommunities.org/id/unitary-authority/bracknell-forest","Bracknell Forest Council","00MA","","","Balance Sheet","Flexible Benefits Control Account",03/12/2010 00:00:00,"6430999",7500,"HUSSAIN ASHMERE TRAVEL H LTD"
"Bracknell Forest Council","http://opendatacommunities.org/id/unitary-authority/bracknell-forest","Bracknell Forest Council","00MA","Central Support Services - COF","Finance","Internal Audit","Contracted Services",25/10/2010 00:00:00,"6429740",10975,"HW CONTROLS AND ASSURANCE LLP"
"Bracknell Forest Council","http://opendatacommunities.org/id/unitary-authority/bracknell-forest","Bracknell Forest Council","00MA","Central Support Services - COF","Finance","Internal Audit","Contracted Services",30/11/2010 00:00:00,"6430583",3000,"HW CONTROLS AND ASSURANCE LLP"
"Bracknell Forest Council","http://opendatacommunities.org/id/unitary-authority/bracknell-forest","Bracknell Forest Council","00MA","Special Schools","Other Special Related Expenditure","Supporting Special Educational Needs","Voluntary Sector Service Providers",01/11/2010 00:00:00,"6432668",9942,"I CAN CHARITY"
"Bracknell Forest Council","http://opendatacommunities.org/id/unitary-authority/bracknell-forest","Bracknell Forest Council","00MA","Central Support Services - COF","Information Technology","Communications","Telephones - Rental & Call Charges",09/12/2010 00:00:00,"6432649",19985.47,"BRITISH TELECOM"
"Bracknell Forest Council","http://opendatacommunities.org/id/unitary-authority/bracknell-forest","Bracknell Forest Council","00MA","Central Support Services - COF","Information Technology","Communications","Telephones - Rental & Call Charges",09/12/2010 00:00:00,"6432649",597.68,"BRITISH TELECOM"
"Bracknell Forest Council","http://opendatacommunities.org/id/unitary-authority/bracknell-forest","Bracknell Forest Council","00MA","","","Horse and Groom Roundabout Capacity Imps","Construction - Other Direct Expenses",30/11/2010 00:00:00,"6430322",3255.88,"BRITISH TELECOMMUNICATIONS"
"Bracknell Forest Council","http://opendatacommunities.org/id/unitary-authority/bracknell-forest","Bracknell Forest Council","00MA","","","Mobility Schemes","Construction - Other Direct Expenses",22/12/2010 00:00:00,"6432646",514.09,"BRITISH TELECOMMUNICATIONS PLC"
"Bracknell Forest Council","http://opendatacommunities.org/id/unitary-authority/bracknell-forest","Bracknell Forest Council","00MA","","","CRM/Telephony Upgrade","IT Hardware",01/12/2010 00:00:00,"6430533",2325,"BT INET"
"Bracknell Forest Council","http://opendatacommunities.org/id/unitary-authority/bracknell-forest","Bracknell Forest Council","00MA","","","IT Developments","IT Consultants",26/11/2010 00:00:00,"6430663",2550,"BT INET"
"Bracknell Forest Council","http://opendatacommunities.org/id/unitary-authority/bracknell-forest","Bracknell Forest Council","00MA","Non-School Funding","Pre-School Education","Early Years and Childcare","Grants and Donations",21/12/2010 00:00:00,"30165681",5661.54,"BUILDING BLOCKS PRE-SCHOOL"
"Bracknell Forest Council","http://opendatacommunities.org/id/unitary-authority/bracknell-forest","Bracknell Forest Council","00MA","Non-School Funding","Pre-School Education","Early Years and Childcare","Grants and Donations",21/12/2010 00:00:00,"30165681",5982.3,"BUSY BEES MONTESSORI SCHOOL"
"Bracknell Forest Council","http://opendatacommunities.org/id/unitary-authority/bracknell-forest","Bracknell Forest Council","00MA","Education Management & Support Service","School Related Expenditure","Succession Planning Grant","Approved Conference Fees & Expenses",29/11/2010 00:00:00,"6432286",900,"BWB(LINCOLN)LTD"
"Bracknell Forest Council","http://opendatacommunities.org/id/unitary-authority/bracknell-forest","Bracknell Forest Council","00MA","Children Looked After (CLA)","Fostering Services","Independent Fostering (Non BFBC)","Contracted Services",01/12/2010 00:00:00,"6431912",3985.71,"BY THE BRIDGE"
"Bracknell Forest Council","http://opendatacommunities.org/id/unitary-authority/bracknell-forest","Bracknell Forest Council","00MA","","","Cem & Crem Mercury Abatement (Invest to Save)","Construction - Contract Payments",25/10/2010 00:00:00,"6429454",22142.17,"C J M HARVEY CONSTRUCTION LTD"
"Bracknell Forest Council","http://opendatacommunities.org/id/unitary-authority/bracknell-forest","Bracknell Forest Council","00MA","","","Planned Maintenance (Leisure)","Construction - Contract Payments",30/11/2010 00:00:00,"6431166",2454,"C J M HARVEY CONSTRUCTION LTD"
"Bracknell Forest Council","http://opendatacommunities.org/id/unitary-authority/bracknell-forest","Bracknell Forest Council","00MA","","","General Building Maintenance","Construction - Contract Payments",13/12/2010 00:00:00,"6432868",2200,"C J M HARVEY CONSTRUCTION LTD"
"Bracknell Forest Council","http://opendatacommunities.org/id/unitary-authority/bracknell-forest","Bracknell Forest Council","00MA","Economic Development","Premises Development","Wildridings Shops","R&M - Reactive",13/12/2010 00:00:00,"6432870",1230,"C J M HARVEY CONSTRUCTION LTD"
"Bracknell Forest Council","http://opendatacommunities.org/id/unitary-authority/bracknell-forest","Bracknell Forest Council","00MA","","","Cem & Crem Mercury Abatement (Invest to Save)","Construction - Contract Payments",30/11/2010 00:00:00,"6432874",6295.21,"C J M HARVEY CONSTRUCTION LTD"
"Bracknell Forest Council","http://opendatacommunities.org/id/unitary-authority/bracknell-forest","Bracknell Forest Council","00MA","Recreation, Sports and Leisure","Retail Services, Catering & Licenced","Easthampstead Park Conference Centre","R&M - Service Contracts",16/11/2010 00:00:00,"6430524",900,"C S TODD & ASSOCIATES LTD"
"Bracknell Forest Council","http://opendatacommunities.org/id/unitary-authority/bracknell-forest","Bracknell Forest Council","00MA","Central Support Services - COF","Information Technology","Communications","Equipment - Rental",14/12/2010 00:00:00,"6432798",2274.18,"CABLE & WIRELESS"
"Bracknell Forest Council","http://opendatacommunities.org/id/unitary-authority/bracknell-forest","Bracknell Forest Council","00MA","Children Looked After (CLA)","Fostering Services","Independent Fostering (Non BFBC)","Contracted Services",26/11/2010 00:00:00,"6430599",1843.8,"CABRINI CHILDRENS SOCIETY"
"Bracknell Forest Council","http://opendatacommunities.org/id/unitary-authority/bracknell-forest","Bracknell Forest Council","00MA","Children Looked After (CLA)","Fostering Services","Independent Fostering (Non BFBC)","Contracted Services",06/12/2010 00:00:00,"6432356",1753.8,"CABRINI CHILDRENS SOCIETY"
"Bracknell Forest Council","http://opendatacommunities.org/id/unitary-authority/bracknell-forest","Bracknell Forest Council","00MA","Special Schools","Other Special Related Expenditure","Supporting Special Educational Needs","Voluntary Sector Service Providers",14/11/2010 00:00:00,"6432708",41990.79,"CAMBIAN ASPERGER SYNDROME SERVICES"
"Bracknell Forest Council","http://opendatacommunities.org/id/unitary-authority/bracknell-forest","Bracknell Forest Council","00MA","Children Looked After (CLA)","Children's Homes","C&F Learning Disability Placements","Voluntary Sector Service Providers",15/11/2010 00:00:00,"6432654",22498.69,"CAMBIAN AUTISM SERVICES LTD"
"Bracknell Forest Council","http://opendatacommunities.org/id/unitary-authority/bracknell-forest","Bracknell Forest Council","00MA","Children's Support & Management Costs","Children's Support Services & Management Costs","Sec 28A - Day Centre Purchases","Voluntary Sector Service Providers",15/11/2010 00:00:00,"6432654",22498.69,"CAMBIAN AUTISM SERVICES LTD"
"Bracknell Forest Council","http://opendatacommunities.org/id/unitary-authority/bracknell-forest","Bracknell Forest Council","00MA","Special Schools","Other Special Related Expenditure","Supporting Special Educational Needs","Voluntary Sector Service Providers",15/11/2010 00:00:00,"6432654",22498.68,"CAMBIAN AUTISM SERVICES LTD"
"Bracknell Forest Council","http://opendatacommunities.org/id/unitary-authority/bracknell-forest","Bracknell Forest Council","00MA","Older People (Aged 65 or Over)","Residential Care Home Placements","Residential Placements-Elderly","Contracted Services",21/12/2010 00:00:00,"30165583",1923.68,"CAMBRIDGE HOUSE RESIDENTIAL HOME"
"Bracknell Forest Council","http://opendatacommunities.org/id/unitary-authority/bracknell-forest","Bracknell Forest Council","00MA","Older People (Aged 65 or Over)","Residential Care Home Placements","Residential Placements-Elderly","Contracted Services",21/12/2010 00:00:00,"30165583",2014.64,"CAMBRIDGE HOUSE RESIDENTIAL HOME"
"Bracknell Forest Council","http://opendatacommunities.org/id/unitary-authority/bracknell-forest","Bracknell Forest Council","00MA","Older People (Aged 65 or Over)","Residential Care Home Placements","Residential Placements-Elderly","Contracted Services",21/12/2010 00:00:00,"30165583",2152.68,"CAMBRIDGE HOUSE RESIDENTIAL HOME"
"Bracknell Forest Council","http://opendatacommunities.org/id/unitary-authority/bracknell-forest","Bracknell Forest Council","00MA","Older People (Aged 65 or Over)","Residential Care Home Placements","Residential Placements-Elderly","Contracted Services",21/12/2010 00:00:00,"30165583",1980,"CAMBRIDGE HOUSE RESIDENTIAL HOME"
"Bracknell Forest Council","http://opendatacommunities.org/id/unitary-authority/bracknell-forest","Bracknell Forest Council","00MA","Older People (Aged 65 or Over)","Residential Care Home Placements","Residential Placements-Elderly","Contracted Services",21/12/2010 00:00:00,"30165583",2075.72,"CAMBRIDGE HOUSE RESIDENTIAL HOME"
"Bracknell Forest Council","http://opendatacommunities.org/id/unitary-authority/bracknell-forest","Bracknell Forest Council","00MA","Older People (Aged 65 or Over)","Residential Care Home Placements","Residential Placements MH 65 and Over","Contracted Services",21/12/2010 00:00:00,"30165583",2327.2,"CAMBRIDGE HOUSE RESIDENTIAL HOME"
"Bracknell Forest Council","http://opendatacommunities.org/id/unitary-authority/bracknell-forest","Bracknell Forest Council","00MA","Central Support Services - COF","Customer Service Centre","Cashiers Services","Banking Charges",08/11/2010 00:00:00,"6430456",2325.03,"CAPITA BUSINESS SERVICES LTD"
"Bracknell Forest Council","http://opendatacommunities.org/id/unitary-authority/bracknell-forest","Bracknell Forest Council","00MA","Non-School Funding","Pre-School Education","Children's Centre Co-ordination","Computer Software",15/11/2010 00:00:00,"6430468",2520,"CAPITA BUSINESS SERVICES LTD"
"Bracknell Forest Council","http://opendatacommunities.org/id/unitary-authority/bracknell-forest","Bracknell Forest Council","00MA","","","ICT","IT Software",15/11/2010 00:00:00,"6430468",1869.6,"CAPITA BUSINESS SERVICES LTD"
"Bracknell Forest Council","http://opendatacommunities.org/id/unitary-authority/bracknell-forest","Bracknell Forest Council","00MA","","","ICT","IT Software",15/11/2010 00:00:00,"6430504",12410.4,"CAPITA BUSINESS SERVICES LTD"
"Bracknell Forest Council","http://opendatacommunities.org/id/unitary-authority/bracknell-forest","Bracknell Forest Council","00MA","Education Management & Support Service","Performance & Resources","SIMS and other licences","Training Costs",23/11/2010 00:00:00,"6431328",500,"CAPITA BUSINESS SERVICES LTD"
"Bracknell Forest Council","http://opendatacommunities.org/id/unitary-authority/bracknell-forest","Bracknell Forest Council","00MA","Central Support Services - COF","Customer Service Centre","Cashiers Services","Banking Charges",08/12/2010 00:00:00,"6432785",2083.99,"CAPITA BUSINESS SERVICES LTD"
"Bracknell Forest Council","http://opendatacommunities.org/id/unitary-authority/bracknell-forest","Bracknell Forest Council","00MA","Housing Benefits Administration","Housing Benefits Administration","Housing Benefits Special Projects","Consultants Fees",30/11/2010 00:00:00,"6431609",843.88,"CAPITAL PUBLIC SECTOR"
"Bracknell Forest Council","http://opendatacommunities.org/id/unitary-authority/bracknell-forest","Bracknell Forest Council","00MA","Housing Benefits Administration","Housing Benefits Administration","Housing Benefits Special Projects","Consultants Fees",23/11/2010 00:00:00,"6431610",802.6,"CAPITAL PUBLIC SECTOR"
"Bracknell Forest Council","http://opendatacommunities.org/id/unitary-authority/bracknell-forest","Bracknell Forest Council","00MA","Housing Benefits Administration","Housing Benefits Administration","Housing Benefits Special Projects","Consultants Fees",06/12/2010 00:00:00,"6431954",628.88,"CAPITAL PUBLIC SECTOR"
"Bracknell Forest Council","http://opendatacommunities.org/id/unitary-authority/bracknell-forest","Bracknell Forest Council","00MA","Housing Benefits Administration","Housing Benefits Administration","Housing Benefits Special Projects","Consultants Fees",14/12/2010 00:00:00,"6432615",757.88,"CAPITAL PUBLIC SECTOR"
"Bracknell Forest Council","http://opendatacommunities.org/id/unitary-authority/bracknell-forest","Bracknell Forest Council","00MA","Vehicles &  Plant","Vehicles and Plant Summary Account","Vehicles and Plant","Operating Lease Charge",01/11/2010 00:00:00,"6431406",3534.14,"CAR HIRE (DAY OF SWANSEA) LTD"
"Bracknell Forest Council","http://opendatacommunities.org/id/unitary-authority/bracknell-forest","Bracknell Forest Council","00MA","Vehicles &  Plant","Vehicles and Plant Summary Account","Vehicles and Plant","Operating Lease Charge",01/11/2010 00:00:00,"6431406",2726.82,"CAR HIRE (DAY OF SWANSEA) LTD"
"Bracknell Forest Council","http://opendatacommunities.org/id/unitary-authority/bracknell-forest","Bracknell Forest Council","00MA","Environmental Initiatives","Sustainable Development Strategies","Energy Management","Consultants Fees",30/11/2010 00:00:00,"6431036",7172,"CARBON TRUST ENTERPRISES LTD"
"Bracknell Forest Council","http://opendatacommunities.org/id/unitary-authority/bracknell-forest","Bracknell Forest Council","00MA","Learning Disability (under 65)","Residential Care Home Placements","Residential Placements-Lrng Disab","Contracted Services",21/12/2010 00:00:00,"30165583",2298.92,"CARE LTD"
"Bracknell Forest Council","http://opendatacommunities.org/id/unitary-authority/bracknell-forest","Bracknell Forest Council","00MA","Older People (Aged 65 or Over)","Residential Care Home Placements","Heathlands EPH","Other Fees for Bought-in Services",03/11/2010 00:00:00,"6431953",4059,"CARE QUALITY COMMISSION"
"Bracknell Forest Council","http://opendatacommunities.org/id/unitary-authority/bracknell-forest","Bracknell Forest Council","00MA","Older People (Aged 65 or Over)","Home Care","Home Care-Elderly","Contracted Services",16/12/2010 00:00:00,"30165452",44740.02,"CARE UK HOMECARE LTD"
"Bracknell Forest Council","http://opendatacommunities.org/id/unitary-authority/bracknell-forest","Bracknell Forest Council","00MA","Learning Disability (under 65)","Homecare","Supported Living (Homecare) LD","Contracted Services",16/12/2010 00:00:00,"30165452",652.32,"CARE UK HOMECARE LTD"
"Bracknell Forest Council","http://opendatacommunities.org/id/unitary-authority/bracknell-forest","Bracknell Forest Council","00MA","Physical Disability/Sensory Impairment","Homecare","Home Care-Phys Disab","Contracted Services",16/12/2010 00:00:00,"30165452",9815.64,"CARE UK HOMECARE LTD"
"Bracknell Forest Council","http://opendatacommunities.org/id/unitary-authority/bracknell-forest","Bracknell Forest Council","00MA","Physical Disability/Sensory Impairment","Residential Care Home Placements","Residential Placements-Phys Disab","Contracted Services",21/12/2010 00:00:00,"30165583",2619.52,"CARETECH COMMUNITY SERVICES"
"Bracknell Forest Council","http://opendatacommunities.org/id/unitary-authority/bracknell-forest","Bracknell Forest Council","00MA","Childrens services-Commissioning & SW","Commissioning & Social Work","QP - Choice Protects","Consultants Fees",15/12/2010 00:00:00,"6432342",514.16,"CAROL BIGNELL"
"Bracknell Forest Council","http://opendatacommunities.org/id/unitary-authority/bracknell-forest","Bracknell Forest Council","00MA","Non-School Funding","Pre-School Education","Early Years and Childcare","Grants and Donations",21/12/2010 00:00:00,"30165681",4364.22,"CAROUSEL NURSERY SCHOOL"
"Bracknell Forest Council","http://opendatacommunities.org/id/unitary-authority/bracknell-forest","Bracknell Forest Council","00MA","Education Management & Support Service","Education Department - Other","Education Library Service","Consultants Fees",30/11/2010 00:00:00,"6430480",609.5,"CARYS BUNDY"
"Bracknell Forest Council","http://opendatacommunities.org/id/unitary-authority/bracknell-forest","Bracknell Forest Council","00MA","Economic Development","Economic Development","Town Centre Redevelopment Viability","Consultants Fees",29/10/2010 00:00:00,"6431501",5245,"CB RICHARD ELLIS LTD"
"Bracknell Forest Council","http://opendatacommunities.org/id/unitary-authority/bracknell-forest","Bracknell Forest Council","00MA","Democratic Representation & Management COF","Democratic Representation & Management - COF","Members Services","Furniture - Purchase",19/11/2010 00:00:00,"6431050",525,"CBS BUSINESS FURNITURE LTD"
"Bracknell Forest Council","http://opendatacommunities.org/id/unitary-authority/bracknell-forest","Bracknell Forest Council","00MA","","","Planned Maintenance (Leisure)","Construction - Other Direct Expenses",16/11/2010 00:00:00,"6431060",1177.62,"CCF LTD"
"Bracknell Forest Council","http://opendatacommunities.org/id/unitary-authority/bracknell-forest","Bracknell Forest Council","00MA","","","Planned Maintenance (Leisure)","Construction - Other Direct Expenses",16/11/2010 00:00:00,"6431084",1620.78,"CCF LTD"
"Bracknell Forest Council","http://opendatacommunities.org/id/unitary-authority/bracknell-forest","Bracknell Forest Council","00MA","Learning Disability (under 65)","Residential Care Home Placements","Residential Placements-Lrng Disab","Contracted Services",21/12/2010 00:00:00,"30165583",4247.4,"CERRIG CAMU LTD"
"Bracknell Forest Council","http://opendatacommunities.org/id/unitary-authority/bracknell-forest","Bracknell Forest Council","00MA","Special Schools","Other Special Related Expenditure","Supporting Special Educational Needs","Voluntary Sector Service Providers",02/11/2010 00:00:00,"6428964",813,"CHAILEY HERITAGE SCHOOL"
"Bracknell Forest Council","http://opendatacommunities.org/id/unitary-authority/bracknell-forest","Bracknell Forest Council","00MA","Non-School Funding","Pre-School Education","The Alders Children's Centre","Other Fees for Bought-in Services",10/12/2010 00:00:00,"6432442",525,"CHARLOTTE WHITEHEAD"
"Bracknell Forest Council","http://opendatacommunities.org/id/unitary-authority/bracknell-forest","Bracknell Forest Council","00MA","Older People (Aged 65 or Over)","Residential Care Home Placements","Residential Placements-Elderly","Contracted Services",21/12/2010 00:00:00,"30165583",1819.12,"CHARNLEY CARE HOMES LTD"
"Bracknell Forest Council","http://opendatacommunities.org/id/unitary-authority/bracknell-forest","Bracknell Forest Council","00MA","Older People (Aged 65 or Over)","Residential Care Home Placements","Residential Placements-Elderly","Contracted Services",21/12/2010 00:00:00,"30165583",1923.68,"CHARNLEY CARE HOMES LTD"
"Bracknell Forest Council","http://opendatacommunities.org/id/unitary-authority/bracknell-forest","Bracknell Forest Council","00MA","Older People (Aged 65 or Over)","Residential Care Home Placements","Residential Placements-Elderly","Contracted Services",21/12/2010 00:00:00,"30165583",1923.68,"CHARNLEY CARE HOMES LTD"
"Bracknell Forest Council","http://opendatacommunities.org/id/unitary-authority/bracknell-forest","Bracknell Forest Council","00MA","Older People (Aged 65 or Over)","Residential Care Home Placements","Residential Placements-Elderly","Contracted Services",21/12/2010 00:00:00,"30165583",1819.12,"CHARNLEY CARE HOMES LTD"
"Bracknell Forest Council","http://opendatacommunities.org/id/unitary-authority/bracknell-forest","Bracknell Forest Council","00MA","Older People (Aged 65 or Over)","Residential Care Home Placements","Residential Placements-Elderly","Contracted Services",21/12/2010 00:00:00,"30165583",3742.8,"CHARNLEY CARE HOMES LTD"
"Bracknell Forest Council","http://opendatacommunities.org/id/unitary-authority/bracknell-forest","Bracknell Forest Council","00MA","Older People (Aged 65 or Over)","Residential Care Home Placements","Residential Placements-Elderly","Contracted Services",21/12/2010 00:00:00,"30165583",1819.12,"CHARNLEY CARE HOMES LTD"
"Bracknell Forest Council","http://opendatacommunities.org/id/unitary-authority/bracknell-forest","Bracknell Forest Council","00MA","Older People (Aged 65 or Over)","Residential Care Home Placements","Residential Placements-Elderly","Contracted Services",21/12/2010 00:00:00,"30165583",1923.68,"CHARNLEY CARE HOMES LTD"
"Bracknell Forest Council","http://opendatacommunities.org/id/unitary-authority/bracknell-forest","Bracknell Forest Council","00MA","Older People (Aged 65 or Over)","Nursing Home Placements","Nursing Home Placements-Elderly","Contracted Services",21/12/2010 00:00:00,"30165583",1674.8,"CHARNWOOD HALL NURSING HOME"
"Bracknell Forest Council","http://opendatacommunities.org/id/unitary-authority/bracknell-forest","Bracknell Forest Council","00MA","Non-School Funding","Pre-School Education","Early Years and Childcare","Grants and Donations",21/12/2010 00:00:00,"30165681",5082,"CHAVEY DOWN PRE-SCHOOL"
"Bracknell Forest Council","http://opendatacommunities.org/id/unitary-authority/bracknell-forest","Bracknell Forest Council","00MA","Children's Support & Management Costs","Children's Support Services & Management Costs","Sec 28A - Day Centre Purchases","Voluntary Sector Service Providers",15/11/2010 00:00:00,"6432718",15271.66,"CHELFHAM SENIOR SCHOOL PRIORY"
"Bracknell Forest Council","http://opendatacommunities.org/id/unitary-authority/bracknell-forest","Bracknell Forest Council","00MA","Special Schools","Other Special Related Expenditure","Supporting Special Educational Needs","Voluntary Sector Service Providers",15/11/2010 00:00:00,"6432718",30543.34,"CHELFHAM SENIOR SCHOOL PRIORY"
"Bracknell Forest Council","http://opendatacommunities.org/id/unitary-authority/bracknell-forest","Bracknell Forest Council","00MA","","","Disabled Facilities Grant","Grants Paid",10/12/2010 00:00:00,"6431537",2677.7,"CHENEY DISABILITY SOLUTIONS LTD"
"Bracknell Forest Council","http://opendatacommunities.org/id/unitary-authority/bracknell-forest","Bracknell Forest Council","00MA","","","Balance Sheet","Flexible Benefits Control Account",01/12/2010 00:00:00,"6430920",2300,"CHEQUERS CARS"
"Bracknell Forest Council","http://opendatacommunities.org/id/unitary-authority/bracknell-forest","Bracknell Forest Council","00MA","Older People (Aged 65 or Over)","Nursing Home Placements","Nursing Home Placements-Elderly","Contracted Services",21/12/2010 00:00:00,"30165583",2358.48,"CHERRY GARDEN NURSING HOME"
"Bracknell Forest Council","http://opendatacommunities.org/id/unitary-authority/bracknell-forest","Bracknell Forest Council","00MA","Older People (Aged 65 or Over)","Nursing Home Placements","Nursing Home Placements-Elderly","Contracted Services",21/12/2010 00:00:00,"30165583",2509.6,"CHERRY GARDEN NURSING HOME"
"Bracknell Forest Council","http://opendatacommunities.org/id/unitary-authority/bracknell-forest","Bracknell Forest Council","00MA","Older People (Aged 65 or Over)","Nursing Home Placements","Nursing Home Placements-Elderly","Contracted Services",21/12/2010 00:00:00,"30165583",2358.48,"CHERRY GARDEN NURSING HOME"
"Bracknell Forest Council","http://opendatacommunities.org/id/unitary-authority/bracknell-forest","Bracknell Forest Council","00MA","Older People (Aged 65 or Over)","Residential Care Home Placements","Residential Placements-Elderly","Contracted Services",21/12/2010 00:00:00,"30165583",1923.68,"CHERRYDALE"
"Bracknell Forest Council","http://opendatacommunities.org/id/unitary-authority/bracknell-forest","Bracknell Forest Council","00MA","Non-School Funding","Pre-School Education","Early Years and Childcare","Grants and Donations",21/12/2010 00:00:00,"30165681",6026.4,"CHERRYTOWN NURSERY"
"Bracknell Forest Council","http://opendatacommunities.org/id/unitary-authority/bracknell-forest","Bracknell Forest Council","00MA","Learning Disability (under 65)","Direct Payments - LD","Direct Payments - LD","Direct Payments to Clients",07/12/2010 00:00:00,"30164962",3498.4,"REDACTED PERSONAL DATA"
"Bracknell Forest Council","http://opendatacommunities.org/id/unitary-authority/bracknell-forest","Bracknell Forest Council","00MA","Learning Disability (under 65)","Direct Payments - LD","Direct Payments - LD","Direct Payments to Clients",22/12/2010 00:00:00,"30165698",3498.4,"REDACTED PERSONAL DATA"
"Bracknell Forest Council","http://opendatacommunities.org/id/unitary-authority/bracknell-forest","Bracknell Forest Council","00MA","Learning Disability (under 65)","Residential Care Home Placements","Sec 28A - Rsdntl Plcmnts - Learning Disa","Contracted Services",21/12/2010 00:00:00,"30165583",7478.32,"CHOICE"
"Bracknell Forest Council","http://opendatacommunities.org/id/unitary-authority/bracknell-forest","Bracknell Forest Council","00MA","Learning Disability (under 65)","Residential Care Home Placements","Residential Placements-Lrng Disab","Contracted Services",21/12/2010 00:00:00,"30165583",7772.92,"CHOICE"
"Bracknell Forest Council","http://opendatacommunities.org/id/unitary-authority/bracknell-forest","Bracknell Forest Council","00MA","Learning Disability (under 65)","Residential Care Home Placements","Residential Placements-Lrng Disab","Contracted Services",21/12/2010 00:00:00,"30165583",8196.52,"CHOICE"
"Bracknell Forest Council","http://opendatacommunities.org/id/unitary-authority/bracknell-forest","Bracknell Forest Council","00MA","Learning Disability (under 65)","Residential Care Home Placements","Residential Placements-Lrng Disab","Contracted Services",21/12/2010 00:00:00,"30165583",7753.44,"CHOICE"
"Bracknell Forest Council","http://opendatacommunities.org/id/unitary-authority/bracknell-forest","Bracknell Forest Council","00MA","Learning Disability (under 65)","Residential Care Home Placements","Residential Placements-Lrng Disab","Contracted Services",21/12/2010 00:00:00,"30165583",7330.2,"CHOICE"
"Bracknell Forest Council","http://opendatacommunities.org/id/unitary-authority/bracknell-forest","Bracknell Forest Council","00MA","Physical Disability/Sensory Impairment","Direct Payments","Direct Payments - PD","Direct Payments to Clients",07/12/2010 00:00:00,"30164962",6496,"REDACTED PERSONAL DATA"
"Bracknell Forest Council","http://opendatacommunities.org/id/unitary-authority/bracknell-forest","Bracknell Forest Council","00MA","Physical Disability/Sensory Impairment","Direct Payments","Direct Payments - PD","Client Contributions Other",07/12/2010 00:00:00,"30164962",-1343.52,"REDACTED PERSONAL DATA"
"Bracknell Forest Council","http://opendatacommunities.org/id/unitary-authority/bracknell-forest","Bracknell Forest Council","00MA","Physical Disability/Sensory Impairment","Direct Payments","Direct Payments - PD","Direct Payments to Clients",22/12/2010 00:00:00,"30165698",6496,"REDACTED PERSONAL DATA"
"Bracknell Forest Council","http://opendatacommunities.org/id/unitary-authority/bracknell-forest","Bracknell Forest Council","00MA","Physical Disability/Sensory Impairment","Direct Payments","Direct Payments - PD","Client Contributions Other",22/12/2010 00:00:00,"30165698",-1491.52,"REDACTED PERSONAL DATA"
"Bracknell Forest Council","http://opendatacommunities.org/id/unitary-authority/bracknell-forest","Bracknell Forest Council","00MA","Vehicles &  Plant","Vehicles and Plant Summary Account","Vehicles and Plant","Operating Lease Charge",22/11/2010 00:00:00,"6429923",680,"CHRYSTAL CONSULTING"
"Bracknell Forest Council","http://opendatacommunities.org/id/unitary-authority/bracknell-forest","Bracknell Forest Council","00MA","Recreation, Sports and Leisure","Indoor Sports & Recreation Facilities","Leisure DSO - Leisure Centre","Equipment - Purchase",30/11/2010 00:00:00,"6431834",1375,"CHUBB ELECTRONIC SECURITY LTD"
"Bracknell Forest Council","http://opendatacommunities.org/id/unitary-authority/bracknell-forest","Bracknell Forest Council","00MA","Recreation, Sports and Leisure","Golf Courses","Golf Course Management & Administration","R&M - Service Contracts",04/11/2010 00:00:00,"6432753",1375.98,"CHUBB ELECTRONIC SECURITY LTD"
"Bracknell Forest Council","http://opendatacommunities.org/id/unitary-authority/bracknell-forest","Bracknell Forest Council","00MA","Culture and Heritage","Heritage Museums & Galleries","The Look Out","R&M - Service Contracts",10/12/2010 00:00:00,"6432800",1576.09,"CHUBB ELECTRONIC SECURITY LTD"
"Bracknell Forest Council","http://opendatacommunities.org/id/unitary-authority/bracknell-forest","Bracknell Forest Council","00MA","","","Microsoft Exchange","IT Software",30/11/2010 00:00:00,"6431393",2651.79,"CIBER UK LTD"
"Bracknell Forest Council","http://opendatacommunities.org/id/unitary-authority/bracknell-forest","Bracknell Forest Council","00MA","Central Support Services - COF","Finance","Technical Accountancy","Reference Books & Publications",26/11/2010 00:00:00,"6430484",978.53,"CIPFA BUSINESS LTD"
"Bracknell Forest Council","http://opendatacommunities.org/id/unitary-authority/bracknell-forest","Bracknell Forest Council","00MA","Democratic Representation & Management COF","Democratic Representation & Management - COF","Members Services","Members Training & Development",18/11/2010 00:00:00,"6431007",900,"CIS ASSESSMENT CO UK"
"Bracknell Forest Council","http://opendatacommunities.org/id/unitary-authority/bracknell-forest","Bracknell Forest Council","00MA","","","Balance Sheet","Flexible Benefits Control Account",17/12/2010 00:00:00,"6432515",8910,"CITROEN SLOUGH"
"Bracknell Forest Council","http://opendatacommunities.org/id/unitary-authority/bracknell-forest","Bracknell Forest Council","00MA","Other Adult Services","Substance Abuse (Addictions)","Claremount Road Prescribing","Contracted Services",01/12/2010 00:00:00,"6430941",3960,"CLAREMONT SURGERY"
"Bracknell Forest Council","http://opendatacommunities.org/id/unitary-authority/bracknell-forest","Bracknell Forest Council","00MA","Recreation, Sports and Leisure","Dual Use Centres","Sandhurst Sports Centre","Contract Cleaning",01/12/2010 00:00:00,"6433001",1450,"CLEANRIGHT"
"Bracknell Forest Council","http://opendatacommunities.org/id/unitary-authority/bracknell-forest","Bracknell Forest Council","00MA","Central Support Services - COF","Construction and Property","Time Square Office","R&M - Reactive",23/11/2010 00:00:00,"6432156",999,"CLEARDRAINS"
"Bracknell Forest Council","http://opendatacommunities.org/id/unitary-authority/bracknell-forest","Bracknell Forest Council","00MA","Recreation, Sports and Leisure","Indoor Sports & Recreation Facilities","Leisure DSO - Leisure Centre","Electricity",30/11/2010 00:00:00,"6431531",1291.84,"COGENCO LTD"
"Bracknell Forest Council","http://opendatacommunities.org/id/unitary-authority/bracknell-forest","Bracknell Forest Council","00MA","Community Development","Community Development","Chief Executive Office excl Communications","Consultants Fees",30/11/2010 00:00:00,"6431068",1096.45,"COHESIA LTD"
"Bracknell Forest Council","http://opendatacommunities.org/id/unitary-authority/bracknell-forest","Bracknell Forest Council","00MA","","","Cem & Crem Mercury Abatement (Invest to Save)","Construction - Contract Payments",05/11/2010 00:00:00,"6431389",13486,"COLDSTORES LTD"
"Bracknell Forest Council","http://opendatacommunities.org/id/unitary-authority/bracknell-forest","Bracknell Forest Council","00MA","Older People (Aged 65 or Over)","Nursing Home Placements","Nursing Home Placements-Elderly","Contracted Services",21/12/2010 00:00:00,"30165583",1823.32,"COLLAMERE CARE HOME"
"Bracknell Forest Council","http://opendatacommunities.org/id/unitary-authority/bracknell-forest","Bracknell Forest Council","00MA","Non-School Funding","Pre-School Education","Early Years and Childcare","Grants and Donations",21/12/2010 00:00:00,"30165681",10205.1,"COLLEGE TOWN MONTESSORI"
"Bracknell Forest Council","http://opendatacommunities.org/id/unitary-authority/bracknell-forest","Bracknell Forest Council","00MA","Older People (Aged 65 or Over)","Nursing Home Placements","Nursing Home Placements-Elderly","Contracted Services",21/12/2010 00:00:00,"30165583",1923.68,"COLLINGWOOD GRANGE"
"Bracknell Forest Council","http://opendatacommunities.org/id/unitary-authority/bracknell-forest","Bracknell Forest Council","00MA","Recreation, Sports and Leisure","Indoor Sports & Recreation Facilities","Leisure DSO - Coral Reef","R&M - Service Contracts",23/11/2010 00:00:00,"6430508",508.51,"COMBINED ENERGY SOLUTIONS LTD"
"Bracknell Forest Council","http://opendatacommunities.org/id/unitary-authority/bracknell-forest","Bracknell Forest Council","00MA","Cemeteries, Crematoria & Mortuary Services","Cemeteries & Crematorium","Easthampstead Park Cemetery &Crematorium","R&M - Service Contracts",05/11/2010 00:00:00,"6430786",660,"COMFORT BUILDING SERVICES"
"Bracknell Forest Council","http://opendatacommunities.org/id/unitary-authority/bracknell-forest","Bracknell Forest Council","00MA","Other Welfare Services","Other Welfare Services","Forestcare - Lifeline","Equipment - Purchase",15/11/2010 00:00:00,"6431210",2237.25,"COMMUNICATIONS SOLUTIONS UK LTD"
"Bracknell Forest Council","http://opendatacommunities.org/id/unitary-authority/bracknell-forest","Bracknell Forest Council","00MA","Non-School Funding","Pre-School Education","Early Years and Childcare","Grants and Donations",21/12/2010 00:00:00,"30165681",9229.26,"COMMUNITY CENTRE PRE SCHOOL"
"Bracknell Forest Council","http://opendatacommunities.org/id/unitary-authority/bracknell-forest","Bracknell Forest Council","00MA","Mental Health Needs (Under 65)","Residential Care Home Placements","Residential Placements-Mental Illness","Contracted Services",21/12/2010 00:00:00,"30165583",10835.71,"COMMUNITY HOUSING & THERAPY"
"Bracknell Forest Council","http://opendatacommunities.org/id/unitary-authority/bracknell-forest","Bracknell Forest Council","00MA","Economic Development","Economic Development","Economic Development","Consultants Fees",09/09/2010 00:00:00,"6431146",15000,"COMMUNITY SAVINGS AND LOANS LTD"
"Bracknell Forest Council","http://opendatacommunities.org/id/unitary-authority/bracknell-forest","Bracknell Forest Council","00MA","Recreation, Sports and Leisure","Golf Courses","Leisure DSO - Downshire Golf Course","Publicity & Marketing",02/12/2010 00:00:00,"6431549",1790,"COMPLETE SIGN SOLUTIONS LTD"
"Bracknell Forest Council","http://opendatacommunities.org/id/unitary-authority/bracknell-forest","Bracknell Forest Council","00MA","Learning Disability (under 65)","Day Care","Bracknell Day Services","Training Costs",01/12/2010 00:00:00,"6431321",1645,"CONCEPT TRAINING LTD"
"Bracknell Forest Council","http://opendatacommunities.org/id/unitary-authority/bracknell-forest","Bracknell Forest Council","00MA","Older People (Aged 65 or Over)","Nursing Home Placements","Nursing Home Placements-Elderly","Contracted Services",21/12/2010 00:00:00,"30165583",2433.4,"CONEWOOD MANOR LIMITED"
"Bracknell Forest Council","http://opendatacommunities.org/id/unitary-authority/bracknell-forest","Bracknell Forest Council","00MA","Non-School Funding","Other Non-School Funding","Connexions Service","Consultants Fees",01/11/2010 00:00:00,"6431881",62320,"CONNEXIONS LTD"
"Bracknell Forest Council","http://opendatacommunities.org/id/unitary-authority/bracknell-forest","Bracknell Forest Council","00MA","Secondary Schools","Other Secondary Related Expenditure","Educational Attainment for Looked After Children","Contracted Services",01/10/2010 00:00:00,"6432608",5000,"CONNEXIONS LTD"
"Bracknell Forest Council","http://opendatacommunities.org/id/unitary-authority/bracknell-forest","Bracknell Forest Council","00MA","Non-School Funding","Other Non-School Funding","Connexions Service","Contracted Services",01/10/2010 00:00:00,"6432609",62320,"CONNEXIONS LTD"
"Bracknell Forest Council","http://opendatacommunities.org/id/unitary-authority/bracknell-forest","Bracknell Forest Council","00MA","Non-School Funding","Other Non-School Funding","Connexions Service","Contracted Services",01/08/2010 00:00:00,"6432610",78990,"CONNEXIONS LTD"
"Bracknell Forest Council","http://opendatacommunities.org/id/unitary-authority/bracknell-forest","Bracknell Forest Council","00MA","Learning Disability (under 65)","Homecare","Supported Living (Homecare) LD","Contracted Services",08/12/2010 00:00:00,"30165047",10536,"CONSORT SERVICES"
"Bracknell Forest Council","http://opendatacommunities.org/id/unitary-authority/bracknell-forest","Bracknell Forest Council","00MA","Learning Disability (under 65)","Homecare","Supported Living (Homecare) LD","Contracted Services",08/12/2010 00:00:00,"30165047",5268.48,"CONSORT SERVICES"
"Bracknell Forest Council","http://opendatacommunities.org/id/unitary-authority/bracknell-forest","Bracknell Forest Council","00MA","Learning Disability (under 65)","Day Care","Supported Living (Day Care) LD","Contracted Services",08/12/2010 00:00:00,"30165047",200,"CONSORT SERVICES"
"Bracknell Forest Council","http://opendatacommunities.org/id/unitary-authority/bracknell-forest","Bracknell Forest Council","00MA","Learning Disability (under 65)","Day Care","Supported Living (Day Care) LD","Contracted Services",13/12/2010 00:00:00,"30165204",200,"CONSORT SERVICES"
"Bracknell Forest Council","http://opendatacommunities.org/id/unitary-authority/bracknell-forest","Bracknell Forest Council","00MA","Learning Disability (under 65)","Homecare","Supported Living (Homecare) LD","Contracted Services",13/12/2010 00:00:00,"30165204",10536,"CONSORT SERVICES"
"Bracknell Forest Council","http://opendatacommunities.org/id/unitary-authority/bracknell-forest","Bracknell Forest Council","00MA","Learning Disability (under 65)","Homecare","Supported Living (Homecare) LD","Contracted Services",13/12/2010 00:00:00,"30165204",5268,"CONSORT SERVICES"
"Bracknell Forest Council","http://opendatacommunities.org/id/unitary-authority/bracknell-forest","Bracknell Forest Council","00MA","Learning Disability (under 65)","Residential Care Home Placements","Waymead - Short Stay","Contract Cleaning",01/12/2010 00:00:00,"6432184",520,"CONTRACT CLEANING SERVICES (SOUTHERN) LTD"
"Bracknell Forest Council","http://opendatacommunities.org/id/unitary-authority/bracknell-forest","Bracknell Forest Council","00MA","Special Schools","Other Special Related Expenditure","Supporting Special Educational Needs","Voluntary Sector Service Providers",01/11/2010 00:00:00,"6432669",9942,"I CAN CHARITY"
"Bracknell Forest Council","http://opendatacommunities.org/id/unitary-authority/bracknell-forest","Bracknell Forest Council","00MA","Special Schools","Other Special Related Expenditure","Supporting Special Educational Needs","Voluntary Sector Service Providers",01/11/2010 00:00:00,"6432716",9942,"I CAN CHARITY"
"Bracknell Forest Council","http://opendatacommunities.org/id/unitary-authority/bracknell-forest","Bracknell Forest Council","00MA","Special Schools","Other Special Related Expenditure","Supporting Special Educational Needs","Voluntary Sector Service Providers",01/11/2010 00:00:00,"6432726",9942,"I CAN CHARITY"
"Bracknell Forest Council","http://opendatacommunities.org/id/unitary-authority/bracknell-forest","Bracknell Forest Council","00MA","Special Schools","Other Special Related Expenditure","Supporting Special Educational Needs","Voluntary Sector Service Providers",01/11/2010 00:00:00,"6432727",9942,"I CAN CHARITY"
"Bracknell Forest Council","http://opendatacommunities.org/id/unitary-authority/bracknell-forest","Bracknell Forest Council","00MA","","","Improvements & Capitalised Repairs (Council Wide)","Construction - Contract Payments",18/11/2010 00:00:00,"6430234",5094.12,"IDEAL HEATING LTD"
"Bracknell Forest Council","http://opendatacommunities.org/id/unitary-authority/bracknell-forest","Bracknell Forest Council","00MA","","","Case Management Software","IT Software",30/11/2010 00:00:00,"6431377",3036,"IKEN BUSINESS LTD"
"Bracknell Forest Council","http://opendatacommunities.org/id/unitary-authority/bracknell-forest","Bracknell Forest Council","00MA","Central Support Services - COF","Information Technology","Information Technology - Management","Consultants Fees",30/11/2010 00:00:00,"6432796",774,"ILLUMINATE CONSULTING"
"Bracknell Forest Council","http://opendatacommunities.org/id/unitary-authority/bracknell-forest","Bracknell Forest Council","00MA","Central Support Services - COF","Information Technology","Information Technology - Management","Consultants Fees",17/12/2010 00:00:00,"6432797",972.6,"ILLUMINATE CONSULTING"
"Bracknell Forest Council","http://opendatacommunities.org/id/unitary-authority/bracknell-forest","Bracknell Forest Council","00MA","Education Management & Support Service","School Related Expenditure","Consortium Support Grant (Diplomas)","Other Fees for Bought-in Services",29/10/2010 00:00:00,"6432630",4396,"IMPACT UNIVERSAL LTD"
"Bracknell Forest Council","http://opendatacommunities.org/id/unitary-authority/bracknell-forest","Bracknell Forest Council","00MA","Education Management & Support Service","School Related Expenditure","Consortium Support Grant (Diplomas)","Other Fees for Bought-in Services",17/12/2010 00:00:00,"6432634",1884,"IMPACT UNIVERSAL LTD"
"Bracknell Forest Council","http://opendatacommunities.org/id/unitary-authority/bracknell-forest","Bracknell Forest Council","00MA","Holding Accounts not in Budget Book - COF","General Holding Accounts","Berkshire Capacity Building Fund","Other Fees for Bought-in Services",29/11/2010 00:00:00,"6431371",539.8,"IMPROVEMENT AND DEVELOPMENT AGENCY"
"Bracknell Forest Council","http://opendatacommunities.org/id/unitary-authority/bracknell-forest","Bracknell Forest Council","00MA","","","Balance Sheet","Flexible Benefits Control Account",06/12/2010 00:00:00,"6430997",7929,"INCHCAPE FORD"
"Bracknell Forest Council","http://opendatacommunities.org/id/unitary-authority/bracknell-forest","Bracknell Forest Council","00MA","Learning Disability (under 65)","Homecare","Supported Living (Homecare) LD","Contracted Services",15/12/2010 00:00:00,"30165407",8825.32,"INDEPENDENCE HOMES LTD"
"Bracknell Forest Council","http://opendatacommunities.org/id/unitary-authority/bracknell-forest","Bracknell Forest Council","00MA","Older People (Aged 65 or Over)","Home Care","Home Care-Elderly","Contracted Services",02/12/2010 00:00:00,"30164743",2350.8,"INDEPENDENT NURSING & CARE AGENCY"
"Bracknell Forest Council","http://opendatacommunities.org/id/unitary-authority/bracknell-forest","Bracknell Forest Council","00MA","Learning Disability (under 65)","Supported and Other Accommodation","S28a Supported Living (Supported & Other Accom) LD","Other Support to Clients",14/12/2010 00:00:00,"6432616",550,"COUNTY PROPERTY MANAGEMENT"
"Bracknell Forest Council","http://opendatacommunities.org/id/unitary-authority/bracknell-forest","Bracknell Forest Council","00MA","Public Transport","Support To Operators","Public Transport Subsidy","Contracted Services",30/11/2010 00:00:00,"6430703",3486.6,"COURTNEY COACHES LTD"
"Bracknell Forest Council","http://opendatacommunities.org/id/unitary-authority/bracknell-forest","Bracknell Forest Council","00MA","Public Transport","Support To Operators","Public Transport Subsidy","Contracted Services",30/11/2010 00:00:00,"6431873",17682.45,"COURTNEY COACHES LTD"
"Bracknell Forest Council","http://opendatacommunities.org/id/unitary-authority/bracknell-forest","Bracknell Forest Council","00MA","Public Transport","Concessionary Fares","Concessionary Fares","Contracted Services",03/12/2010 00:00:00,"6430733",3629.87,"COURTNEY COACHES LTD *CONCESSIONS ONLY*"
"Bracknell Forest Council","http://opendatacommunities.org/id/unitary-authority/bracknell-forest","Bracknell Forest Council","00MA","Learning Disability (under 65)","Homecare","Supported Living (Homecare) LD","Contracted Services",10/12/2010 00:00:00,"30165171",3593.84,"CREATING LIFESTYLES LIMITED"
"Bracknell Forest Council","http://opendatacommunities.org/id/unitary-authority/bracknell-forest","Bracknell Forest Council","00MA","Learning Disability (under 65)","Homecare","Supported Living (Homecare) LD","Contracted Services",13/12/2010 00:00:00,"30165204",3593.84,"CREATING LIFESTYLES LIMITED"
"Bracknell Forest Council","http://opendatacommunities.org/id/unitary-authority/bracknell-forest","Bracknell Forest Council","00MA","","","Primary AP - Access for Disabled","Construction - Contract Payments",16/10/2010 00:00:00,"6431163",22050.42,"CROFT BUILDING CONTRACTORS LIMITED"
"Bracknell Forest Council","http://opendatacommunities.org/id/unitary-authority/bracknell-forest","Bracknell Forest Council","00MA","","","Delegated Capital Cranbourne Primary","Construction - Contract Payments",16/10/2010 00:00:00,"6431163",12000,"CROFT BUILDING CONTRACTORS LIMITED"
"Bracknell Forest Council","http://opendatacommunities.org/id/unitary-authority/bracknell-forest","Bracknell Forest Council","00MA","","","Primary AP - Access for Disabled","Construction - Contract Payments",01/12/2010 00:00:00,"6431634",6299.5,"CROFT BUILDING CONTRACTORS LIMITED"
"Bracknell Forest Council","http://opendatacommunities.org/id/unitary-authority/bracknell-forest","Bracknell Forest Council","00MA","Older People (Aged 65 or Over)","Residential Care Home Placements","Residential Placements-Elderly","Contracted Services",21/12/2010 00:00:00,"30165583",1817.04,"CROSSWAYS RESIDENTIAL HOME"
"Bracknell Forest Council","http://opendatacommunities.org/id/unitary-authority/bracknell-forest","Bracknell Forest Council","00MA","Older People (Aged 65 or Over)","Residential Care Home Placements","Residential Placements-Elderly","Contracted Services",21/12/2010 00:00:00,"30165583",1819.12,"CROSSWAYS RESIDENTIAL HOME"
"Bracknell Forest Council","http://opendatacommunities.org/id/unitary-authority/bracknell-forest","Bracknell Forest Council","00MA","Older People (Aged 65 or Over)","Residential Care Home Placements","Residential Placements-Elderly","Contracted Services",21/12/2010 00:00:00,"30165583",1819.12,"CROSSWAYS RESIDENTIAL HOME"
"Bracknell Forest Council","http://opendatacommunities.org/id/unitary-authority/bracknell-forest","Bracknell Forest Council","00MA","Older People (Aged 65 or Over)","Residential Care Home Placements","Residential Placements-Elderly","Contracted Services",21/12/2010 00:00:00,"30165583",1819.12,"CROSSWAYS RESIDENTIAL HOME"
"Bracknell Forest Council","http://opendatacommunities.org/id/unitary-authority/bracknell-forest","Bracknell Forest Council","00MA","Older People (Aged 65 or Over)","Residential Care Home Placements","Residential Placements-Elderly","Contracted Services",21/12/2010 00:00:00,"30165583",1819.12,"CROSSWAYS RESIDENTIAL HOME"
"Bracknell Forest Council","http://opendatacommunities.org/id/unitary-authority/bracknell-forest","Bracknell Forest Council","00MA","Older People (Aged 65 or Over)","Home Care","Home Care-Elderly","Contracted Services",02/12/2010 00:00:00,"30164743",2069.6,"INDEPENDENT NURSING & CARE AGENCY"
"Bracknell Forest Council","http://opendatacommunities.org/id/unitary-authority/bracknell-forest","Bracknell Forest Council","00MA","Older People (Aged 65 or Over)","Home Care","Home Care-Elderly","Contracted Services",02/12/2010 00:00:00,"30164743",716.4,"INDEPENDENT NURSING & CARE AGENCY"
"Bracknell Forest Council","http://opendatacommunities.org/id/unitary-authority/bracknell-forest","Bracknell Forest Council","00MA","Older People (Aged 65 or Over)","Home Care","Home Care-Elderly","Contracted Services",02/12/2010 00:00:00,"30164743",349.2,"INDEPENDENT NURSING & CARE AGENCY"
"Bracknell Forest Council","http://opendatacommunities.org/id/unitary-authority/bracknell-forest","Bracknell Forest Council","00MA","Older People (Aged 65 or Over)","Home Care","Home Care-Elderly","Contracted Services",02/12/2010 00:00:00,"30164743",1130.4,"INDEPENDENT NURSING & CARE AGENCY"
"Bracknell Forest Council","http://opendatacommunities.org/id/unitary-authority/bracknell-forest","Bracknell Forest Council","00MA","Older People (Aged 65 or Over)","Home Care","Home Care-Elderly","Contracted Services",02/12/2010 00:00:00,"30164743",1051.2,"INDEPENDENT NURSING & CARE AGENCY"
"Bracknell Forest Council","http://opendatacommunities.org/id/unitary-authority/bracknell-forest","Bracknell Forest Council","00MA","Physical Disability/Sensory Impairment","Homecare","Home Care-Phys Disab","Contracted Services",02/12/2010 00:00:00,"30164743",2008.8,"INDEPENDENT NURSING & CARE AGENCY"
"Bracknell Forest Council","http://opendatacommunities.org/id/unitary-authority/bracknell-forest","Bracknell Forest Council","00MA","Physical Disability/Sensory Impairment","Homecare","Home Care-Phys Disab","Contracted Services",02/12/2010 00:00:00,"30164743",165.6,"INDEPENDENT NURSING & CARE AGENCY"
"Bracknell Forest Council","http://opendatacommunities.org/id/unitary-authority/bracknell-forest","Bracknell Forest Council","00MA","Older People (Aged 65 or Over)","Home Care","Home Care-Elderly","Contracted Services",02/12/2010 00:00:00,"30164743",637.2,"INDEPENDENT NURSING & CARE AGENCY"
"Bracknell Forest Council","http://opendatacommunities.org/id/unitary-authority/bracknell-forest","Bracknell Forest Council","00MA","Learning Disability (under 65)","Homecare","Home Care Learning Disability","Contracted Services",02/12/2010 00:00:00,"30164743",464,"INDEPENDENT NURSING & CARE AGENCY"
"Bracknell Forest Council","http://opendatacommunities.org/id/unitary-authority/bracknell-forest","Bracknell Forest Council","00MA","Older People (Aged 65 or Over)","Residential Care Home Placements","Residential Placements-Elderly","Contracted Services",21/12/2010 00:00:00,"30165583",1819.12,"INGLEMERE HOUSE"
"Bracknell Forest Council","http://opendatacommunities.org/id/unitary-authority/bracknell-forest","Bracknell Forest Council","00MA","Older People (Aged 65 or Over)","Residential Care Home Placements","Residential Placements-Elderly","Contracted Services",21/12/2010 00:00:00,"30165583",1819.12,"INGLEMERE HOUSE"
"Bracknell Forest Council","http://opendatacommunities.org/id/unitary-authority/bracknell-forest","Bracknell Forest Council","00MA","Older People (Aged 65 or Over)","Residential Care Home Placements","Residential Placements-Elderly","Contracted Services",21/12/2010 00:00:00,"30165583",1818.8,"INGLEMERE HOUSE"
"Bracknell Forest Council","http://opendatacommunities.org/id/unitary-authority/bracknell-forest","Bracknell Forest Council","00MA","Older People (Aged 65 or Over)","Residential Care Home Placements","Residential Placements-Elderly","Contracted Services",21/12/2010 00:00:00,"30165583",1818.8,"INGLEMERE HOUSE"
"Bracknell Forest Council","http://opendatacommunities.org/id/unitary-authority/bracknell-forest","Bracknell Forest Council","00MA","Older People (Aged 65 or Over)","Residential Care Home Placements","Residential Placements MH 65 and Over","Contracted Services",21/12/2010 00:00:00,"30165583",1819.12,"INGLEMERE HOUSE"
"Bracknell Forest Council","http://opendatacommunities.org/id/unitary-authority/bracknell-forest","Bracknell Forest Council","00MA","Recreation, Sports and Leisure","Retail Services, Catering & Licenced","Easthampstead Park Centre - Catering","Cost of Goods Sold",02/11/2010 00:00:00,"6431507",589.71,"CROWN  WATER & COFFEE LTD"
"Bracknell Forest Council","http://opendatacommunities.org/id/unitary-authority/bracknell-forest","Bracknell Forest Council","00MA","Education Management & Support Service","School Related Expenditure","Education Centre","Catering Consumables",16/12/2010 00:00:00,"6432132",538.9,"CROWN  WATER & COFFEE LTD"
"Bracknell Forest Council","http://opendatacommunities.org/id/unitary-authority/bracknell-forest","Bracknell Forest Council","00MA","Education Management & Support Service","School Related Expenditure","HTS Interim","Taxi Fares - Home/School Transport",03/11/2010 00:00:00,"6431215",9128.9,"CROWN WHEELCHAIR TRAVEL"
"Bracknell Forest Council","http://opendatacommunities.org/id/unitary-authority/bracknell-forest","Bracknell Forest Council","00MA","Education Management & Support Service","School Related Expenditure","HTS Interim","Taxi Fares - Home/School Transport",03/11/2010 00:00:00,"6431216",11507.39,"CROWN WHEELCHAIR TRAVEL"
"Bracknell Forest Council","http://opendatacommunities.org/id/unitary-authority/bracknell-forest","Bracknell Forest Council","00MA","Education Management & Support Service","School Related Expenditure","HTS Interim","Taxi Fares - Home/School Transport",20/12/2010 00:00:00,"6432893",6561.94,"CROWN WHEELCHAIR TRAVEL"
"Bracknell Forest Council","http://opendatacommunities.org/id/unitary-authority/bracknell-forest","Bracknell Forest Council","00MA","Education Management & Support Service","School Related Expenditure","HTS Interim","Taxi Fares - Home/School Transport",20/12/2010 00:00:00,"6432894",5394.35,"CROWN WHEELCHAIR TRAVEL"
"Bracknell Forest Council","http://opendatacommunities.org/id/unitary-authority/bracknell-forest","Bracknell Forest Council","00MA","Non-School Funding","Pre-School Education","Early Years and Childcare","Grants and Donations",21/12/2010 00:00:00,"30165681",4256.18,"CROWTHORNE VILLAGE PRE-SCHOOL"
"Bracknell Forest Council","http://opendatacommunities.org/id/unitary-authority/bracknell-forest","Bracknell Forest Council","00MA","","","Sandy Lane Primary","IT Hardware",30/10/2010 00:00:00,"6433015",5659.51,"CSE EDUCATION SYSTEMS LTD"
"Bracknell Forest Council","http://opendatacommunities.org/id/unitary-authority/bracknell-forest","Bracknell Forest Council","00MA","","","Sandy Lane Primary","IT Hardware",30/10/2010 00:00:00,"6433016",16845.82,"CSE EDUCATION SYSTEMS LTD"
"Bracknell Forest Council","http://opendatacommunities.org/id/unitary-authority/bracknell-forest","Bracknell Forest Council","00MA","","","Sandy Lane Primary","IT Hardware",30/10/2010 00:00:00,"6433017",4014.18,"CSE EDUCATION SYSTEMS LTD"
"Bracknell Forest Council","http://opendatacommunities.org/id/unitary-authority/bracknell-forest","Bracknell Forest Council","00MA","","","Crown Wood Primary","IT Hardware",30/10/2010 00:00:00,"6433018",7685.42,"CSE EDUCATION SYSTEMS LTD"
"Bracknell Forest Council","http://opendatacommunities.org/id/unitary-authority/bracknell-forest","Bracknell Forest Council","00MA","","","Balance Sheet","Flexible Benefits Control Account",13/12/2010 00:00:00,"6431733",680.85,"CYCLESCHEME LTD"
"Bracknell Forest Council","http://opendatacommunities.org/id/unitary-authority/bracknell-forest","Bracknell Forest Council","00MA","","","Social Care","Construction - Other Direct Expenses",01/11/2010 00:00:00,"6431638",5790,"D A KELLY"
"Bracknell Forest Council","http://opendatacommunities.org/id/unitary-authority/bracknell-forest","Bracknell Forest Council","00MA","Physical Disability/Sensory Impairment","Other Services to Adults with a PD or SI","Other Care & Support-Phys Disab","Other Support to Clients",10/12/2010 00:00:00,"30165171",960,"D J  ELDERFIELD"
"Bracknell Forest Council","http://opendatacommunities.org/id/unitary-authority/bracknell-forest","Bracknell Forest Council","00MA","Older People (Aged 65 or Over)","Other Services To Older People","Other Care & Support-Elderly","Other Support to Clients",10/12/2010 00:00:00,"30165171",40,"D J  ELDERFIELD"
"Bracknell Forest Council","http://opendatacommunities.org/id/unitary-authority/bracknell-forest","Bracknell Forest Council","00MA","Older People (Aged 65 or Over)","Other Services To Older People","Other Care & Support-Elderly","Other Support to Clients",13/12/2010 00:00:00,"30165204",40,"D J  ELDERFIELD"
"Bracknell Forest Council","http://opendatacommunities.org/id/unitary-authority/bracknell-forest","Bracknell Forest Council","00MA","Physical Disability/Sensory Impairment","Other Services to Adults with a PD or SI","Other Care & Support-Phys Disab","Other Support to Clients",13/12/2010 00:00:00,"30165204",460,"D J  ELDERFIELD"
"Bracknell Forest Council","http://opendatacommunities.org/id/unitary-authority/bracknell-forest","Bracknell Forest Council","00MA","Central Support Services - COF","Policy Unit","Town & Country","Printing and Design",30/11/2010 00:00:00,"6431067",3400,"D2D DISTRIBUTION LTD"
"Bracknell Forest Council","http://opendatacommunities.org/id/unitary-authority/bracknell-forest","Bracknell Forest Council","00MA","Education Management & Support Service","School Related Expenditure","School Catering","Free Milk",01/12/2010 00:00:00,"6430702",3231.55,"DAIRY CREST LIMITED"
"Bracknell Forest Council","http://opendatacommunities.org/id/unitary-authority/bracknell-forest","Bracknell Forest Council","00MA","Learning Disability (under 65)","Direct Payments - LD","Direct Payments - LD","Client Contributions Other",07/12/2010 00:00:00,"30164962",-106.68,"REDACTED PERSONAL DATA"
"Bracknell Forest Council","http://opendatacommunities.org/id/unitary-authority/bracknell-forest","Bracknell Forest Council","00MA","Learning Disability (under 65)","Direct Payments - LD","Direct Payments - LD","Direct Payments to Clients",07/12/2010 00:00:00,"30164962",724.4,"REDACTED PERSONAL DATA"
"Bracknell Forest Council","http://opendatacommunities.org/id/unitary-authority/bracknell-forest","Bracknell Forest Council","00MA","Learning Disability (under 65)","Direct Payments - LD","Direct Payments - LD","Direct Payments to Clients",22/12/2010 00:00:00,"30165698",724.4,"REDACTED PERSONAL DATA"
"Bracknell Forest Council","http://opendatacommunities.org/id/unitary-authority/bracknell-forest","Bracknell Forest Council","00MA","Learning Disability (under 65)","Direct Payments - LD","Direct Payments - LD","Client Contributions Other",22/12/2010 00:00:00,"30165698",186.69,"REDACTED PERSONAL DATA"
"Bracknell Forest Council","http://opendatacommunities.org/id/unitary-authority/bracknell-forest","Bracknell Forest Council","00MA","Recreation, Sports and Leisure","Indoor Sports & Recreation Facilities","Leisure DSO - Coral Reef","Equipment - Purchase",22/11/2010 00:00:00,"6430243",1202.85,"DANUK INNOVATIVE GIFTS LTD"
"Bracknell Forest Council","http://opendatacommunities.org/id/unitary-authority/bracknell-forest","Bracknell Forest Council","00MA","Non-School Funding","Youth Services","Youth Opportunity Fund","Youth & Community Activities",10/12/2010 00:00:00,"6432408",930,"REDACTED PERSONAL DATA"
"Bracknell Forest Council","http://opendatacommunities.org/id/unitary-authority/bracknell-forest","Bracknell Forest Council","00MA","Physical Disability/Sensory Impairment","Direct Payments","Direct Payments - PD","Direct Payments to Clients",07/12/2010 00:00:00,"30164962",5533.28,"REDACTED PERSONAL DATA"
"Bracknell Forest Council","http://opendatacommunities.org/id/unitary-authority/bracknell-forest","Bracknell Forest Council","00MA","Physical Disability/Sensory Impairment","Direct Payments","Direct Payments - PD","Direct Payments to Clients",22/12/2010 00:00:00,"30165698",5533.28,"REDACTED PERSONAL DATA"
"Bracknell Forest Council","http://opendatacommunities.org/id/unitary-authority/bracknell-forest","Bracknell Forest Council","00MA","Childrens services-Commissioning & SW","Commissioning & Social Work","Safeguarding Childrens Board","Training Costs",01/12/2010 00:00:00,"6430684",1000,"DAVID CHAPMAN C.Q.S.W"
"Bracknell Forest Council","http://opendatacommunities.org/id/unitary-authority/bracknell-forest","Bracknell Forest Council","00MA","Older People (Aged 65 or Over)","Residential Care Home Placements","Heathlands EPH","Catering Consumables",17/11/2010 00:00:00,"6430756",602.45,"DBC FOODSERVICE"
"Bracknell Forest Council","http://opendatacommunities.org/id/unitary-authority/bracknell-forest","Bracknell Forest Council","00MA","Older People (Aged 65 or Over)","Residential Care Home Placements","Heathlands EPH","Catering Consumables",01/12/2010 00:00:00,"6431353",701.04,"DBC FOODSERVICE"
"Bracknell Forest Council","http://opendatacommunities.org/id/unitary-authority/bracknell-forest","Bracknell Forest Council","00MA","Older People (Aged 65 or Over)","Residential Care Home Placements","Heathlands EPH","Catering Consumables",08/12/2010 00:00:00,"6432958",1063.73,"DBC FOODSERVICE"
"Bracknell Forest Council","http://opendatacommunities.org/id/unitary-authority/bracknell-forest","Bracknell Forest Council","00MA","","","Balance Sheet","Debtors Refunds Control",03/12/2010 00:00:00,"6430743",1320.3,"DEBTOR REFUND SUNDRY ACCOUNT"
"Bracknell Forest Council","http://opendatacommunities.org/id/unitary-authority/bracknell-forest","Bracknell Forest Council","00MA","","","Balance Sheet","Debtors Refunds Control",15/12/2010 00:00:00,"6431798",508.7,"DEBTOR REFUND SUNDRY ACCOUNT"
"Bracknell Forest Council","http://opendatacommunities.org/id/unitary-authority/bracknell-forest","Bracknell Forest Council","00MA","","","ICT Maint Prog - Desktop","IT Hardware",03/11/2010 00:00:00,"6430664",2268,"DELL COMPUTER CORPORATION"
"Bracknell Forest Council","http://opendatacommunities.org/id/unitary-authority/bracknell-forest","Bracknell Forest Council","00MA","Education Management & Support Service","Learning, Achievement & Libraries","Learning, Achievement & Libraries","Externally Purchased Professional Services-curric",04/12/2010 00:00:00,"6431040",942.5,"DENISE THORNTON"
"Bracknell Forest Council","http://opendatacommunities.org/id/unitary-authority/bracknell-forest","Bracknell Forest Council","00MA","Open Spaces","Community Parks & Open Spaces","Tree Service","Contracted Services",24/11/2010 00:00:00,"6430501",600,"DENNIS ARTIS"
"Bracknell Forest Council","http://opendatacommunities.org/id/unitary-authority/bracknell-forest","Bracknell Forest Council","00MA","Open Spaces","Community Parks & Open Spaces","Tree Service","Contracted Services",10/12/2010 00:00:00,"6431860",680,"DENNIS ARTIS"
"Bracknell Forest Council","http://opendatacommunities.org/id/unitary-authority/bracknell-forest","Bracknell Forest Council","00MA","Open Spaces","Community Parks & Open Spaces","Tree Service","Contracted Services",10/12/2010 00:00:00,"6431861",850,"DENNIS ARTIS"
"Bracknell Forest Council","http://opendatacommunities.org/id/unitary-authority/bracknell-forest","Bracknell Forest Council","00MA","","","Balance Sheet","Flexible Benefits Control Account",02/12/2010 00:00:00,"6431809",847.2,"DENPLAN LIMITED"
"Bracknell Forest Council","http://opendatacommunities.org/id/unitary-authority/bracknell-forest","Bracknell Forest Council","00MA","Learning Disability (under 65)","Homecare","Supported Living (Homecare) LD","Contracted Services",08/12/2010 00:00:00,"30165047",4553.92,"DIMENSIONS (NSO) LTD"
"Bracknell Forest Council","http://opendatacommunities.org/id/unitary-authority/bracknell-forest","Bracknell Forest Council","00MA","Older People (Aged 65 or Over)","Home Care","Supported Living (Homecare) LD over 65","Contracted Services",10/12/2010 00:00:00,"30165171",4847.92,"DIMENSIONS (NSO) LTD"
"Bracknell Forest Council","http://opendatacommunities.org/id/unitary-authority/bracknell-forest","Bracknell Forest Council","00MA","Learning Disability (under 65)","Homecare","Supported Living (Homecare) LD","Contracted Services",10/12/2010 00:00:00,"30165171",4398.64,"DIMENSIONS (NSO) LTD"
"Bracknell Forest Council","http://opendatacommunities.org/id/unitary-authority/bracknell-forest","Bracknell Forest Council","00MA","Learning Disability (under 65)","Homecare","Supported Living (Homecare) LD","Contracted Services",10/12/2010 00:00:00,"30165171",2614.28,"DIMENSIONS (NSO) LTD"
"Bracknell Forest Council","http://opendatacommunities.org/id/unitary-authority/bracknell-forest","Bracknell Forest Council","00MA","Learning Disability (under 65)","Day Care","Supported Living (Day Care) LD","Contracted Services",10/12/2010 00:00:00,"30165171",2726.89,"DIMENSIONS (NSO) LTD"
"Bracknell Forest Council","http://opendatacommunities.org/id/unitary-authority/bracknell-forest","Bracknell Forest Council","00MA","Learning Disability (under 65)","Day Care","Supported Living (Day Care) LD","Contracted Services",10/12/2010 00:00:00,"30165171",931.2,"DIMENSIONS (NSO) LTD"
"Bracknell Forest Council","http://opendatacommunities.org/id/unitary-authority/bracknell-forest","Bracknell Forest Council","00MA","Learning Disability (under 65)","Day Care","Supported Living (Day Care) LD","Contracted Services",10/12/2010 00:00:00,"30165171",1116.75,"DIMENSIONS (NSO) LTD"
"Bracknell Forest Council","http://opendatacommunities.org/id/unitary-authority/bracknell-forest","Bracknell Forest Council","00MA","Learning Disability (under 65)","Homecare","S28a Supported Living (Homecare) LD","Contracted Services",10/12/2010 00:00:00,"30165171",4608.24,"DIMENSIONS (NSO) LTD"
"Bracknell Forest Council","http://opendatacommunities.org/id/unitary-authority/bracknell-forest","Bracknell Forest Council","00MA","Learning Disability (under 65)","Homecare","Supported Living (Homecare) LD","Contracted Services",15/12/2010 00:00:00,"30165407",3705.04,"DIMENSIONS (NSO) LTD"
"Bracknell Forest Council","http://opendatacommunities.org/id/unitary-authority/bracknell-forest","Bracknell Forest Council","00MA","Learning Disability (under 65)","Homecare","Supported Living (Homecare) LD","Contracted Services",15/12/2010 00:00:00,"30165407",5088.44,"DIMENSIONS (NSO) LTD"
"Bracknell Forest Council","http://opendatacommunities.org/id/unitary-authority/bracknell-forest","Bracknell Forest Council","00MA","Learning Disability (under 65)","Homecare","S28a Supported Living Homecare Waymead 7","Contracted Services",15/12/2010 00:00:00,"30165407",7966.72,"DIMENSIONS (NSO) LTD"
"Bracknell Forest Council","http://opendatacommunities.org/id/unitary-authority/bracknell-forest","Bracknell Forest Council","00MA","Older People (Aged 65 or Over)","Home Care","Supported Living (Homecare) LD over 65","Contracted Services",15/12/2010 00:00:00,"30165407",721.36,"DIMENSIONS (NSO) LTD"
"Bracknell Forest Council","http://opendatacommunities.org/id/unitary-authority/bracknell-forest","Bracknell Forest Council","00MA","Learning Disability (under 65)","Homecare","Supported Living (Homecare) LD","Contracted Services",15/12/2010 00:00:00,"30165407",1288.2,"DIMENSIONS (NSO) LTD"
"Bracknell Forest Council","http://opendatacommunities.org/id/unitary-authority/bracknell-forest","Bracknell Forest Council","00MA","Learning Disability (under 65)","Homecare","Supported Living (Homecare) LD","Contracted Services",15/12/2010 00:00:00,"30165407",179.76,"DIMENSIONS (NSO) LTD"
"Bracknell Forest Council","http://opendatacommunities.org/id/unitary-authority/bracknell-forest","Bracknell Forest Council","00MA","Learning Disability (under 65)","Homecare","Supported Living (Homecare) LD","Contracted Services",15/12/2010 00:00:00,"30165407",753.76,"DIMENSIONS (NSO) LTD"
"Bracknell Forest Council","http://opendatacommunities.org/id/unitary-authority/bracknell-forest","Bracknell Forest Council","00MA","Learning Disability (under 65)","Homecare","S28a Supported Living (Homecare) LD","Contracted Services",15/12/2010 00:00:00,"30165407",9606.8,"DIMENSIONS (NSO) LTD"
"Bracknell Forest Council","http://opendatacommunities.org/id/unitary-authority/bracknell-forest","Bracknell Forest Council","00MA","Learning Disability (under 65)","Homecare","S28a Supported Living (Homecare) LD","Contracted Services",15/12/2010 00:00:00,"30165407",6915.88,"DIMENSIONS (NSO) LTD"
"Bracknell Forest Council","http://opendatacommunities.org/id/unitary-authority/bracknell-forest","Bracknell Forest Council","00MA","Learning Disability (under 65)","Day Care","Supported Living (Day Care) LD","Contracted Services",15/12/2010 00:00:00,"30165407",918.6,"DIMENSIONS (NSO) LTD"
"Bracknell Forest Council","http://opendatacommunities.org/id/unitary-authority/bracknell-forest","Bracknell Forest Council","00MA","Learning Disability (under 65)","Day Care","Supported Living (Day Care) LD","Contracted Services",15/12/2010 00:00:00,"30165407",855.16,"DIMENSIONS (NSO) LTD"
"Bracknell Forest Council","http://opendatacommunities.org/id/unitary-authority/bracknell-forest","Bracknell Forest Council","00MA","Learning Disability (under 65)","Homecare","S28a Supported Living (Homecare) LD","Contracted Services",15/12/2010 00:00:00,"30165407",5997.6,"DIMENSIONS (NSO) LTD"
"Bracknell Forest Council","http://opendatacommunities.org/id/unitary-authority/bracknell-forest","Bracknell Forest Council","00MA","Older People (Aged 65 or Over)","Home Care","Supported Living (Homecare) LD over 65","Contracted Services",16/12/2010 00:00:00,"30165452",7674.24,"DIMENSIONS (NSO) LTD"
"Bracknell Forest Council","http://opendatacommunities.org/id/unitary-authority/bracknell-forest","Bracknell Forest Council","00MA","Older People (Aged 65 or Over)","Home Care","Supported Living (Homecare) LD over 65","Contracted Services",16/12/2010 00:00:00,"30165452",7040.6,"DIMENSIONS (NSO) LTD"
"Bracknell Forest Council","http://opendatacommunities.org/id/unitary-authority/bracknell-forest","Bracknell Forest Council","00MA","Learning Disability (under 65)","Homecare","Supported Living (Homecare) LD","Contracted Services",16/12/2010 00:00:00,"30165452",7220.36,"DIMENSIONS (NSO) LTD"
"Bracknell Forest Council","http://opendatacommunities.org/id/unitary-authority/bracknell-forest","Bracknell Forest Council","00MA","Learning Disability (under 65)","Homecare","Supported Living (Homecare) LD","Contracted Services",16/12/2010 00:00:00,"30165452",3439.92,"DIMENSIONS (NSO) LTD"
"Bracknell Forest Council","http://opendatacommunities.org/id/unitary-authority/bracknell-forest","Bracknell Forest Council","00MA","Learning Disability (under 65)","Homecare","Supported Living (Homecare) LD","Contracted Services",16/12/2010 00:00:00,"30165452",10414.05,"DIMENSIONS (NSO) LTD"
"Bracknell Forest Council","http://opendatacommunities.org/id/unitary-authority/bracknell-forest","Bracknell Forest Council","00MA","Learning Disability (under 65)","Homecare","Supported Living (Homecare) LD","Contracted Services",16/12/2010 00:00:00,"30165452",3889.24,"DIMENSIONS (NSO) LTD"
"Bracknell Forest Council","http://opendatacommunities.org/id/unitary-authority/bracknell-forest","Bracknell Forest Council","00MA","Learning Disability (under 65)","Homecare","Supported Living (Homecare) LD","Contracted Services",16/12/2010 00:00:00,"30165452",3777.04,"DIMENSIONS (NSO) LTD"
"Bracknell Forest Council","http://opendatacommunities.org/id/unitary-authority/bracknell-forest","Bracknell Forest Council","00MA","Learning Disability (under 65)","Homecare","Supported Living (Homecare) LD","Contracted Services",16/12/2010 00:00:00,"30165452",7040.6,"DIMENSIONS (NSO) LTD"
"Bracknell Forest Council","http://opendatacommunities.org/id/unitary-authority/bracknell-forest","Bracknell Forest Council","00MA","Learning Disability (under 65)","Homecare","Supported Living (Homecare) LD","Contracted Services",16/12/2010 00:00:00,"30165452",3799.32,"DIMENSIONS (NSO) LTD"
"Bracknell Forest Council","http://opendatacommunities.org/id/unitary-authority/bracknell-forest","Bracknell Forest Council","00MA","Learning Disability (under 65)","Homecare","S28a Supported Living (Homecare) LD","Contracted Services",16/12/2010 00:00:00,"30165452",5266.97,"DIMENSIONS (NSO) LTD"
"Bracknell Forest Council","http://opendatacommunities.org/id/unitary-authority/bracknell-forest","Bracknell Forest Council","00MA","Learning Disability (under 65)","Homecare","Supported Living (Homecare) LD","Contracted Services",16/12/2010 00:00:00,"30165452",4068.96,"DIMENSIONS (NSO) LTD"
"Bracknell Forest Council","http://opendatacommunities.org/id/unitary-authority/bracknell-forest","Bracknell Forest Council","00MA","Learning Disability (under 65)","Homecare","Supported Living (Homecare) LD","Contracted Services",16/12/2010 00:00:00,"30165452",1923.04,"DIMENSIONS (NSO) LTD"
"Bracknell Forest Council","http://opendatacommunities.org/id/unitary-authority/bracknell-forest","Bracknell Forest Council","00MA","Learning Disability (under 65)","Homecare","Supported Living (Homecare) LD","Contracted Services",16/12/2010 00:00:00,"30165452",10474.02,"DIMENSIONS (NSO) LTD"
"Bracknell Forest Council","http://opendatacommunities.org/id/unitary-authority/bracknell-forest","Bracknell Forest Council","00MA","Learning Disability (under 65)","Residential Care Home Placements","S28a LD Contract Homes Residential Care","Contracted Services",21/12/2010 00:00:00,"30165583",-6226.3,"DIMENSIONS (NSO) LTD"
"Bracknell Forest Council","http://opendatacommunities.org/id/unitary-authority/bracknell-forest","Bracknell Forest Council","00MA","Learning Disability (under 65)","Residential Care Home Placements","Sec 28A - Rsdntl Plcmnts - Learning Disa","Contracted Services",21/12/2010 00:00:00,"30165583",22435.89,"DIMENSIONS (NSO) LTD"
"Bracknell Forest Council","http://opendatacommunities.org/id/unitary-authority/bracknell-forest","Bracknell Forest Council","00MA","Non-School Funding","Pre-School Education","Early Years and Childcare","Grants and Donations",21/12/2010 00:00:00,"30165681",6984,"DOLPHIN NURSERY (BRACKNELL) LTD"
"Bracknell Forest Council","http://opendatacommunities.org/id/unitary-authority/bracknell-forest","Bracknell Forest Council","00MA","Older People (Aged 65 or Over)","Nursing Home Placements","Nursing Home Placements-Elderly","Contracted Services",21/12/2010 00:00:00,"30165583",5205.28,"DORMY HOUSE (SUNNINGDALE) LTD"
"Bracknell Forest Council","http://opendatacommunities.org/id/unitary-authority/bracknell-forest","Bracknell Forest Council","00MA","Older People (Aged 65 or Over)","Nursing Home Placements","Nursing Home Placements-Elderly","Contracted Services",21/12/2010 00:00:00,"30165583",2353.04,"DORMY HOUSE (SUNNINGDALE) LTD"
"Bracknell Forest Council","http://opendatacommunities.org/id/unitary-authority/bracknell-forest","Bracknell Forest Council","00MA","Older People (Aged 65 or Over)","Nursing Home Placements","Nursing Home Placements-Elderly","Contracted Services",21/12/2010 00:00:00,"30165583",2638.68,"DORMY HOUSE (SUNNINGDALE) LTD"
"Bracknell Forest Council","http://opendatacommunities.org/id/unitary-authority/bracknell-forest","Bracknell Forest Council","00MA","Older People (Aged 65 or Over)","Nursing Home Placements","Nursing Home Placements-Elderly","Contracted Services",21/12/2010 00:00:00,"30165583",2163.52,"DORMY HOUSE (SUNNINGDALE) LTD"
"Bracknell Forest Council","http://opendatacommunities.org/id/unitary-authority/bracknell-forest","Bracknell Forest Council","00MA","Older People (Aged 65 or Over)","Nursing Home Placements","Nursing Home Placements-Elderly","Contracted Services",21/12/2010 00:00:00,"30165583",505.39,"DORMY HOUSE (SUNNINGDALE) LTD"
"Bracknell Forest Council","http://opendatacommunities.org/id/unitary-authority/bracknell-forest","Bracknell Forest Council","00MA","Older People (Aged 65 or Over)","Nursing Home Placements","Nursing Home Placements-Elderly","Contracted Services",21/12/2010 00:00:00,"30165583",2358.48,"DORMY HOUSE (SUNNINGDALE) LTD"
"Bracknell Forest Council","http://opendatacommunities.org/id/unitary-authority/bracknell-forest","Bracknell Forest Council","00MA","Older People (Aged 65 or Over)","Nursing Home Placements","Nursing Home Placements-Elderly","Contracted Services",21/12/2010 00:00:00,"30165583",2358.48,"DORMY HOUSE (SUNNINGDALE) LTD"
"Bracknell Forest Council","http://opendatacommunities.org/id/unitary-authority/bracknell-forest","Bracknell Forest Council","00MA","Older People (Aged 65 or Over)","Residential Care Home Placements","Residential Placements-Elderly","Contracted Services",21/12/2010 00:00:00,"30165583",1656.32,"DORMY HOUSE (SUNNINGDALE) LTD"
"Bracknell Forest Council","http://opendatacommunities.org/id/unitary-authority/bracknell-forest","Bracknell Forest Council","00MA","Older People (Aged 65 or Over)","Residential Care Home Placements","Residential Placements-Elderly","Contracted Services",21/12/2010 00:00:00,"30165583",1819.12,"DORMY HOUSE (SUNNINGDALE) LTD"
"Bracknell Forest Council","http://opendatacommunities.org/id/unitary-authority/bracknell-forest","Bracknell Forest Council","00MA","Older People (Aged 65 or Over)","Direct Payments","Direct Payments - OP","Client Contributions Other",07/12/2010 00:00:00,"30164962",-243.76,"REDACTED PERSONAL DATA"
"Bracknell Forest Council","http://opendatacommunities.org/id/unitary-authority/bracknell-forest","Bracknell Forest Council","00MA","Older People (Aged 65 or Over)","Direct Payments","Direct Payments - OP","Direct Payments to Clients",07/12/2010 00:00:00,"30164962",707.2,"REDACTED PERSONAL DATA"
"Bracknell Forest Council","http://opendatacommunities.org/id/unitary-authority/bracknell-forest","Bracknell Forest Council","00MA","Older People (Aged 65 or Over)","Direct Payments","Direct Payments - OP","Client Contributions Other",22/12/2010 00:00:00,"30165698",-243.76,"REDACTED PERSONAL DATA"
"Bracknell Forest Council","http://opendatacommunities.org/id/unitary-authority/bracknell-forest","Bracknell Forest Council","00MA","Older People (Aged 65 or Over)","Direct Payments","Direct Payments - OP","Direct Payments to Clients",22/12/2010 00:00:00,"30165698",707.2,"REDACTED PERSONAL DATA"
"Bracknell Forest Council","http://opendatacommunities.org/id/unitary-authority/bracknell-forest","Bracknell Forest Council","00MA","Education Management & Support Service","Children, Young People & Families","Parenting Early Intervention Programme","Training Costs",13/12/2010 00:00:00,"6432005",850,"DR JULIA ROGERS"
"Bracknell Forest Council","http://opendatacommunities.org/id/unitary-authority/bracknell-forest","Bracknell Forest Council","00MA","Central Support Services - COF","Construction and Property","Time Square Office","Security Systems",09/12/2010 00:00:00,"6432994",1054.34,"DSC SECURITY"
"Bracknell Forest Council","http://opendatacommunities.org/id/unitary-authority/bracknell-forest","Bracknell Forest Council","00MA","Other Adult Services","Substance Abuse (Addictions)","TA Refurbishment of AIC Centre","Rent of Property",07/12/2010 00:00:00,"6431774",2875,"DTZ"
"Bracknell Forest Council","http://opendatacommunities.org/id/unitary-authority/bracknell-forest","Bracknell Forest Council","00MA","Other Adult Services","Substance Abuse (Addictions)","TA Refurbishment of AIC Centre","Rent of Property",07/12/2010 00:00:00,"6431775",11878.08,"DTZ"
"Bracknell Forest Council","http://opendatacommunities.org/id/unitary-authority/bracknell-forest","Bracknell Forest Council","00MA","Other Adult Services","Substance Abuse (Addictions)","PTB New Hope Running Costs","Rent of Property",07/12/2010 00:00:00,"6431776",2875,"DTZ"
"Bracknell Forest Council","http://opendatacommunities.org/id/unitary-authority/bracknell-forest","Bracknell Forest Council","00MA","Holding Accounts in Budget Book COF","Corporate Serv - Reprographics & Printing","Reprographics & Printing","Printing and Design",30/11/2010 00:00:00,"6430712",736,"DUNCAN PRINT GROUP"
"Bracknell Forest Council","http://opendatacommunities.org/id/unitary-authority/bracknell-forest","Bracknell Forest Council","00MA","Holding Accounts in Budget Book COF","Corporate Serv - Reprographics & Printing","Reprographics & Printing","Printing and Design",10/12/2010 00:00:00,"6432002",831,"DUNCAN PRINT GROUP"
"Bracknell Forest Council","http://opendatacommunities.org/id/unitary-authority/bracknell-forest","Bracknell Forest Council","00MA","Mental Health Needs (Under 65)","Residential Care Home Placements","Residential Placements-Mental Illness","Contracted Services",21/12/2010 00:00:00,"30165583",3400,"DUNRAVEN HOUSE"
"Bracknell Forest Council","http://opendatacommunities.org/id/unitary-authority/bracknell-forest","Bracknell Forest Council","00MA","Physical Disability/Sensory Impairment","Residential Care Home Placements","Residential Placements-Phys Disab","Contracted Services",21/12/2010 00:00:00,"30165583",3108.16,"DUNRAVEN HOUSE"
"Bracknell Forest Council","http://opendatacommunities.org/id/unitary-authority/bracknell-forest","Bracknell Forest Council","00MA","Recreation, Sports and Leisure","Retail Services, Catering & Licenced","Easthampstead Park Conference Centre","Publicity & Marketing",30/11/2010 00:00:00,"6431593",1000,"DW JONES (PRINTERS) LTD"
"Bracknell Forest Council","http://opendatacommunities.org/id/unitary-authority/bracknell-forest","Bracknell Forest Council","00MA","","","Balance Sheet","Mortgagors Cash Control Account",02/12/2010 00:00:00,"6430695",1688.72,"DWP"
"Bracknell Forest Council","http://opendatacommunities.org/id/unitary-authority/bracknell-forest","Bracknell Forest Council","00MA","Education Management & Support Service","School Related Expenditure","School Catering","Catering Equipment - Purchase",19/11/2010 00:00:00,"6430229",1352,"E & R MOFFAT"
"Bracknell Forest Council","http://opendatacommunities.org/id/unitary-authority/bracknell-forest","Bracknell Forest Council","00MA","Non-School Funding","Pre-School Education","Early Years and Childcare","Grants and Donations",21/12/2010 00:00:00,"30165681",17419.05,"EAGLE HOUSE SCHOOL"
"Bracknell Forest Council","http://opendatacommunities.org/id/unitary-authority/bracknell-forest","Bracknell Forest Council","00MA","Other Adult Services","Other Adult Services","Transforming Social Care","Other Local Authorities",19/10/2010 00:00:00,"6431295",2000,"EAST SUSSEX COUNTY COUNCIL"
"Bracknell Forest Council","http://opendatacommunities.org/id/unitary-authority/bracknell-forest","Bracknell Forest Council","00MA","Childrens services-Commissioning & SW","Commissioning & Social Work","Safeguarding Childrens Board","Training Costs",30/11/2010 00:00:00,"6431102",612,"EASTHAMPSTEAD BAPTIST CHURCH"
"Bracknell Forest Council","http://opendatacommunities.org/id/unitary-authority/bracknell-forest","Bracknell Forest Council","00MA","Children Looked After (CLA)","Fostering Services","BFBC Fostering Allowances","Client Training & Support",30/11/2010 00:00:00,"6431869",640,"EASTHAMPSTEAD BAPTIST CHURCH"
"Bracknell Forest Council","http://opendatacommunities.org/id/unitary-authority/bracknell-forest","Bracknell Forest Council","00MA","Education Management & Support Service","School Related Expenditure","Transfers from School Budget","Other Fees for Bought-in Services",26/11/2010 00:00:00,"6430184",19688,"EC HARRIS LLP"
"Bracknell Forest Council","http://opendatacommunities.org/id/unitary-authority/bracknell-forest","Bracknell Forest Council","00MA","","","Sandy Lane Primary","Consultant Fees",26/11/2010 00:00:00,"6432263",6503.17,"EC HARRIS LLP"
"Bracknell Forest Council","http://opendatacommunities.org/id/unitary-authority/bracknell-forest","Bracknell Forest Council","00MA","","","Holly Spring Infant and Junior","Consultant Fees",26/11/2010 00:00:00,"6432264",7646.34,"EC HARRIS LLP"
"Bracknell Forest Council","http://opendatacommunities.org/id/unitary-authority/bracknell-forest","Bracknell Forest Council","00MA","","","Crown Wood Primary","Consultant Fees",26/11/2010 00:00:00,"6432265",1469.6,"EC HARRIS LLP"
"Bracknell Forest Council","http://opendatacommunities.org/id/unitary-authority/bracknell-forest","Bracknell Forest Council","00MA","Secondary Schools","Delegated Secondary School Budgets","Brakenhale - Secondary","Gas",04/01/2011 00:00:00,"30166013",88.8,"TOTAL GAS & POWER"
"Bracknell Forest Council","http://opendatacommunities.org/id/unitary-authority/bracknell-forest","Bracknell Forest Council","00MA","Secondary Schools","Delegated Secondary School Budgets","Brakenhale - Secondary","Gas",04/01/2011 00:00:00,"30166013",250.85,"TOTAL GAS & POWER"
"Bracknell Forest Council","http://opendatacommunities.org/id/unitary-authority/bracknell-forest","Bracknell Forest Council","00MA","Secondary Schools","Delegated Secondary School Budgets","Brakenhale - Secondary","Gas",04/01/2011 00:00:00,"30166013",42.9,"TOTAL GAS & POWER"
